FILE,Service Area Categorisation,Service Division Categorisation,Responsible Unit,Unit Code,Expenses Type,Expenses Sub Type,Expense  Code,Detailed Expenses Type,Transaction No,Amount,Invoice Date,Capital/Revenue,Supplier Name
2011 - DEC,Cultural Env Reg&Plan Services,Comm. Safety (Crime Reduction),CCTV                                    ,A01200,Supplies & Services           ,Equip Furniture/Materials     ,DA01,Equipment - R & M,1,"10,146.65",12/15/2011,R,EUROVIA INFRASTRUCTURE LTD    
2011 - DEC,Adult Social Care,Other Adult Services,Retention in Drug Treatmt Srvs          ,A01303,Third Party Payments          ,Private Contractors           ,EH02,Miscellaneous Hired Services,2,"2,194.50",5/1/2011,R,CRANSTOUN DRUG SERVICES       
2011 - DEC,Adult Social Care,Other Adult Services,Retention in Drug Treatmt Srvs          ,A01303,Third Party Payments          ,Private Contractors           ,EH02,Miscellaneous Hired Services,3,"2,194.50",7/1/2011,R,CRANSTOUN DRUG SERVICES       
2011 - DEC,Adult Social Care,Other Adult Services,Retention in Drug Treatmt Srvs          ,A01303,Third Party Payments          ,Private Contractors           ,EH02,Miscellaneous Hired Services,4,"2,194.50",10/1/2011,R,CRANSTOUN DRUG SERVICES       
2011 - DEC,Adult Social Care,Other Adult Services,Retention in Drug Treatmt Srvs          ,A01303,Third Party Payments          ,Private Contractors           ,EH02,Miscellaneous Hired Services,5,"46,351.12",11/2/2011,R,SW LONDON ST GEORGES NHS TRUST
2011 - DEC,Adult Social Care,Other Adult Services,Retention in Drug Treatmt Srvs          ,A01303,Third Party Payments          ,Private Contractors           ,EH02,Miscellaneous Hired Services,6,"46,351.12",10/3/2011,R,SW LONDON ST GEORGES NHS TRUST
2011 - DEC,Adult Social Care,Other Adult Services,Retention in Drug Treatmt Srvs          ,A01303,Third Party Payments          ,Private Contractors           ,EH02,Miscellaneous Hired Services,7,"185,404.48",8/1/2011,R,SW LONDON ST GEORGES NHS TRUST
2011 - DEC,,,Disabled Facilities Grant DCLG          ,CE004RA,Other Capital Expenditure,,E1,Grants,8,"11,260.00",12/1/2011,C,NONDRIP                       
2011 - DEC,,,Disabled Facilities Grant DCLG          ,CE004RA,Other Capital Expenditure,,E1,Grants,9,"5,203.00",12/6/2011,C,REDACTED
2011 - DEC,,,Disabled Facilities Grant DCLG          ,CE004RA,Other Capital Expenditure,,E1,Grants,10,"4,100.00",12/9/2011,C,CARING SOLUTIONS LTD          
2011 - DEC,,,Disabled Facilities Grant DCLG          ,CE004RA,Other Capital Expenditure,,E1,Grants,11,"12,716.25",12/9/2011,C,ATRIUM DESIGN & INSTALLATION  
2011 - DEC,,,Disabled Facilities Grant DCLG          ,CE004RA,Other Capital Expenditure,,E1,Grants,12,965.02,12/13/2011,C,ABLE 2 OCCUP.THERAPY SERV.LTD 
2011 - DEC,,,Disabled Facilities Grant DCLG          ,CE004RA,Other Capital Expenditure,,E1,Grants,13,"1,697.34",12/21/2011,C,ABLE 2 OCCUP.THERAPY SERV.LTD 
2011 - DEC,,,Disabled Facilities Grant DCLG          ,CE004RA,Other Capital Expenditure,,E1,Grants,14,"12,330.40",12/21/2011,C,CARING SOLUTIONS LTD          
2011 - DEC,,,Disabled Facilities Grant DCLG          ,CE004RA,Other Capital Expenditure,,E1,Grants,15,624.36,12/22/2011,C,R E SHELLEY                   
2011 - DEC,,,Disabled Facilities Grant DCLG          ,CE004RA,Other Capital Expenditure,,E1,Grants,16,"9,298.60",12/29/2011,C,DAKIN CONSTRUCTION LTD        
2011 - DEC,,,Small Repairs Grant                     ,CE005RA,Other Capital Expenditure,,E1,Grants,17,"4,000.00",12/5/2011,C,REDACTED
2011 - DEC,,,Small Repairs Grant                     ,CE005RA,Other Capital Expenditure,,E1,Grants,18,"3,584.00",12/6/2011,C,STORMPLAN                     
2011 - DEC,,,Parks Investment                        ,CE013SA,New Construction Conversion and Renovation,,B4,Site Works - Contractor,19,"1,337.74",11/29/2011,C,MORTON FAIRVIEW ELEC SERVICES 
2011 - DEC,,,Parks Investment                        ,CE013SA,New Construction Conversion and Renovation,,B4,Site Works - Contractor,20,697.49,11/29/2011,C,MORTON FAIRVIEW ELEC SERVICES 
2011 - DEC,,,Parks Investment                        ,CE013SA,New Construction Conversion and Renovation,,B4,Site Works - Contractor,21,"2,520.00",11/22/2011,C,TAYLOR BUILDING COMPANY LTD   
2011 - DEC,,,Parks Investment                        ,CE013SA,New Construction Conversion and Renovation,,B4,Site Works - Contractor,22,"1,000.00",11/25/2011,C,TAYLOR BUILDING COMPANY LTD   
2011 - DEC,,,Parks Investment                        ,CE013SA,New Construction Conversion and Renovation,,B4,Site Works - Contractor,23,"1,400.00",11/22/2011,C,TAYLOR BUILDING COMPANY LTD   
2011 - DEC,,,Parks Investment                        ,CE013SA,New Construction Conversion and Renovation,,B4,Site Works - Contractor,24,"3,375.00",11/22/2011,C,TAYLOR BUILDING COMPANY LTD   
2011 - DEC,,,Parks Investment                        ,CE013SA,New Construction Conversion and Renovation,,B4,Site Works - Contractor,25,"2,790.00",11/22/2011,C,TAYLOR BUILDING COMPANY LTD   
2011 - DEC,,,Parks Investment                        ,CE013SA,New Construction Conversion and Renovation,,B4,Site Works - Contractor,26,"1,350.00",11/22/2011,C,TAYLOR BUILDING COMPANY LTD   
2011 - DEC,,,Parks Investment                        ,CE013SA,New Construction Conversion and Renovation,,B4,Site Works - Contractor,27,"5,491.25",11/22/2011,C,TAYLOR BUILDING COMPANY LTD   
2011 - DEC,,,Parks Investment                        ,CE013SA,New Construction Conversion and Renovation,,B4,Site Works - Contractor,28,"6,225.00",11/22/2011,C,TAYLOR BUILDING COMPANY LTD   
2011 - DEC,,,Surface Water Drainage                  ,CE024FA,New Construction Conversion and Renovation,,B4,Site Works - Contractor,29,"1,250.00",12/5/2011,C,FM CONWAY LTD                 
2011 - DEC,,,Surface Water Drainage                  ,CE024FA,New Construction Conversion and Renovation,,B4,Site Works - Contractor,30,"6,584.41",12/5/2011,C,FM CONWAY LTD                 
2011 - DEC,,,Surface Water Drainage                  ,CE024FA,New Construction Conversion and Renovation,,B4,Site Works - Contractor,31,"2,304.60",12/12/2011,C,FM CONWAY LTD                 
2011 - DEC,,,Surface Water Drainage                  ,CE024FA,New Construction Conversion and Renovation,,B4,Site Works - Contractor,32,"1,942.65",12/12/2011,C,FM CONWAY LTD                 
2011 - DEC,,,Highways bridges & structures           ,CE025FA,New Construction Conversion and Renovation,,B1,Design and Supervision - Consultants Fee,33,"4,042.03",11/30/2011,C,AECOM LIMITED                 
2011 - DEC,,,Highways bridges & structures           ,CE025FA,New Construction Conversion and Renovation,,B1,Design and Supervision - Consultants Fee,34,"1,847.47",11/30/2011,C,AECOM LIMITED                 
2011 - DEC,,,Highways bridges & structures           ,CE025FA,New Construction Conversion and Renovation,,B4,Site Works - Contractor,35,"7,391.37",12/12/2011,C,FM CONWAY LTD                 
2011 - DEC,,,Highways bridges & structures           ,CE025FA,New Construction Conversion and Renovation,,B4,Site Works - Contractor,36,"8,502.10",11/30/2011,C,FM CONWAY LTD                 
2011 - DEC,,,Highways bridges & structures           ,CE025FA,New Construction Conversion and Renovation,,B4,Site Works - Contractor,37,"6,139.94",11/30/2011,C,FM CONWAY LTD                 
2011 - DEC,,,Highways bridges & structures           ,CE025FA,New Construction Conversion and Renovation,,B4,Site Works - Contractor,38,"8,602.04",11/30/2011,C,FM CONWAY LTD                 
2011 - DEC,,,Borough Roads Maintenance               ,CE026FA,New Construction Conversion and Renovation,,B4,Site Works - Contractor,39,"11,250.00",12/5/2011,C,FM CONWAY LTD                 
2011 - DEC,,,Borough Roads Maintenance               ,CE026FA,New Construction Conversion and Renovation,,B4,Site Works - Contractor,40,"117,026.39",12/12/2011,C,FM CONWAY LTD                 
2011 - DEC,,,Public Right of Way Improvemen          ,CE028FA,Acquisition of Land and Existing Buildings,,A4,Other Acquisition Costs,41,780,11/29/2011,C,COMPLETE WEED CONTROL         
2011 - DEC,,,Repairs to Footways                     ,CE029FA,New Construction Conversion and Renovation,,B4,Site Works - Contractor,42,"8,625.00",12/5/2011,C,FM CONWAY LTD                 
2011 - DEC,,,Repairs to Footways                     ,CE029FA,New Construction Conversion and Renovation,,B4,Site Works - Contractor,43,"30,000.00",12/5/2011,C,FM CONWAY LTD                 
2011 - DEC,,,Wimbledon Bridge                        ,CE032FA,New Construction Conversion and Renovation,,B4,Site Works - Contractor,44,"3,300.48",12/12/2011,C,FM CONWAY LTD                 
2011 - DEC,,,Wimbledon Bridge                        ,CE032FA,New Construction Conversion and Renovation,,B4,Site Works - Contractor,45,"2,016.96",12/12/2011,C,FM CONWAY LTD                 
2011 - DEC,,,Leisure Centre Plant & Machine          ,CE038MA,New Construction Conversion and Renovation,,B4,Site Works - Contractor,46,"20,267.52",11/17/2011,C,STAMFORD CONTRACTS LIMITED    
2011 - DEC,,,Leisure Centre Plant & Machine          ,CE038MA,New Construction Conversion and Renovation,,B4,Site Works - Contractor,47,"12,131.49",11/17/2011,C,STAMFORD CONTRACTS LIMITED    
2011 - DEC,,,B545 Public Art WTC                     ,CE043FA,New Construction Conversion and Renovation,,B5,Site Works - Suppliers,48,"8,312.50",11/17/2011,C,BENSON-SEDGWICK ENGINEERING LT
2011 - DEC,,,Morden Park changing rooms              ,CE045AB,New Construction Conversion and Renovation,,B4,Site Works - Contractor,49,"1,500.00",12/12/2011,C,AIR SURVEYS  LIMITED          
2011 - DEC,,,CPZ - Parking Management                ,CE046EA,New Construction Conversion and Renovation,,B4,Site Works - Contractor,50,796.92,12/5/2011,C,FM CONWAY LTD                 
2011 - DEC,,,Handheld Terminals - Parking            ,CE051EA,Vehicles Plant Equipment and Machinery,,D3,Equipment,51,"5,625.00",12/15/2011,C,EUROVIA INFRASTRUCTURE LTD    
2011 - DEC,,,Town Centre Investment                  ,CE061FB,New Construction Conversion and Renovation,,B4,Site Works - Contractor,52,"20,000.00",12/12/2011,C,FM CONWAY LTD                 
2011 - DEC,,,B591b Shop Front Improvement            ,CE066FG,New Construction Conversion and Renovation,,B4,Site Works - Contractor,53,550,12/21/2011,C,REDACTED
2011 - DEC,,,B591b Shop Front Improvement            ,CE066FG,Other Capital Expenditure,,E1,Grants,54,"5,833.33",12/1/2011,C,REDACTED
2011 - DEC,,,B591b Shop Front Improvement            ,CE066FG,Other Capital Expenditure,,E1,Grants,55,600,11/28/2011,C,ESENTE HAIR                   
2011 - DEC,,,B591b Shop Front Improvement            ,CE066FG,Other Capital Expenditure,,E1,Grants,56,"2,450.92",12/21/2011,C,REDACTED
2011 - DEC,,,B591b Shop Front Improvement            ,CE066FG,Other Capital Expenditure,,E1,Grants,57,"1,750.00",12/21/2011,C,STRAND LAUNDERETTE            
2011 - DEC,,,B591a Street Scene Improvement          ,CE066FH,New Construction Conversion and Renovation,,B4,Site Works - Contractor,58,"10,964.44",12/12/2011,C,FM CONWAY LTD                 
2011 - DEC,,,Street Lighting Replacement Pr          ,CE068FA,New Construction Conversion and Renovation,,B4,Site Works - Contractor,59,860.04,12/12/2011,C,FM CONWAY LTD                 
2011 - DEC,,,Street Light Energy Reduction           ,CE068FB,New Construction Conversion and Renovation,,B4,Site Works - Contractor,60,"10,349.80",11/22/2011,C,MAY GURNEY LTD T/A CARTLEDGE  
2011 - DEC,,,Street Light Energy Reduction           ,CE068FB,New Construction Conversion and Renovation,,B4,Site Works - Contractor,61,"12,997.39",11/22/2011,C,MAY GURNEY LTD T/A CARTLEDGE  
2011 - DEC,,,Street Light Energy Reduction           ,CE068FB,New Construction Conversion and Renovation,,B4,Site Works - Contractor,62,"11,256.77",12/1/2011,C,MAY GURNEY LTD T/A CARTLEDGE  
2011 - DEC,,,20s Plenty & Area Traffic Calm          ,CE069FA,New Construction Conversion and Renovation,,B4,Site Works - Contractor,63,"1,009.97",11/22/2011,C,MAY GURNEY LTD T/A CARTLEDGE  
2011 - DEC,,,20s Plenty & Area Traffic Calm          ,CE069FA,New Construction Conversion and Renovation,,B4,Site Works - Contractor,64,"2,000.00",12/5/2011,C,FM CONWAY LTD                 
2011 - DEC,,,20s Plenty & Area Traffic Calm          ,CE069FA,New Construction Conversion and Renovation,,B4,Site Works - Contractor,65,636.3,12/5/2011,C,FM CONWAY LTD                 
2011 - DEC,,,Area Traffic calming measures           ,CE070FA,New Construction Conversion and Renovation,,B1,Design and Supervision - Consultants Fee,66,"1,321.00",11/15/2011,C,HYDER CONSULTING (UK) LTD     
2011 - DEC,,,Traffic Consultation                    ,CE079FA,New Construction Conversion and Renovation,,B4,Site Works - Contractor,67,"8,000.00",12/5/2011,C,FM CONWAY LTD                 
2011 - DEC,,,Replacement of Fleet Vehicles           ,CE082EA,Vehicles Plant Equipment and Machinery,,D1,Vehicles,68,"3,162.94",11/11/2011,C,STANWELL TRANSPORT SERVICES LT
2011 - DEC,,,Replacement of Fleet Vehicles           ,CE082EA,Vehicles Plant Equipment and Machinery,,D1,Vehicles,69,"3,191.40",11/21/2011,C,STANWELL TRANSPORT SERVICES LT
2011 - DEC,,,B613 Elm Grove renew footways           ,CE085FV,New Construction Conversion and Renovation,,B4,Site Works - Contractor,70,"5,690.00",12/5/2011,C,FM CONWAY LTD                 
2011 - DEC,,,Barrows and Bins Replacement            ,CE088EA,Vehicles Plant Equipment and Machinery,,D3,Equipment,71,"5,523.00",11/23/2011,C,STRAIGHT PLC                  
2011 - DEC,,,Barrows and Bins Replacement            ,CE088EA,Vehicles Plant Equipment and Machinery,,D3,Equipment,72,525,11/23/2011,C,STRAIGHT PLC                  
2011 - DEC,,,Re-use/recycling Site Maintena          ,CE090SA,New Construction Conversion and Renovation,,B5,Site Works - Suppliers,73,875,11/8/2011,C,CHARTWELL DOORS LIMITED       
2011 - DEC,,,Strategic corridor Mitcham              ,CE104FB,Other Capital Expenditure,,E4,TFL Other,74,"3,022.50",11/29/2011,C,EUROVIA INFASTRUCTURE LTD     
2011 - DEC,,,Kingston/Hartfield Rd StratCor          ,CE104FC,New Construction Conversion and Renovation,,B2,Design and Supervision - Site Surveys,75,"3,480.00",10/10/2011,C,RBS COMM SERVICES LTD         
2011 - DEC,,,Accesibility Programme                  ,CE104FD,New Construction Conversion and Renovation,,B4,Site Works - Contractor,76,868.76,12/12/2011,C,FM CONWAY LTD                 
2011 - DEC,,,Wimbledon Town Centre                   ,CE104FJ,New Construction Conversion and Renovation,,B4,Site Works - Contractor,77,"130,001.00",12/14/2011,C,FM CONWAY LTD                 
2011 - DEC,,,Casualty Reduction & Schools            ,CE104RA,New Construction Conversion and Renovation,,B1,Design and Supervision - Consultants Fee,78,830,10/19/2011,C,HYDER CONSULTING (UK) LTD     
2011 - DEC,,,Casualty Reduction & Schools            ,CE104RA,New Construction Conversion and Renovation,,B4,Site Works - Contractor,79,"20,000.00",12/5/2011,C,FM CONWAY LTD                 
2011 - DEC,,,Carshalton Road                         ,CE105FA,New Construction Conversion and Renovation,,B4,Site Works - Contractor,80,"1,250.00",12/5/2011,C,FM CONWAY LTD                 
2011 - DEC,,,Carshalton Road                         ,CE105FA,New Construction Conversion and Renovation,,B4,Site Works - Contractor,81,"120,643.04",12/12/2011,C,FM CONWAY LTD                 
2011 - DEC,,,Merton Road                             ,CE105FB,New Construction Conversion and Renovation,,B4,Site Works - Contractor,82,"1,250.00",12/5/2011,C,FM CONWAY LTD                 
2011 - DEC,,,Morden Road                             ,CE105FC,New Construction Conversion and Renovation,,B4,Site Works - Contractor,83,"1,250.00",12/5/2011,C,FM CONWAY LTD                 
2011 - DEC,,,Wim TC Accessibility & Streets          ,CE106FA,New Construction Conversion and Renovation,,B4,Site Works - Contractor,84,"1,480.84",12/5/2011,C,FM CONWAY LTD                 
2011 - DEC,,,Wim TC Accessibility & Streets          ,CE106FA,New Construction Conversion and Renovation,,B4,Site Works - Contractor,85,"9,999.00",12/14/2011,C,FM CONWAY LTD                 
2011 - DEC,,,Wim TC Accessibility & Streets          ,CE106FA,New Construction Conversion and Renovation,,B4,Site Works - Contractor,86,"10,000.00",12/14/2011,C,FM CONWAY LTD                 
2011 - DEC,,,Wim TC Accessibility & Streets          ,CE106FA,New Construction Conversion and Renovation,,B5,Site Works - Suppliers,87,900,12/14/2011,C,FURNITUBES INTERNATIONAL      
2011 - DEC,,,Wim TC Accessibility & Streets          ,CE106FA,New Construction Conversion and Renovation,,B6,Site Works - Other Costs,88,680,12/9/2011,C,UK POWER NETWORKS (OPERATIONS)
2011 - DEC,,,Haydons Road - Puffin Crossing          ,CE108EA,New Construction Conversion and Renovation,,B4,Site Works - Contractor,89,"5,923.38",12/5/2011,C,FM CONWAY LTD                 
2011 - DEC,,,Leisure Services Parks&OpenSp           ,CE110SA,New Construction Conversion and Renovation,,B4,Site Works - Contractor,90,"9,084.00",11/24/2011,C,REDACTED
2011 - DEC,,,Leisure Services Parks&OpenSp           ,CE110SA,New Construction Conversion and Renovation,,B4,Site Works - Contractor,91,"1,475.00",10/28/2011,C,THE CRESCENT FENCING CO.      
2011 - DEC,,,Leisure Services Parks&OpenSp           ,CE110SA,New Construction Conversion and Renovation,,B4,Site Works - Contractor,92,"4,150.00",12/2/2011,C,TAYLOR BUILDING COMPANY LTD   
2011 - DEC,,,Leisure Services Parks&OpenSp           ,CE110SA,New Construction Conversion and Renovation,,B4,Site Works - Contractor,93,"3,353.00",11/29/2011,C,ABACUS PLAYGROUNDS LTD        
2011 - DEC,,,Leisure Services Parks&OpenSp           ,CE110SA,New Construction Conversion and Renovation,,B4,Site Works - Contractor,94,"3,215.00",10/6/2011,C,THE CRESCENT FENCING CO.      
2011 - DEC,,,Leisure Services Parks&OpenSp           ,CE110SA,New Construction Conversion and Renovation,,B4,Site Works - Contractor,95,"5,381.00",11/28/2011,C,SMP (PLAYGROUNDS) LTD         
2011 - DEC,,,Leisure Services Parks&OpenSp           ,CE110SA,New Construction Conversion and Renovation,,B4,Site Works - Contractor,96,"3,453.00",10/12/2011,C,JUST METAL UK LTD             
2011 - DEC,,,Leisure Services Parks&OpenSp           ,CE110SA,New Construction Conversion and Renovation,,B4,Site Works - Contractor,97,"3,375.00",12/12/2011,C,REDDINGTON & SONS             
2011 - DEC,,,Leisure Services Parks&OpenSp           ,CE110SA,New Construction Conversion and Renovation,,B4,Site Works - Contractor,98,"4,680.00",12/14/2011,C,JUST METAL UK LTD             
2011 - DEC,,,Leisure Services Parks&OpenSp           ,CE110SA,New Construction Conversion and Renovation,,B4,Site Works - Contractor,99,"3,800.00",12/15/2011,C,TAYLOR BUILDING COMPANY LTD   
2011 - DEC,,,Leisure Services Parks&OpenSp           ,CE110SA,New Construction Conversion and Renovation,,B4,Site Works - Contractor,100,"5,200.00",12/12/2011,C,REDDINGTON & SONS             
2011 - DEC,,,Leisure Services Parks&OpenSp           ,CE110SA,New Construction Conversion and Renovation,,B4,Site Works - Contractor,101,"9,850.00",12/14/2011,C,JUST METAL UK LTD             
2011 - DEC,,,Leisure Services Parks&OpenSp           ,CE110SA,New Construction Conversion and Renovation,,B4,Site Works - Contractor,102,"9,990.00",11/25/2011,C,DCM PROJECTS LTD              
2011 - DEC,,,John Innes Rec/Rutlish wall             ,CE110SB,Other Capital Expenditure,,E4,TFL Other,103,"54,855.15",11/28/2011,C,TRITON BUILDING CONSERVATION  
2011 - DEC,,,Bushey Rd Bridge Concrete Rep           ,CE111FC,New Construction Conversion and Renovation,,B1,Design and Supervision - Consultants Fee,104,"2,000.00",11/29/2011,C,ATKINS LIMITED                
2011 - DEC,,,Bushey Rd Bridge Special Insp           ,CE111FE,New Construction Conversion and Renovation,,B1,Design and Supervision - Consultants Fee,105,"2,250.00",11/29/2011,C,ATKINS LIMITED                
2011 - DEC,,,Marathon Trust BMX Track                ,CE114SA,New Construction Conversion and Renovation,,B1,Design and Supervision - Consultants Fee,106,750,11/30/2011,C,MATERIALS SCIENCE CONS. LTD   
2011 - DEC,,,Empty Homes Grant                       ,CE122RA,Other Capital Expenditure,,E1,Grants,107,"24,300.00",12/29/2011,C,REDACTED
2011 - DEC,,,Bushey Road Bridge Repair               ,CGH07HD,New Construction Conversion and Renovation,,2A,Capital consultancy fees,108,"2,057.00",11/29/2011,C,ATKINS LIMITED                
2011 - DEC,,,Bushey Road Bridge Repair               ,CGH07HD,New Construction Conversion and Renovation,,2A,Capital consultancy fees,109,"1,504.00",11/29/2011,C,ATKINS LIMITED                
2011 - DEC,,,London Road Toilet Refurbishme          ,CGH37AD,New Construction Conversion and Renovation,,2N,Capital main contractor payments,110,"8,075.00",11/18/2011,C,RITEC DECORATORS LIMITED      
2011 - DEC,,,Lighting in Parks                       ,CGH37BD,New Construction Conversion and Renovation,,2N,Capital main contractor payments,111,"2,977.00",12/16/2011,C,MORTON FAIRVIEW ELEC SERVICES 
2011 - DEC,,,Highways bridges & structures           ,CGH37KD,New Construction Conversion and Renovation,,2D,Other Expenses,112,"12,500.00",12/16/2011,C,NETWORK RAIL                  
2011 - DEC,Cultural Env Reg&Plan Services,SMSS (Env),ES Support & Development                ,G00070,Supplies & Services           ,Expenses                      ,DH02,Conferences,113,580,11/22/2011,R,GUILDFORD COLL OF F & H EDUCTN
2011 - DEC,Cultural Env Reg&Plan Services,SMSS (Env),ES Support & Development                ,G00070,Supplies & Services           ,Expenses                      ,DH02,Conferences,114,920,11/8/2011,R,KINGS COLLEGE LONDON          
2011 - DEC,Cultural Env Reg&Plan Services,SMSS (Env),Senior Mgt. - E.S.C.                    ,G00100,Employees                     ,Indirect Employee Expenses    ,AB57,External Training Costs,115,500,12/15/2011,R,ASSOC OF TOWN CTR MANAGEMENT  
2011 - DEC,Highways & Transport Services,Structural Maintenance,C'way & F'way Mtce                      ,G00121,Supplies & Services           ,Comms and Computing           ,DG14,Telephones - Mobile,116,"1,475.00",12/14/2011,R,T MOBILE (UK)                 
2011 - DEC,Highways & Transport Services,Structural Maintenance,C'way & F'way Mtce                      ,G00121,Supplies & Services           ,Grants and Subscriptions      ,DJ04,Subscriptions,117,"6,810.00",7/12/2011,R,IHS(GLOBAL)LTD                
2011 - DEC,Highways & Transport Services,Structural Maintenance,C'way & F'way Mtce                      ,G00121,Supplies & Services           ,Grants and Subscriptions      ,DJ04,Subscriptions,118,"1,300.00",11/1/2011,R,LONDON BRIDGES ENG. GROUP     
2011 - DEC,Highways & Transport Services,Structural Maintenance,Surf Water Drainage                     ,G00123,Third Party Payments          ,Private Contractors           ,EH56,Carriageway/Fway Maint,119,571.36,12/5/2011,R,FM CONWAY LTD                 
2011 - DEC,Highways & Transport Services,Structural Maintenance,Surf Water Drainage                     ,G00123,Third Party Payments          ,Private Contractors           ,EH56,Carriageway/Fway Maint,120,"2,250.00",12/12/2011,R,FM CONWAY LTD                 
2011 - DEC,Highways & Transport Services,Structural Maintenance,Surf Water Drainage                     ,G00123,Third Party Payments          ,Private Contractors           ,EH56,Carriageway/Fway Maint,121,"3,260.75",12/12/2011,R,FM CONWAY LTD                 
2011 - DEC,Highways & Transport Services,Structural Maintenance,Footway maintenance                     ,G00124,Third Party Payments          ,Private Contractors           ,EH56,Carriageway/Fway Maint,122,"34,310.00",12/5/2011,R,FM CONWAY LTD                 
2011 - DEC,Highways & Transport Services,Structural Maintenance,Footway maintenance                     ,G00124,Third Party Payments          ,Private Contractors           ,EH56,Carriageway/Fway Maint,123,"1,481.46",12/12/2011,R,FM CONWAY LTD                 
2011 - DEC,Highways & Transport Services,Env Safety&Routine Maintenance,Carriageway Patching                    ,G00125,Third Party Payments          ,Private Contractors           ,EH56,Carriageway/Fway Maint,124,"15,512.48",12/5/2011,R,FM CONWAY LTD                 
2011 - DEC,Highways & Transport Services,Env Safety&Routine Maintenance,Carriageway Patching                    ,G00125,Third Party Payments          ,Private Contractors           ,EH56,Carriageway/Fway Maint,125,532.96,12/12/2011,R,FM CONWAY LTD                 
2011 - DEC,Highways & Transport Services,Env Safety&Routine Maintenance,Walk Sheets                             ,G00127,Third Party Payments          ,Private Contractors           ,EH56,Carriageway/Fway Maint,126,"3,335.37",12/5/2011,R,FM CONWAY LTD                 
2011 - DEC,Highways & Transport Services,Env Safety&Routine Maintenance,Walk Sheets                             ,G00127,Third Party Payments          ,Private Contractors           ,EH56,Carriageway/Fway Maint,127,"3,161.20",12/5/2011,R,FM CONWAY LTD                 
2011 - DEC,Highways & Transport Services,Env Safety&Routine Maintenance,Walk Sheets                             ,G00127,Third Party Payments          ,Private Contractors           ,EH56,Carriageway/Fway Maint,128,"2,413.91",12/5/2011,R,FM CONWAY LTD                 
2011 - DEC,Highways & Transport Services,Env Safety&Routine Maintenance,Walk Sheets                             ,G00127,Third Party Payments          ,Private Contractors           ,EH56,Carriageway/Fway Maint,129,"5,723.76",12/5/2011,R,FM CONWAY LTD                 
2011 - DEC,Highways & Transport Services,Env Safety&Routine Maintenance,Walk Sheets                             ,G00127,Third Party Payments          ,Private Contractors           ,EH56,Carriageway/Fway Maint,130,"20,001.04",12/12/2011,R,FM CONWAY LTD                 
2011 - DEC,Highways & Transport Services,Winter Service,Winter Maintenance                      ,G00150,Third Party Payments          ,Other Local Authorities       ,EB50,OLA-Payments - Day Schools,131,"9,652.03",10/14/2011,R,CLEVELAND POTASH LIMITED      
2011 - DEC,Highways & Transport Services,Winter Service,Winter Maintenance                      ,G00150,Third Party Payments          ,Private Contractors           ,EH56,Carriageway/Fway Maint,132,"4,860.00",11/16/2011,R,MET OFFICE                    
2011 - DEC,Highways & Transport Services,Env Safety&Routine Maintenance,Traffic Signs.                          ,G00160,Third Party Payments          ,Private Contractors           ,EH01,Miscellaneous Agency Services,133,645.99,11/22/2011,R,MAY GURNEY LTD T/A CARTLEDGE  
2011 - DEC,Highways & Transport Services,Env Safety&Routine Maintenance,Traffic Signs.                          ,G00160,Third Party Payments          ,Private Contractors           ,EH01,Miscellaneous Agency Services,134,"2,726.37",12/1/2011,R,MAY GURNEY LTD T/A CARTLEDGE  
2011 - DEC,Highways & Transport Services,Env Safety&Routine Maintenance,Traffic Signs.                          ,G00160,Third Party Payments          ,Private Contractors           ,EH01,Miscellaneous Agency Services,135,"1,007.80",12/5/2011,R,FM CONWAY LTD                 
2011 - DEC,Highways & Transport Services,Env Safety&Routine Maintenance,Traffic Signs.                          ,G00160,Third Party Payments          ,Private Contractors           ,EH02,Miscellaneous Hired Services,136,799.65,12/5/2011,R,FM CONWAY LTD                 
2011 - DEC,Highways & Transport Services,Street Lights(Inc Energy Cost),Street Lighting .                       ,G00260,Premises Related Expenditure  ,Energy Costs                  ,BB02,Electricity,137,"53,028.14",12/13/2011,R,KENT COUNTY COUNCIL           
2011 - DEC,Highways & Transport Services,Street Lights(Inc Energy Cost),Street Lighting .                       ,G00260,Third Party Payments          ,Private Contractors           ,EH01,Miscellaneous Agency Services,138,"2,115.04",11/22/2011,R,MAY GURNEY LTD T/A CARTLEDGE  
2011 - DEC,Highways & Transport Services,Street Lights(Inc Energy Cost),Street Lighting .                       ,G00260,Third Party Payments          ,Private Contractors           ,EH01,Miscellaneous Agency Services,139,"2,304.50",11/22/2011,R,MAY GURNEY LTD T/A CARTLEDGE  
2011 - DEC,Highways & Transport Services,Street Lights(Inc Energy Cost),Street Lighting .                       ,G00260,Third Party Payments          ,Private Contractors           ,EH01,Miscellaneous Agency Services,140,"13,634.39",12/1/2011,R,MAY GURNEY LTD T/A CARTLEDGE  
2011 - DEC,Highways & Transport Services,Street Lights(Inc Energy Cost),Street Lighting .                       ,G00260,Third Party Payments          ,Private Contractors           ,EH01,Miscellaneous Agency Services,141,"1,424.65",12/1/2011,R,MAY GURNEY LTD T/A CARTLEDGE  
2011 - DEC,Highways & Transport Services,Street Lights(Inc Energy Cost),Street Lighting .                       ,G00260,Third Party Payments          ,Private Contractors           ,EH01,Miscellaneous Agency Services,142,"2,872.56",12/1/2011,R,MAY GURNEY LTD T/A CARTLEDGE  
2011 - DEC,Highways & Transport Services,Street Lights(Inc Energy Cost),Street Lighting .                       ,G00260,Third Party Payments          ,Private Contractors           ,EH01,Miscellaneous Agency Services,143,"2,248.69",12/1/2011,R,MAY GURNEY LTD T/A CARTLEDGE  
2011 - DEC,Highways & Transport Services,Street Lights(Inc Energy Cost),Street Lighting .                       ,G00260,Third Party Payments          ,Private Contractors           ,EH01,Miscellaneous Agency Services,144,684.14,12/1/2011,R,MAY GURNEY LTD T/A CARTLEDGE  
2011 - DEC,Highways & Transport Services,Street Lights(Inc Energy Cost),Street Lighting .                       ,G00260,Third Party Payments          ,Private Contractors           ,EH01,Miscellaneous Agency Services,145,643,12/15/2011,R,UK POWER NETWORKS (OPERATIONS)
2011 - DEC,Highways & Transport Services,Street Lights(Inc Energy Cost),Street Lighting .                       ,G00260,Third Party Payments          ,Private Contractors           ,EH01,Miscellaneous Agency Services,146,707,12/15/2011,R,UK POWER NETWORKS (OPERATIONS)
2011 - DEC,Highways & Transport Services,Street Lights(Inc Energy Cost),Street Lighting .                       ,G00260,Third Party Payments          ,Private Contractors           ,EH01,Miscellaneous Agency Services,147,643,12/15/2011,R,UK POWER NETWORKS (OPERATIONS)
2011 - DEC,Highways & Transport Services,Street Lights(Inc Energy Cost),Street Lighting .                       ,G00260,Third Party Payments          ,Private Contractors           ,EH01,Miscellaneous Agency Services,148,823,12/6/2011,R,UK POWER NETWORKS (OPERATIONS)
2011 - DEC,Highways & Transport Services,Parking Services,Coombe Lane                             ,G00292,Premises Related Expenditure  ,RepairsAlterations&MtceOfBldgs,BA06,Repairs & Maintenance General,149,"2,100.00",12/1/2011,R,TEASDALE GROUP LTD            
2011 - DEC,Highways & Transport Services,Parking Services,York Close CP                           ,G00298,Premises Related Expenditure  ,Rents                         ,BC01,Miscellaneous Rents,150,"26,250.00",11/24/2011,R,TRANSPORT TRADING LTD PROP A/C
2011 - DEC,Highways & Transport Services,Parking Services,Morden Station                          ,G00301,Premises Related Expenditure  ,Rents                         ,BC01,Miscellaneous Rents,151,"11,614.64",11/24/2011,R,TRANSPORT TRADING LTD PROP A/C
2011 - DEC,Highways & Transport Services,Parking Services,St. Georges Car Park WEST M/S           ,G00302,Premises Related Expenditure  ,Energy Costs                  ,BB02,Electricity,152,"1,438.21",12/6/2011,R,KENT COUNTY COUNCIL           
2011 - DEC,Highways & Transport Services,Parking Services,St. Georges Car Park WEST M/S           ,G00302,Premises Related Expenditure  ,Energy Costs                  ,BB02,Electricity,153,"1,383.29",12/8/2011,R,KENT COUNTY COUNCIL           
2011 - DEC,Highways & Transport Services,Parking Services,Peel Hse C P - Upper                    ,G00303,Premises Related Expenditure  ,Rents                         ,BC01,Miscellaneous Rents,154,"3,000.00",12/15/2011,R,TRANSPORT TRADING LTD PROP A/C
2011 - DEC,Highways & Transport Services,Parking Services,Peel Hse C P - Lwr                      ,G00304,Premises Related Expenditure  ,RepairsAlterations&MtceOfBldgs,BA06,Repairs & Maintenance General,155,"2,384.00",11/24/2011,R,KC DRAINS LTD                 
2011 - DEC,Highways & Transport Services,Parking Services,"St. Mks Rd, Multi Sty                   ",G00308,Premises Related Expenditure  ,Rents                         ,BC01,Miscellaneous Rents,156,"4,236.55",10/18/2011,R,FISHER PROPERTY CONSULTANTS   
2011 - DEC,Highways & Transport Services,Parking Services,On Street Parking.                      ,G00311,Employees                     ,Indirect Employee Expenses    ,AB57,External Training Costs,157,"6,300.00",12/22/2011,R,LONDON BOROUGH OF CAMDEN      
2011 - DEC,Highways & Transport Services,Parking Services,Civil Enforcement Officers              ,G00330,Premises Related Expenditure  ,Rents                         ,BC01,Miscellaneous Rents,158,"4,377.50",12/9/2011,R,WOODCOCK BROTHERS (WIMBLEDON) 
2011 - DEC,Highways & Transport Services,Parking Services,Civil Enforcement Officers              ,G00330,Supplies & Services           ,Equip Furniture/Materials     ,DA09,Equip-Purchases,159,643.5,12/5/2011,R,QUARTIX                       
2011 - DEC,Highways & Transport Services,Parking Services,Operational Running Costs               ,G00331,Supplies & Services           ,Equip Furniture/Materials     ,DA09,Equip-Purchases,160,728,12/15/2011,R,PARKEON LTD                   
2011 - DEC,Highways & Transport Services,Parking Services,Operational Running Costs               ,G00331,Supplies & Services           ,Equip Furniture/Materials     ,DA09,Equip-Purchases,161,"4,032.00",12/21/2011,R,PARKEON LTD                   
2011 - DEC,Highways & Transport Services,Parking Services,Operational Running Costs               ,G00331,Supplies & Services           ,Prntng Stnry Gen Off Exp      ,DE01,External Printing,162,"2,631.60",12/19/2011,R,NAGELS UK LTD                 
2011 - DEC,Highways & Transport Services,Parking Services,Operational Running Costs               ,G00331,Third Party Payments          ,Other Agencies                ,EJ58,Parking Cttee for London,163,"4,438.00",12/5/2011,R,LONDON COUNCILS               
2011 - DEC,Highways & Transport Services,Parking Services,Operational Running Costs               ,G00331,Third Party Payments          ,Other Agencies                ,EJ58,Parking Cttee for London,164,720.76,12/7/2011,R,LONDON COUNCILS               
2011 - DEC,Highways & Transport Services,Env Safety&Routine Maintenance,Sewers - LBM                            ,G00340,Third Party Payments          ,Private Contractors           ,EH02,Miscellaneous Hired Services,165,"41,932.00",12/12/2011,R,FM CONWAY LTD                 
2011 - DEC,Highways & Transport Services,Structural Maintenance,Footpath Crossings.                     ,G00390,Third Party Payments          ,Private Contractors           ,EH56,Carriageway/Fway Maint,166,"2,744.84",12/5/2011,R,FM CONWAY LTD                 
2011 - DEC,Highways & Transport Services,Structural Maintenance,Footpath Crossings.                     ,G00390,Third Party Payments          ,Private Contractors           ,EH56,Carriageway/Fway Maint,167,"1,597.34",12/5/2011,R,FM CONWAY LTD                 
2011 - DEC,Highways & Transport Services,Structural Maintenance,Footpath Crossings.                     ,G00390,Third Party Payments          ,Private Contractors           ,EH56,Carriageway/Fway Maint,168,"2,243.90",12/12/2011,R,FM CONWAY LTD                 
2011 - DEC,Cultural Env Reg&Plan Services,Street Cleaning - Not highways,Street Cleansing (Inc. Gully)           ,G00492,Employees                     ,Indirect Employee Expenses    ,AB57,External Training Costs,169,595,11/15/2011,R,SKILLS TRAINING CENTRE LTD    
2011 - DEC,Cultural Env Reg&Plan Services,Street Cleaning - Not highways,Street Cleansing (Inc. Gully)           ,G00492,Employees                     ,Indirect Employee Expenses    ,AB57,External Training Costs,170,657.5,11/21/2011,R,SKILLS TRAINING CENTRE LTD    
2011 - DEC,Cultural Env Reg&Plan Services,Street Cleaning - Not highways,Street Cleansing (Inc. Gully)           ,G00492,Supplies & Services           ,Equip Furniture/Materials     ,DA01,Equipment - R & M,171,"1,037.69",11/9/2011,R,GREEN MACHINES                
2011 - DEC,Cultural Env Reg&Plan Services,Street Cleaning - Not highways,Street Cleansing (Inc. Gully)           ,G00492,Supplies & Services           ,Equip Furniture/Materials     ,DA01,Equipment - R & M,172,"1,348.35",11/30/2011,R,N A BROWN LTD                 
2011 - DEC,Cultural Env Reg&Plan Services,Street Cleaning - Not highways,Street Cleansing (Inc. Gully)           ,G00492,Supplies & Services           ,Equip Furniture/Materials     ,DA08,Tools-Purchase,173,"1,250.85",11/22/2011,R,BELL BRUSH                    
2011 - DEC,Cultural Env Reg&Plan Services,Street Cleaning - Not highways,Street Cleansing (Inc. Gully)           ,G00492,Supplies & Services           ,Equip Furniture/Materials     ,DA31,Waste Sacks & Bags,174,"1,852.20",11/29/2011,R,POLARIS PLASTICS LTD          
2011 - DEC,Cultural Env Reg&Plan Services,Street Cleaning - Not highways,Street Cleansing (Inc. Gully)           ,G00492,Supplies & Services           ,Equip Furniture/Materials     ,DA31,Waste Sacks & Bags,175,"2,778.30",11/18/2011,R,POLARIS PLASTICS LTD          
2011 - DEC,Cultural Env Reg&Plan Services,Street Cleaning - Not highways,Street Cleansing (Inc. Gully)           ,G00492,Supplies & Services           ,Equip Furniture/Materials     ,DA31,Waste Sacks & Bags,176,926.1,12/12/2011,R,POLARIS PLASTICS LTD          
2011 - DEC,Cultural Env Reg&Plan Services,Street Cleaning - Not highways,Street Cleansing (Inc. Gully)           ,G00492,Supplies & Services           ,Equip Furniture/Materials     ,DA32,Wheeled Bins,177,"1,685.40",10/7/2011,R,MDRC GROUP LTD                
2011 - DEC,Cultural Env Reg&Plan Services,Waste Disposal,Waste Disposal .                        ,G00550,Third Party Payments          ,Private Contractors           ,EH04,Accommodation Based Support,178,"391,269.40",12/28/2011,R,KINGSTON CORPORATION          
2011 - DEC,Cultural Env Reg&Plan Services,Waste Disposal,Waste Disposal .                        ,G00550,Third Party Payments          ,Private Contractors           ,EH10,Contract Payments,179,"32,392.55",12/28/2011,R,KINGSTON CORPORATION          
2011 - DEC,Cultural Env Reg&Plan Services,Waste Disposal,Waste Disposal .                        ,G00550,Third Party Payments          ,Private Contractors           ,EH66,Clinical Waste Disposal,180,670.69,11/30/2011,R,S.GRUNDON (WASTE) LTD.        
2011 - DEC,Cultural Env Reg&Plan Services,Waste Disposal,Waste Disposal .                        ,G00550,Third Party Payments          ,Private Contractors           ,EH96,Hardcore Disposal - Country Waste,181,"1,553.24",11/30/2011,R,CORY ENVIRONMENTAL LIMITED    
2011 - DEC,Cultural Env Reg&Plan Services,Waste Disposal,Garth Road Site                         ,G00580,Supplies & Services           ,Services                      ,DF03,Consultants,182,"1,036.00",11/15/2011,R,HYDER CONSULTING (UK) LTD     
2011 - DEC,Cultural Env Reg&Plan Services,Waste Disposal,Garth Road Site                         ,G00580,Third Party Payments          ,Private Contractors           ,EH63,Paper Haulage,183,"7,476.65",12/13/2011,R,KINGSTON CORPORATION          
2011 - DEC,Cultural Env Reg&Plan Services,Waste Disposal,Garth Road Site                         ,G00580,Third Party Payments          ,Private Contractors           ,EH65,MH Clients,184,"31,250.00",12/15/2011,R,KINGSTON CORPORATION          
2011 - DEC,Highways & Transport Services,Structural Maintenance,Grass Cut/Tr Mtce                       ,G00600,Premises Related Expenditure  ,Ground Maintenance Costs      ,BL03,Maintenance of Grounds,185,"1,090.51",11/4/2011,R,VEOLIA ES (UK) LIMITED        
2011 - DEC,Highways & Transport Services,Structural Maintenance,Grass Cut/Tr Mtce                       ,G00600,Premises Related Expenditure  ,Ground Maintenance Costs      ,BL03,Maintenance of Grounds,186,"13,490.38",11/28/2011,R,VEOLIA ES (UK) LIMITED        
2011 - DEC,Highways & Transport Services,Structural Maintenance,Grass Cut/Tr Mtce                       ,G00600,Premises Related Expenditure  ,Ground Maintenance Costs      ,BL03,Maintenance of Grounds,187,"4,689.34",11/28/2011,R,VEOLIA ES (UK) LIMITED        
2011 - DEC,Highways & Transport Services,Structural Maintenance,Grass Cut/Tr Mtce                       ,G00600,Premises Related Expenditure  ,Ground Maintenance Costs      ,BL03,Maintenance of Grounds,188,"2,694.08",11/22/2011,R,VEOLIA ES (UK) LIMITED        
2011 - DEC,Highways & Transport Services,Structural Maintenance,Grass Cut/Tr Mtce                       ,G00600,Premises Related Expenditure  ,Ground Maintenance Costs      ,BL03,Maintenance of Grounds,189,601.71,11/22/2011,R,VEOLIA ES (UK) LIMITED        
2011 - DEC,Highways & Transport Services,Structural Maintenance,Grass Cut/Tr Mtce                       ,G00600,Premises Related Expenditure  ,Ground Maintenance Costs      ,BL03,Maintenance of Grounds,190,950,11/29/2011,R,COMPLETE WEED CONTROL         
2011 - DEC,Cultural Env Reg&Plan Services,Environmental Health,Dog Control.                            ,G00620,Third Party Payments          ,Private Contractors           ,EH02,Miscellaneous Hired Services,191,"1,850.00",10/31/2011,R,WOODLANDS ANIMAL CARE LTD     
2011 - DEC,Cultural Env Reg&Plan Services,Environmental Health,Dog Control.                            ,G00620,Third Party Payments          ,Private Contractors           ,EH02,Miscellaneous Hired Services,192,"2,858.98",11/21/2011,R,RIVERSIDE ANIMAL SERVICES     
2011 - DEC,Cultural Env Reg&Plan Services,Environmental Health,Dog Control.                            ,G00620,Third Party Payments          ,Private Contractors           ,EH02,Miscellaneous Hired Services,193,"1,481.47",12/20/2011,R,RIVERSIDE ANIMAL SERVICES     
2011 - DEC,Cultural Env Reg&Plan Services,Waste Collection,Recycling Activities                    ,G00640,Third Party Payments          ,Private Contractors           ,EH03,Term Contract,194,"43,163.26",12/13/2011,R,KINGSTON CORPORATION          
2011 - DEC,Cultural Env Reg&Plan Services,Waste Collection,Recycling Activities                    ,G00640,Third Party Payments          ,Private Contractors           ,EH03,Term Contract,195,"43,163.26",12/13/2011,R,KINGSTON CORPORATION          
2011 - DEC,Cultural Env Reg&Plan Services,Waste Collection,Recycling Activities                    ,G00640,Third Party Payments          ,Private Contractors           ,EH03,Term Contract,196,"44,638.98",12/19/2011,R,KINGSTON CORPORATION          
2011 - DEC,Cultural Env Reg&Plan Services,Waste Collection,Recycling Activities                    ,G00640,Third Party Payments          ,Private Contractors           ,EH03,Term Contract,197,"40,935.06",12/28/2011,R,KINGSTON CORPORATION          
2011 - DEC,Cultural Env Reg&Plan Services,Waste Collection,Recycling Activities                    ,G00640,Third Party Payments          ,Private Contractors           ,EH18,Disposal of Kitchen Waste,198,"13,801.03",12/13/2011,R,KINGSTON CORPORATION          
2011 - DEC,Cultural Env Reg&Plan Services,Waste Collection,Recycling Activities                    ,G00640,Third Party Payments          ,Private Contractors           ,EH18,Disposal of Kitchen Waste,199,"13,801.03",12/13/2011,R,KINGSTON CORPORATION          
2011 - DEC,Cultural Env Reg&Plan Services,Waste Collection,Recycling Activities                    ,G00640,Third Party Payments          ,Private Contractors           ,EH18,Disposal of Kitchen Waste,200,"13,291.77",12/19/2011,R,KINGSTON CORPORATION          
2011 - DEC,Cultural Env Reg&Plan Services,Waste Collection,Recycling Activities                    ,G00640,Third Party Payments          ,Private Contractors           ,EH18,Disposal of Kitchen Waste,201,"12,299.31",12/28/2011,R,KINGSTON CORPORATION          
2011 - DEC,Cultural Env Reg&Plan Services,Waste Collection,Recycling Activities                    ,G00640,Third Party Payments          ,Private Contractors           ,EH61,Green Waste Disposal,202,"8,442.50",11/30/2011,R,VIRIDOR WASTE KENT LTD        
2011 - DEC,Cultural Env Reg&Plan Services,Waste Collection,Recycling Activities                    ,G00640,Third Party Payments          ,Private Contractors           ,EH63,Paper Haulage,203,"32,080.32",12/13/2011,R,KINGSTON CORPORATION          
2011 - DEC,Cultural Env Reg&Plan Services,Waste Collection,Recycling Activities                    ,G00640,Third Party Payments          ,Private Contractors           ,EH63,Paper Haulage,204,"32,080.32",12/13/2011,R,KINGSTON CORPORATION          
2011 - DEC,Cultural Env Reg&Plan Services,Waste Collection,Recycling Collection                    ,G00645,Supplies & Services           ,Clothing Unfrms Laundry       ,DC02,Clothing & Uniforms,205,953.7,11/22/2011,R,SAFETY MANAGEMENT             
2011 - DEC,Cultural Env Reg&Plan Services,Waste Collection,Refuse Collection (Operations)          ,G00661,Supplies & Services           ,Equip Furniture/Materials     ,DA32,Wheeled Bins,206,"4,285.00",11/24/2011,R,SPIDER UK LTD                 
2011 - DEC,Cultural Env Reg&Plan Services,Waste Collection,Refuse Collection (Operations)          ,G00661,Supplies & Services           ,Equip Furniture/Materials     ,DA32,Wheeled Bins,207,"2,033.21",12/9/2011,R,UK WASTE CONTAINERS           
2011 - DEC,Cultural Env Reg&Plan Services,Waste Collection,Refuse Collection (Operations)          ,G00661,Supplies & Services           ,Equip Furniture/Materials     ,DA32,Wheeled Bins,208,"2,275.29",11/17/2011,R,UK WASTE CONTAINERS           
2011 - DEC,Cultural Env Reg&Plan Services,Waste Collection,Refuse Collection (Operations)          ,G00661,Supplies & Services           ,Clothing Unfrms Laundry       ,DC02,Clothing & Uniforms,209,"1,396.00",10/18/2011,R,ACTIVITY WORKWEAR LIMITED     
2011 - DEC,Cultural Env Reg&Plan Services,Street Cleaning - Not highways,Waste Enforcement                       ,G00680,Third Party Payments          ,Private Contractors           ,EH56,Carriageway/Fway Maint,210,"1,405.00",12/19/2011,R,REDACTED
2011 - DEC,Cultural Env Reg&Plan Services,Consumer Protection,Trading Standards                       ,G00690,Employees                     ,Indirect Employee Expenses    ,AB02,Recruitment Adverts,211,845.4,12/6/2011,R,PENNA BARKERS                 
2011 - DEC,Cultural Env Reg&Plan Services,Environmental Health,Health & Safety                         ,G00697,Supplies & Services           ,Grants and Subscriptions      ,DJ04,Subscriptions,212,"1,057.00",11/24/2011,R,CHARTERED INST.OF ENVIR.HEALTH
2011 - DEC,Cultural Env Reg&Plan Services,Environmental Health,Pest Control                            ,G00724,Supplies & Services           ,Equip Furniture/Materials     ,DA09,Equip-Purchases,213,977.69,12/12/2011,R,KILLGERM CHEMICALS LIMITED    
2011 - DEC,Cultural Env Reg&Plan Services,Environmental Health,Housing/Env                             ,G00730,Employees                     ,Direct Employee Expenses      ,AA17,Agency Staff & Casual Paymts,214,904.82,11/23/2011,R,REDACTED
2011 - DEC,Cultural Env Reg&Plan Services,Environmental Health,Housing/Env                             ,G00730,Employees                     ,Direct Employee Expenses      ,AA17,Agency Staff & Casual Paymts,215,893.55,11/30/2011,R,REDACTED
2011 - DEC,Cultural Env Reg&Plan Services,Environmental Health,Housing/Env                             ,G00730,Employees                     ,Direct Employee Expenses      ,AA17,Agency Staff & Casual Paymts,216,861.35,12/7/2011,R,REDACTED
2011 - DEC,Cultural Env Reg&Plan Services,Environmental Health,Housing/Env                             ,G00730,Employees                     ,Direct Employee Expenses      ,AA17,Agency Staff & Casual Paymts,217,869.4,12/14/2011,R,REDACTED
2011 - DEC,Cultural Env Reg&Plan Services,Environmental Health,Housing/Env                             ,G00730,Supplies & Services           ,Grants and Subscriptions      ,DJ04,Subscriptions,218,"1,057.00",11/24/2011,R,CHARTERED INST.OF ENVIR.HEALTH
2011 - DEC,Cultural Env Reg&Plan Services,SMSS (Env),Waste Management                        ,G00900,Premises Related Expenditure  ,Water Services                ,BE01,Use of Water (Metered),219,"1,068.06",11/25/2011,R,SUTTON AND EAST SURREY WATER  
2011 - DEC,Central Services,Gen Grants Bequest & Donations,Vestry Hall                             ,G40314,Employees                     ,Direct Employee Expenses      ,AA17,Agency Staff & Casual Paymts,220,683.85,11/30/2011,R,PCL SECURITY LTD              
2011 - DEC,Central Services,Gen Grants Bequest & Donations,Vestry Hall                             ,G40314,Employees                     ,Direct Employee Expenses      ,AA17,Agency Staff & Casual Paymts,221,"4,443.68",12/12/2011,R,PCL SECURITY LTD              
2011 - DEC,Central Services,Gen Grants Bequest & Donations,Vestry Hall                             ,G40314,Premises Related Expenditure  ,RepairsAlterations&MtceOfBldgs,BA06,Repairs & Maintenance General,222,"4,932.00",11/7/2011,R,LIFESTYLE WINDOW SYSTEMS      
2011 - DEC,Central Services,Gen Grants Bequest & Donations,Vestry Hall                             ,G40314,Premises Related Expenditure  ,Energy Costs                  ,BB02,Electricity,223,"2,860.87",11/29/2011,R,EDF ENERGY                    
2011 - DEC,Central Services,Gen Grants Bequest & Donations,Vestry Hall                             ,G40314,Premises Related Expenditure  ,Energy Costs                  ,BB03,Gas (incl. Butane),224,527.17,12/2/2011,R,KENT COUNTY COUNCIL           
2011 - DEC,Cultural Env Reg&Plan Services,Building Control,Building Control                        ,H01100,Supplies & Services           ,Services                      ,DF57,Consulting Engineers Fees,225,"1,172.00",11/1/2011,R,BSI CUSTOMER SERVICES         
2011 - DEC,Cultural Env Reg&Plan Services,Development Control,Development Control                     ,H01130,Supplies & Services           ,Services                      ,DF02,Misc Advertising/Publicity,226,630,12/3/2011,R,NEWSQUEST (LONDON)LTD         
2011 - DEC,Cultural Env Reg&Plan Services,Development Control,Development Control                     ,H01130,Supplies & Services           ,Services                      ,DF11,Counsel's fees,227,600,11/11/2011,R,REDACTED
2011 - DEC,Cultural Env Reg&Plan Services,Development Control,Development Control                     ,H01130,Oth Grants Reimbmnts/Contribs ,Cost recharges to other bodies,QC10,Recovery of Costs (X),228,771,12/12/2011,R,IBEX INVESTMENTS              
2011 - DEC,Cultural Env Reg&Plan Services,Development Control,Development Control                     ,H01130,Customer and client receipts  ,Fees                          ,RB56,Application Fees X,229,"3,420.00",12/23/2011,R,AMARAH HOLDINGS LTD           
2011 - DEC,Cultural Env Reg&Plan Services,Planning Policy,Spatial Policy                          ,H01173,Supplies & Services           ,Comms and Computing           ,DG07,Computer Software,230,551.73,12/16/2011,R,QBS SOFTWARE LIMITED          
2011 - DEC,Cultural Env Reg&Plan Services,Planning Policy,REGENERATION & INVESTMENT              ,H01174,Employees                     ,Indirect Employee Expenses    ,AB57,External Training Costs,231,"4,950.00",10/27/2011,R,FUTURE OF LONDON              
2011 - DEC,Cultural Env Reg&Plan Services,Planning Policy,HPDG - Physical Regeneration            ,H01178,Supplies & Services           ,Prntng Stnry Gen Off Exp      ,DE01,External Printing,232,"8,000.00",11/25/2011,R,URBAN GRAPHICS                
2011 - DEC,Cultural Env Reg&Plan Services,Planning Policy,HPDG - Physical Regeneration            ,H01178,Supplies & Services           ,Services                      ,DF03,Consultants,233,"1,050.00",12/6/2011,R,REDACTED
2011 - DEC,Cultural Env Reg&Plan Services,Economic Development,LABGI-BUSINESS SUPPORT SERVICE     ,H01219,Third Party Payments          ,Private Contractors           ,EH02,Miscellaneous Hired Services,234,"9,625.00",12/1/2011,R,MERTON CHAMBER OF COMMERCE    
2011 - DEC,Cultural Env Reg&Plan Services,Economic Development,S106 - Town Centre Wimbledon            ,H01228,Supplies & Services           ,Grants and Subscriptions      ,DJ01,Grants,235,"27,500.00",12/1/2011,R,MERTON CHAMBER OF COMMERCE    
2011 - DEC,CS -Oth Operating Inc & Expend,Trading A/c Surpluses/Deficits,Transport-Contract Hire                 ,J01374,Transport Related Expenditure ,Direct Transport Costs        ,CA01,Petrol Derv & Oil,236,"39,673.63",12/7/2011,R,EMO OILS LTD                  
2011 - DEC,CS -Oth Operating Inc & Expend,Trading A/c Surpluses/Deficits,Transport-Contract Hire                 ,J01374,Transport Related Expenditure ,Contract Hire and Op Leasing  ,CC53,Plant Hire for MRCS,237,"2,000.00",11/25/2011,R,NOBLET MUNICIPAL SERVICES LTD 
2011 - DEC,CS -Oth Operating Inc & Expend,Trading A/c Surpluses/Deficits,Transport-Contract Hire                 ,J01374,Transport Related Expenditure ,Contract Hire and Op Leasing  ,CC53,Plant Hire for MRCS,238,"2,464.00",12/3/2011,R,GVS HIRE LTD                  
2011 - DEC,CS -Oth Operating Inc & Expend,Trading A/c Surpluses/Deficits,Transport-Contract Hire                 ,J01374,Transport Related Expenditure ,Contract Hire and Op Leasing  ,CC53,Plant Hire for MRCS,239,535,12/12/2011,R,PHOENIX VEHICLE HIRE LTD      
2011 - DEC,CS -Oth Operating Inc & Expend,Trading A/c Surpluses/Deficits,Transport-Contract Hire                 ,J01374,Transport Related Expenditure ,Contract Hire and Op Leasing  ,CC53,Plant Hire for MRCS,240,535,12/19/2011,R,PHOENIX VEHICLE HIRE LTD      
2011 - DEC,CS -Oth Operating Inc & Expend,Trading A/c Surpluses/Deficits,Transport-Contract Hire                 ,J01374,Transport Related Expenditure ,Contract Hire and Op Leasing  ,CC55,Plant Hire for Parking,241,555.68,11/30/2011,R,REDACTED
2011 - DEC,CS -Oth Operating Inc & Expend,Trading A/c Surpluses/Deficits,Transport-Contract Hire                 ,J01374,Transport Related Expenditure ,Contract Hire and Op Leasing  ,CC57,Plant Hire for Housing,242,702,11/20/2011,R,KENT COUNTY COUNCIL           
2011 - DEC,CS -Oth Operating Inc & Expend,Trading A/c Surpluses/Deficits,Transport-Contract Hire                 ,J01374,Transport Related Expenditure ,Contract Hire and Op Leasing  ,CC60,Vehicle Hire for LB Sutton,243,"3,822.00",11/30/2011,R,BARCLAYS ASSET & SALES FINANCE
2011 - DEC,CS -Oth Operating Inc & Expend,Trading A/c Surpluses/Deficits,Transport-Contract Hire                 ,J01374,Transport Related Expenditure ,Contract Hire and Op Leasing  ,CC60,Vehicle Hire for LB Sutton,244,"1,080.00",11/30/2011,R,BARCLAYS ASSET & SALES FINANCE
2011 - DEC,CS -Oth Operating Inc & Expend,Trading A/c Surpluses/Deficits,Transport-Contract Hire                 ,J01374,Transport Related Expenditure ,Contract Hire and Op Leasing  ,CC60,Vehicle Hire for LB Sutton,245,"1,140.00",11/30/2011,R,BARCLAYS ASSET & SALES FINANCE
2011 - DEC,CS -Oth Operating Inc & Expend,Trading A/c Surpluses/Deficits,Transport-Contract Hire                 ,J01374,Transport Related Expenditure ,Contract Hire and Op Leasing  ,CC60,Vehicle Hire for LB Sutton,246,"1,716.00",11/30/2011,R,BARCLAYS ASSET & SALES FINANCE
2011 - DEC,CS -Oth Operating Inc & Expend,Trading A/c Surpluses/Deficits,Transport-Contract Hire                 ,J01374,Transport Related Expenditure ,Contract Hire and Op Leasing  ,CC60,Vehicle Hire for LB Sutton,247,"1,439.50",11/30/2011,R,CAPITAL CARS                  
2011 - DEC,CS -Oth Operating Inc & Expend,Trading A/c Surpluses/Deficits,Transport-Contract Hire                 ,J01374,Transport Related Expenditure ,Contract Hire and Op Leasing  ,CC60,Vehicle Hire for LB Sutton,248,"1,125.00",11/29/2011,R,CALVERTON FACTORS LTD         
2011 - DEC,CS -Oth Operating Inc & Expend,Trading A/c Surpluses/Deficits,Transport-Contract Hire                 ,J01374,Transport Related Expenditure ,Contract Hire and Op Leasing  ,CC60,Vehicle Hire for LB Sutton,249,"2,240.80",11/30/2011,R,BRUNSWICK CARS LTD            
2011 - DEC,CS -Oth Operating Inc & Expend,Trading A/c Surpluses/Deficits,Transport-Contract Hire                 ,J01374,Transport Related Expenditure ,Contract Hire and Op Leasing  ,CC64,Mini Cab Hire for Education,250,"7,475.00",12/4/2011,R,KINGSTON ACCESSIBILITY TRAN LT
2011 - DEC,CS -Oth Operating Inc & Expend,Trading A/c Surpluses/Deficits,Transport-Contract Hire                 ,J01374,Transport Related Expenditure ,Contract Hire and Op Leasing  ,CC64,Mini Cab Hire for Education,251,960,12/5/2011,R,REDACTED
2011 - DEC,CS -Oth Operating Inc & Expend,Trading A/c Surpluses/Deficits,Transport-Contract Hire                 ,J01374,Transport Related Expenditure ,Contract Hire and Op Leasing  ,CC64,Mini Cab Hire for Education,252,"8,620.00",12/11/2011,R,KINGSTON ACCESSIBILITY TRAN LT
2011 - DEC,CS -Oth Operating Inc & Expend,Trading A/c Surpluses/Deficits,Transport-Contract Hire                 ,J01374,Transport Related Expenditure ,Contract Hire and Op Leasing  ,CC64,Mini Cab Hire for Education,253,"3,058.00",11/30/2011,R,BRUNSWICK CARS LTD            
2011 - DEC,CS -Oth Operating Inc & Expend,Trading A/c Surpluses/Deficits,Transport-Contract Hire                 ,J01374,Transport Related Expenditure ,Contract Hire and Op Leasing  ,CC64,Mini Cab Hire for Education,254,"1,428.00",11/30/2011,R,BRUNSWICK CARS LTD            
2011 - DEC,CS -Oth Operating Inc & Expend,Trading A/c Surpluses/Deficits,Transport-Contract Hire                 ,J01374,Transport Related Expenditure ,Contract Hire and Op Leasing  ,CC64,Mini Cab Hire for Education,255,760,11/30/2011,R,GALPINS SERVICE               
2011 - DEC,CS -Oth Operating Inc & Expend,Trading A/c Surpluses/Deficits,Transport-Contract Hire                 ,J01374,Transport Related Expenditure ,Contract Hire and Op Leasing  ,CC64,Mini Cab Hire for Education,256,585,11/30/2011,R,BARCLAYS ASSET & SALES FINANCE
2011 - DEC,CS -Oth Operating Inc & Expend,Trading A/c Surpluses/Deficits,Transport-Contract Hire                 ,J01374,Transport Related Expenditure ,Contract Hire and Op Leasing  ,CC64,Mini Cab Hire for Education,257,"1,050.00",11/30/2011,R,CAPITAL CARS                  
2011 - DEC,CS -Oth Operating Inc & Expend,Trading A/c Surpluses/Deficits,Transport-Contract Hire                 ,J01374,Transport Related Expenditure ,Contract Hire and Op Leasing  ,CC64,Mini Cab Hire for Education,258,"2,419.00",11/30/2011,R,BARCLAYS ASSET & SALES FINANCE
2011 - DEC,CS -Oth Operating Inc & Expend,Trading A/c Surpluses/Deficits,Transport-Contract Hire                 ,J01374,Transport Related Expenditure ,Contract Hire and Op Leasing  ,CC64,Mini Cab Hire for Education,259,625.5,11/30/2011,R,CAPITAL CARS                  
2011 - DEC,CS -Oth Operating Inc & Expend,Trading A/c Surpluses/Deficits,Transport-Contract Hire                 ,J01374,Transport Related Expenditure ,Contract Hire and Op Leasing  ,CC64,Mini Cab Hire for Education,260,"2,050.00",12/1/2011,R,NVCAR HIRE LTD                
2011 - DEC,CS -Oth Operating Inc & Expend,Trading A/c Surpluses/Deficits,Transport-Contract Hire                 ,J01374,Transport Related Expenditure ,Contract Hire and Op Leasing  ,CC64,Mini Cab Hire for Education,261,"2,860.00",11/29/2011,R,CALVERTON FACTORS LTD         
2011 - DEC,CS -Oth Operating Inc & Expend,Trading A/c Surpluses/Deficits,Transport-Contract Hire                 ,J01374,Transport Related Expenditure ,Contract Hire and Op Leasing  ,CC64,Mini Cab Hire for Education,262,"1,260.00",11/30/2011,R,CHEAM STATION CARS            
2011 - DEC,CS -Oth Operating Inc & Expend,Trading A/c Surpluses/Deficits,Transport-Contract Hire                 ,J01374,Transport Related Expenditure ,Contract Hire and Op Leasing  ,CC64,Mini Cab Hire for Education,263,"2,268.00",11/30/2011,R,CHEAM STATION CARS            
2011 - DEC,CS -Oth Operating Inc & Expend,Trading A/c Surpluses/Deficits,Transport-Contract Hire                 ,J01374,Transport Related Expenditure ,Contract Hire and Op Leasing  ,CC64,Mini Cab Hire for Education,264,"2,688.00",11/30/2011,R,BARCLAYS ASSET & SALES FINANCE
2011 - DEC,CS -Oth Operating Inc & Expend,Trading A/c Surpluses/Deficits,Transport-Contract Hire                 ,J01374,Transport Related Expenditure ,Contract Hire and Op Leasing  ,CC64,Mini Cab Hire for Education,265,"3,150.00",11/30/2011,R,BARCLAYS ASSET & SALES FINANCE
2011 - DEC,CS -Oth Operating Inc & Expend,Trading A/c Surpluses/Deficits,Transport-Contract Hire                 ,J01374,Transport Related Expenditure ,Contract Hire and Op Leasing  ,CC64,Mini Cab Hire for Education,266,"2,104.50",11/30/2011,R,BARCLAYS ASSET & SALES FINANCE
2011 - DEC,CS -Oth Operating Inc & Expend,Trading A/c Surpluses/Deficits,Transport-Contract Hire                 ,J01374,Transport Related Expenditure ,Contract Hire and Op Leasing  ,CC64,Mini Cab Hire for Education,267,"1,355.00",11/30/2011,R,CAPITAL CARS                  
2011 - DEC,CS -Oth Operating Inc & Expend,Trading A/c Surpluses/Deficits,Transport-Contract Hire                 ,J01374,Transport Related Expenditure ,Contract Hire and Op Leasing  ,CC64,Mini Cab Hire for Education,268,"2,940.00",11/30/2011,R,BARCLAYS ASSET & SALES FINANCE
2011 - DEC,CS -Oth Operating Inc & Expend,Trading A/c Surpluses/Deficits,Transport-Contract Hire                 ,J01374,Transport Related Expenditure ,Contract Hire and Op Leasing  ,CC64,Mini Cab Hire for Education,269,"2,016.00",11/30/2011,R,BARCLAYS ASSET & SALES FINANCE
2011 - DEC,CS -Oth Operating Inc & Expend,Trading A/c Surpluses/Deficits,Transport-Contract Hire                 ,J01374,Transport Related Expenditure ,Contract Hire and Op Leasing  ,CC64,Mini Cab Hire for Education,270,855,11/30/2011,R,CAPITAL CARS                  
2011 - DEC,CS -Oth Operating Inc & Expend,Trading A/c Surpluses/Deficits,Transport-Contract Hire                 ,J01374,Transport Related Expenditure ,Contract Hire and Op Leasing  ,CC64,Mini Cab Hire for Education,271,"1,764.00",11/30/2011,R,BARCLAYS ASSET & SALES FINANCE
2011 - DEC,CS -Oth Operating Inc & Expend,Trading A/c Surpluses/Deficits,Transport-Contract Hire                 ,J01374,Transport Related Expenditure ,Contract Hire and Op Leasing  ,CC64,Mini Cab Hire for Education,272,"3,200.00",11/30/2011,R,BARCLAYS ASSET & SALES FINANCE
2011 - DEC,CS -Oth Operating Inc & Expend,Trading A/c Surpluses/Deficits,Transport-Contract Hire                 ,J01374,Transport Related Expenditure ,Contract Hire and Op Leasing  ,CC64,Mini Cab Hire for Education,273,"1,596.00",11/30/2011,R,BARCLAYS ASSET & SALES FINANCE
2011 - DEC,CS -Oth Operating Inc & Expend,Trading A/c Surpluses/Deficits,Transport-Contract Hire                 ,J01374,Transport Related Expenditure ,Contract Hire and Op Leasing  ,CC64,Mini Cab Hire for Education,274,"1,056.00",12/1/2011,R,NVCAR HIRE LTD                
2011 - DEC,CS -Oth Operating Inc & Expend,Trading A/c Surpluses/Deficits,Transport-Contract Hire                 ,J01374,Transport Related Expenditure ,Contract Hire and Op Leasing  ,CC64,Mini Cab Hire for Education,275,"2,244.00",11/30/2011,R,BARCLAYS ASSET & SALES FINANCE
2011 - DEC,CS -Oth Operating Inc & Expend,Trading A/c Surpluses/Deficits,Transport-Contract Hire                 ,J01374,Transport Related Expenditure ,Contract Hire and Op Leasing  ,CC64,Mini Cab Hire for Education,276,"2,552.00",11/30/2011,R,BARCLAYS ASSET & SALES FINANCE
2011 - DEC,CS -Oth Operating Inc & Expend,Trading A/c Surpluses/Deficits,Transport-Contract Hire                 ,J01374,Transport Related Expenditure ,Contract Hire and Op Leasing  ,CC64,Mini Cab Hire for Education,277,777,11/30/2011,R,BARCLAYS ASSET & SALES FINANCE
2011 - DEC,CS -Oth Operating Inc & Expend,Trading A/c Surpluses/Deficits,Transport-Contract Hire                 ,J01374,Transport Related Expenditure ,Contract Hire and Op Leasing  ,CC64,Mini Cab Hire for Education,278,"2,940.00",11/30/2011,R,BARCLAYS ASSET & SALES FINANCE
2011 - DEC,CS -Oth Operating Inc & Expend,Trading A/c Surpluses/Deficits,Transport-Contract Hire                 ,J01374,Transport Related Expenditure ,Contract Hire and Op Leasing  ,CC64,Mini Cab Hire for Education,279,"1,092.00",11/30/2011,R,BARCLAYS ASSET & SALES FINANCE
2011 - DEC,CS -Oth Operating Inc & Expend,Trading A/c Surpluses/Deficits,Transport-Contract Hire                 ,J01374,Transport Related Expenditure ,Contract Hire and Op Leasing  ,CC64,Mini Cab Hire for Education,280,"1,144.00",11/30/2011,R,BARCLAYS ASSET & SALES FINANCE
2011 - DEC,CS -Oth Operating Inc & Expend,Trading A/c Surpluses/Deficits,Transport-Contract Hire                 ,J01374,Transport Related Expenditure ,Contract Hire and Op Leasing  ,CC64,Mini Cab Hire for Education,281,"3,060.00",11/30/2011,R,BARCLAYS ASSET & SALES FINANCE
2011 - DEC,CS -Oth Operating Inc & Expend,Trading A/c Surpluses/Deficits,Transport-Contract Hire                 ,J01374,Transport Related Expenditure ,Contract Hire and Op Leasing  ,CC64,Mini Cab Hire for Education,282,"2,112.00",11/30/2011,R,BARCLAYS ASSET & SALES FINANCE
2011 - DEC,CS -Oth Operating Inc & Expend,Trading A/c Surpluses/Deficits,Transport-Contract Hire                 ,J01374,Transport Related Expenditure ,Contract Hire and Op Leasing  ,CC64,Mini Cab Hire for Education,283,"1,584.00",11/30/2011,R,BARCLAYS ASSET & SALES FINANCE
2011 - DEC,CS -Oth Operating Inc & Expend,Trading A/c Surpluses/Deficits,Transport-Contract Hire                 ,J01374,Transport Related Expenditure ,Contract Hire and Op Leasing  ,CC64,Mini Cab Hire for Education,284,"1,100.00",11/30/2011,R,BARCLAYS ASSET & SALES FINANCE
2011 - DEC,CS -Oth Operating Inc & Expend,Trading A/c Surpluses/Deficits,Transport-Contract Hire                 ,J01374,Transport Related Expenditure ,Contract Hire and Op Leasing  ,CC64,Mini Cab Hire for Education,285,"1,050.00",11/30/2011,R,BARCLAYS ASSET & SALES FINANCE
2011 - DEC,CS -Oth Operating Inc & Expend,Trading A/c Surpluses/Deficits,Transport-Contract Hire                 ,J01374,Transport Related Expenditure ,Contract Hire and Op Leasing  ,CC64,Mini Cab Hire for Education,286,"2,622.48",11/30/2011,R,BARCLAYS ASSET & SALES FINANCE
2011 - DEC,CS -Oth Operating Inc & Expend,Trading A/c Surpluses/Deficits,Transport-Contract Hire                 ,J01374,Transport Related Expenditure ,Contract Hire and Op Leasing  ,CC64,Mini Cab Hire for Education,287,"2,600.00",11/30/2011,R,CAPITAL CARS                  
2011 - DEC,CS -Oth Operating Inc & Expend,Trading A/c Surpluses/Deficits,Transport-Contract Hire                 ,J01374,Transport Related Expenditure ,Contract Hire and Op Leasing  ,CC64,Mini Cab Hire for Education,288,"1,776.00",11/30/2011,R,BARCLAYS ASSET & SALES FINANCE
2011 - DEC,CS -Oth Operating Inc & Expend,Trading A/c Surpluses/Deficits,Transport-Contract Hire                 ,J01374,Transport Related Expenditure ,Contract Hire and Op Leasing  ,CC64,Mini Cab Hire for Education,289,"1,320.00",11/30/2011,R,BARCLAYS ASSET & SALES FINANCE
2011 - DEC,CS -Oth Operating Inc & Expend,Trading A/c Surpluses/Deficits,Transport-Contract Hire                 ,J01374,Transport Related Expenditure ,Contract Hire and Op Leasing  ,CC64,Mini Cab Hire for Education,290,630,11/30/2011,R,BARCLAYS ASSET & SALES FINANCE
2011 - DEC,CS -Oth Operating Inc & Expend,Trading A/c Surpluses/Deficits,Transport-Contract Hire                 ,J01374,Transport Related Expenditure ,Contract Hire and Op Leasing  ,CC64,Mini Cab Hire for Education,291,"1,248.00",11/30/2011,R,BARCLAYS ASSET & SALES FINANCE
2011 - DEC,CS -Oth Operating Inc & Expend,Trading A/c Surpluses/Deficits,Transport-Contract Hire                 ,J01374,Transport Related Expenditure ,Contract Hire and Op Leasing  ,CC64,Mini Cab Hire for Education,292,504,11/30/2011,R,AERIAL CAR SERVICES LTD       
2011 - DEC,CS -Oth Operating Inc & Expend,Trading A/c Surpluses/Deficits,Transport-Contract Hire                 ,J01374,Transport Related Expenditure ,Contract Hire and Op Leasing  ,CC64,Mini Cab Hire for Education,293,924,11/30/2011,R,AERIAL CAR SERVICES LTD       
2011 - DEC,CS -Oth Operating Inc & Expend,Trading A/c Surpluses/Deficits,Transport-Contract Hire                 ,J01374,Transport Related Expenditure ,Contract Hire and Op Leasing  ,CC64,Mini Cab Hire for Education,294,"1,560.00",11/30/2011,R,BARCLAYS ASSET & SALES FINANCE
2011 - DEC,CS -Oth Operating Inc & Expend,Trading A/c Surpluses/Deficits,Transport-Contract Hire                 ,J01374,Transport Related Expenditure ,Contract Hire and Op Leasing  ,CC64,Mini Cab Hire for Education,295,525,11/30/2011,R,AERIAL CAR SERVICES LTD       
2011 - DEC,CS -Oth Operating Inc & Expend,Trading A/c Surpluses/Deficits,Transport-Contract Hire                 ,J01374,Transport Related Expenditure ,Contract Hire and Op Leasing  ,CC64,Mini Cab Hire for Education,296,700,11/30/2011,R,AERIAL CAR SERVICES LTD       
2011 - DEC,CS -Oth Operating Inc & Expend,Trading A/c Surpluses/Deficits,Transport-Contract Hire                 ,J01374,Transport Related Expenditure ,Contract Hire and Op Leasing  ,CC64,Mini Cab Hire for Education,297,"1,596.00",11/30/2011,R,BARCLAYS ASSET & SALES FINANCE
2011 - DEC,CS -Oth Operating Inc & Expend,Trading A/c Surpluses/Deficits,Transport-Contract Hire                 ,J01374,Transport Related Expenditure ,Contract Hire and Op Leasing  ,CC64,Mini Cab Hire for Education,298,760,11/30/2011,R,CAPITAL CARS                  
2011 - DEC,CS -Oth Operating Inc & Expend,Trading A/c Surpluses/Deficits,Transport-Contract Hire                 ,J01374,Transport Related Expenditure ,Contract Hire and Op Leasing  ,CC64,Mini Cab Hire for Education,299,"3,354.00",11/30/2011,R,BARCLAYS ASSET & SALES FINANCE
2011 - DEC,CS -Oth Operating Inc & Expend,Trading A/c Surpluses/Deficits,Transport-Contract Hire                 ,J01374,Transport Related Expenditure ,Contract Hire and Op Leasing  ,CC64,Mini Cab Hire for Education,300,"2,646.00",11/30/2011,R,BARCLAYS ASSET & SALES FINANCE
2011 - DEC,CS -Oth Operating Inc & Expend,Trading A/c Surpluses/Deficits,Transport-Contract Hire                 ,J01374,Transport Related Expenditure ,Contract Hire and Op Leasing  ,CC64,Mini Cab Hire for Education,301,"1,596.00",11/30/2011,R,BARCLAYS ASSET & SALES FINANCE
2011 - DEC,CS -Oth Operating Inc & Expend,Trading A/c Surpluses/Deficits,Transport-Contract Hire                 ,J01374,Transport Related Expenditure ,Contract Hire and Op Leasing  ,CC64,Mini Cab Hire for Education,302,"1,738.00",11/30/2011,R,BARCLAYS ASSET & SALES FINANCE
2011 - DEC,CS -Oth Operating Inc & Expend,Trading A/c Surpluses/Deficits,Transport-Contract Hire                 ,J01374,Transport Related Expenditure ,Contract Hire and Op Leasing  ,CC64,Mini Cab Hire for Education,303,"1,443.20",11/30/2011,R,BRUNSWICK CARS LTD            
2011 - DEC,CS -Oth Operating Inc & Expend,Trading A/c Surpluses/Deficits,Transport-Contract Hire                 ,J01374,Transport Related Expenditure ,Contract Hire and Op Leasing  ,CC64,Mini Cab Hire for Education,304,580,12/13/2011,R,SHERWOOD TRANSPORT GROUP      
2011 - DEC,CS -Oth Operating Inc & Expend,Trading A/c Surpluses/Deficits,Transport-Contract Hire                 ,J01374,Transport Related Expenditure ,Contract Hire and Op Leasing  ,CC64,Mini Cab Hire for Education,305,"1,427.80",12/13/2011,R,SHERWOOD TRANSPORT GROUP      
2011 - DEC,CS -Oth Operating Inc & Expend,Trading A/c Surpluses/Deficits,Transport-Contract Hire                 ,J01374,Transport Related Expenditure ,Contract Hire and Op Leasing  ,CC64,Mini Cab Hire for Education,306,"1,911.00",12/13/2011,R,SHERWOOD TRANSPORT GROUP      
2011 - DEC,CS -Oth Operating Inc & Expend,Trading A/c Surpluses/Deficits,Transport-Contract Hire                 ,J01374,Transport Related Expenditure ,Contract Hire and Op Leasing  ,CC64,Mini Cab Hire for Education,307,"3,339.00",12/13/2011,R,SHERWOOD TRANSPORT GROUP      
2011 - DEC,CS -Oth Operating Inc & Expend,Trading A/c Surpluses/Deficits,Transport-Contract Hire                 ,J01374,Transport Related Expenditure ,Contract Hire and Op Leasing  ,CC64,Mini Cab Hire for Education,308,"1,038.40",12/13/2011,R,SHERWOOD TRANSPORT GROUP      
2011 - DEC,CS -Oth Operating Inc & Expend,Trading A/c Surpluses/Deficits,Transport-Contract Hire                 ,J01374,Transport Related Expenditure ,Contract Hire and Op Leasing  ,CC64,Mini Cab Hire for Education,309,"2,468.20",12/13/2011,R,SHERWOOD TRANSPORT GROUP      
2011 - DEC,CS -Oth Operating Inc & Expend,Trading A/c Surpluses/Deficits,Transport-Contract Hire                 ,J01374,Transport Related Expenditure ,Contract Hire and Op Leasing  ,CC64,Mini Cab Hire for Education,310,660,12/13/2011,R,SHERWOOD TRANSPORT GROUP      
2011 - DEC,CS -Oth Operating Inc & Expend,Trading A/c Surpluses/Deficits,Transport-Contract Hire                 ,J01374,Transport Related Expenditure ,Contract Hire and Op Leasing  ,CC64,Mini Cab Hire for Education,311,821,11/30/2011,R,BARCLAYS ASSET & SALES FINANCE
2011 - DEC,CS -Oth Operating Inc & Expend,Trading A/c Surpluses/Deficits,Transport-Contract Hire                 ,J01374,Transport Related Expenditure ,Contract Hire and Op Leasing  ,CC64,Mini Cab Hire for Education,312,"4,053.00",11/30/2011,R,BARCLAYS ASSET & SALES FINANCE
2011 - DEC,CS -Oth Operating Inc & Expend,Trading A/c Surpluses/Deficits,Transport-Contract Hire                 ,J01374,Transport Related Expenditure ,Contract Hire and Op Leasing  ,CC64,Mini Cab Hire for Education,313,748,11/30/2011,R,CAPITAL CARS                  
2011 - DEC,CS -Oth Operating Inc & Expend,Trading A/c Surpluses/Deficits,Transport-Contract Hire                 ,J01374,Transport Related Expenditure ,Contract Hire and Op Leasing  ,CC64,Mini Cab Hire for Education,314,585,11/30/2011,R,BARCLAYS ASSET & SALES FINANCE
2011 - DEC,CS -Oth Operating Inc & Expend,Trading A/c Surpluses/Deficits,Transport-Contract Hire                 ,J01374,Transport Related Expenditure ,Contract Hire and Op Leasing  ,CC64,Mini Cab Hire for Education,315,"8,616.00",12/18/2011,R,KINGSTON ACCESSIBILITY TRAN LT
2011 - DEC,CS -Oth Operating Inc & Expend,Trading A/c Surpluses/Deficits,Transport-Contract Hire                 ,J01374,Transport Related Expenditure ,Contract Hire and Op Leasing  ,CC64,Mini Cab Hire for Education,316,756,11/30/2011,R,SILVERBURN FINANCE (UK) LTD   
2011 - DEC,CS -Oth Operating Inc & Expend,Trading A/c Surpluses/Deficits,Transport-Contract Hire                 ,J01374,Transport Related Expenditure ,Contract Hire and Op Leasing  ,CC64,Mini Cab Hire for Education,317,"1,628.00",11/30/2011,R,SILVERBURN FINANCE (UK) LTD   
2011 - DEC,CS -Oth Operating Inc & Expend,Trading A/c Surpluses/Deficits,Transport-Contract Hire                 ,J01374,Transport Related Expenditure ,Contract Hire and Op Leasing  ,CC64,Mini Cab Hire for Education,318,"1,573.00",11/30/2011,R,SILVERBURN FINANCE (UK) LTD   
2011 - DEC,CS -Oth Operating Inc & Expend,Trading A/c Surpluses/Deficits,Transport-Contract Hire                 ,J01374,Transport Related Expenditure ,Contract Hire and Op Leasing  ,CC64,Mini Cab Hire for Education,319,"2,858.52",11/30/2011,R,SILVERBURN FINANCE (UK) LTD   
2011 - DEC,CS -Oth Operating Inc & Expend,Trading A/c Surpluses/Deficits,Transport-Contract Hire                 ,J01374,Transport Related Expenditure ,Contract Hire and Op Leasing  ,CC64,Mini Cab Hire for Education,320,840,11/30/2011,R,SILVERBURN FINANCE (UK) LTD   
2011 - DEC,CS -Oth Operating Inc & Expend,Trading A/c Surpluses/Deficits,Transport-Contract Hire                 ,J01374,Transport Related Expenditure ,Contract Hire and Op Leasing  ,CC64,Mini Cab Hire for Education,321,"1,512.00",11/30/2011,R,SILVERBURN FINANCE (UK) LTD   
2011 - DEC,CS -Oth Operating Inc & Expend,Trading A/c Surpluses/Deficits,Transport-Contract Hire                 ,J01374,Transport Related Expenditure ,Contract Hire and Op Leasing  ,CC64,Mini Cab Hire for Education,322,"2,170.00",11/30/2011,R,SILVERBURN FINANCE (UK) LTD   
2011 - DEC,CS -Oth Operating Inc & Expend,Trading A/c Surpluses/Deficits,Transport-Contract Hire                 ,J01374,Transport Related Expenditure ,Contract Hire and Op Leasing  ,CC64,Mini Cab Hire for Education,323,984,11/30/2011,R,SILVERBURN FINANCE (UK) LTD   
2011 - DEC,CS -Oth Operating Inc & Expend,Trading A/c Surpluses/Deficits,Transport-Contract Hire                 ,J01374,Transport Related Expenditure ,Contract Hire and Op Leasing  ,CC64,Mini Cab Hire for Education,324,"2,046.00",11/30/2011,R,SILVERBURN FINANCE (UK) LTD   
2011 - DEC,CS -Oth Operating Inc & Expend,Trading A/c Surpluses/Deficits,Transport-Contract Hire                 ,J01374,Transport Related Expenditure ,Contract Hire and Op Leasing  ,CC64,Mini Cab Hire for Education,325,840,11/30/2011,R,SILVERBURN FINANCE (UK) LTD   
2011 - DEC,CS -Oth Operating Inc & Expend,Trading A/c Surpluses/Deficits,Transport-Contract Hire                 ,J01374,Transport Related Expenditure ,Contract Hire and Op Leasing  ,CC64,Mini Cab Hire for Education,326,"1,120.00",11/30/2011,R,SILVERBURN FINANCE (UK) LTD   
2011 - DEC,CS -Oth Operating Inc & Expend,Trading A/c Surpluses/Deficits,Transport-Contract Hire                 ,J01374,Transport Related Expenditure ,Contract Hire and Op Leasing  ,CC64,Mini Cab Hire for Education,327,646,11/30/2011,R,SILVERBURN FINANCE (UK) LTD   
2011 - DEC,CS -Oth Operating Inc & Expend,Trading A/c Surpluses/Deficits,Transport-Contract Hire                 ,J01374,Transport Related Expenditure ,Contract Hire and Op Leasing  ,CC64,Mini Cab Hire for Education,328,"1,260.00",11/30/2011,R,SILVERBURN FINANCE (UK) LTD   
2011 - DEC,CS -Oth Operating Inc & Expend,Trading A/c Surpluses/Deficits,Transport-Contract Hire                 ,J01374,Transport Related Expenditure ,Contract Hire and Op Leasing  ,CC64,Mini Cab Hire for Education,329,840,11/30/2011,R,SILVERBURN FINANCE (UK) LTD   
2011 - DEC,CS -Oth Operating Inc & Expend,Trading A/c Surpluses/Deficits,Transport-Contract Hire                 ,J01374,Transport Related Expenditure ,Contract Hire and Op Leasing  ,CC64,Mini Cab Hire for Education,330,"1,176.00",11/30/2011,R,SILVERBURN FINANCE (UK) LTD   
2011 - DEC,CS -Oth Operating Inc & Expend,Trading A/c Surpluses/Deficits,Transport-Contract Hire                 ,J01374,Transport Related Expenditure ,Contract Hire and Op Leasing  ,CC64,Mini Cab Hire for Education,331,"1,386.00",11/30/2011,R,SILVERBURN FINANCE (UK) LTD   
2011 - DEC,CS -Oth Operating Inc & Expend,Trading A/c Surpluses/Deficits,Transport-Contract Hire                 ,J01374,Transport Related Expenditure ,Contract Hire and Op Leasing  ,CC64,Mini Cab Hire for Education,332,882,11/30/2011,R,SILVERBURN FINANCE (UK) LTD   
2011 - DEC,CS -Oth Operating Inc & Expend,Trading A/c Surpluses/Deficits,Transport-Contract Hire                 ,J01374,Transport Related Expenditure ,Contract Hire and Op Leasing  ,CC64,Mini Cab Hire for Education,333,"1,708.00",12/24/2011,R,KINGSTON ACCESSIBILITY TRAN LT
2011 - DEC,CS -Oth Operating Inc & Expend,Trading A/c Surpluses/Deficits,Transport-Contract Hire                 ,J01374,Transport Related Expenditure ,Contract Hire and Op Leasing  ,CC64,Mini Cab Hire for Education,334,588,12/7/2011,R,LIVE IN GREEN LTD             
2011 - DEC,CS -Oth Operating Inc & Expend,Trading A/c Surpluses/Deficits,Transport-Contract Hire                 ,J01374,Transport Related Expenditure ,Contract Hire and Op Leasing  ,CC65,Vehicle Hire for Education,335,760,11/30/2011,R,BARCLAYS ASSET & SALES FINANCE
2011 - DEC,CS -Oth Operating Inc & Expend,Trading A/c Surpluses/Deficits,Transport-Contract Hire                 ,J01374,Transport Related Expenditure ,Contract Hire and Op Leasing  ,CC65,Vehicle Hire for Education,336,"1,700.00",11/30/2011,R,BARCLAYS ASSET & SALES FINANCE
2011 - DEC,CS -Oth Operating Inc & Expend,Trading A/c Surpluses/Deficits,Transport-Contract Hire                 ,J01374,Transport Related Expenditure ,Contract Hire and Op Leasing  ,CC65,Vehicle Hire for Education,337,570,11/30/2011,R,BARCLAYS ASSET & SALES FINANCE
2011 - DEC,CS -Oth Operating Inc & Expend,Trading A/c Surpluses/Deficits,Transport-Contract Hire                 ,J01374,Transport Related Expenditure ,Contract Hire and Op Leasing  ,CC65,Vehicle Hire for Education,338,"4,116.00",11/30/2011,R,BARCLAYS ASSET & SALES FINANCE
2011 - DEC,CS -Oth Operating Inc & Expend,Trading A/c Surpluses/Deficits,Transport-Contract Hire                 ,J01374,Transport Related Expenditure ,Contract Hire and Op Leasing  ,CC65,Vehicle Hire for Education,339,882,11/30/2011,R,BARCLAYS ASSET & SALES FINANCE
2011 - DEC,CS -Oth Operating Inc & Expend,Trading A/c Surpluses/Deficits,Transport-Contract Hire                 ,J01374,Transport Related Expenditure ,Contract Hire and Op Leasing  ,CC65,Vehicle Hire for Education,340,600,11/30/2011,R,BARCLAYS ASSET & SALES FINANCE
2011 - DEC,CS -Oth Operating Inc & Expend,Trading A/c Surpluses/Deficits,Transport-Contract Hire                 ,J01374,Transport Related Expenditure ,Contract Hire and Op Leasing  ,CC65,Vehicle Hire for Education,341,"8,682.00",12/8/2011,R,KENT COUNTY COUNCIL           
2011 - DEC,CS -Oth Operating Inc & Expend,Trading A/c Surpluses/Deficits,Transport-Contract Hire                 ,J01374,Transport Related Expenditure ,Contract Hire and Op Leasing  ,CC66,Mini Cab Hire -Soc Serv -Child,342,"1,394.40",12/4/2011,R,KINGSTON ACCESSIBILITY TRAN LT
2011 - DEC,CS -Oth Operating Inc & Expend,Trading A/c Surpluses/Deficits,Transport-Contract Hire                 ,J01374,Transport Related Expenditure ,Contract Hire and Op Leasing  ,CC66,Mini Cab Hire -Soc Serv -Child,343,"1,688.00",12/11/2011,R,KINGSTON ACCESSIBILITY TRAN LT
2011 - DEC,CS -Oth Operating Inc & Expend,Trading A/c Surpluses/Deficits,Transport-Contract Hire                 ,J01374,Transport Related Expenditure ,Contract Hire and Op Leasing  ,CC66,Mini Cab Hire -Soc Serv -Child,344,"2,205.00",11/29/2011,R,CALVERTON FACTORS LTD         
2011 - DEC,CS -Oth Operating Inc & Expend,Trading A/c Surpluses/Deficits,Transport-Contract Hire                 ,J01374,Transport Related Expenditure ,Contract Hire and Op Leasing  ,CC66,Mini Cab Hire -Soc Serv -Child,345,616,11/30/2011,R,BARCLAYS ASSET & SALES FINANCE
2011 - DEC,CS -Oth Operating Inc & Expend,Trading A/c Surpluses/Deficits,Transport-Contract Hire                 ,J01374,Transport Related Expenditure ,Contract Hire and Op Leasing  ,CC66,Mini Cab Hire -Soc Serv -Child,346,"1,155.00",12/13/2011,R,SHERWOOD TRANSPORT GROUP      
2011 - DEC,CS -Oth Operating Inc & Expend,Trading A/c Surpluses/Deficits,Transport-Contract Hire                 ,J01374,Transport Related Expenditure ,Contract Hire and Op Leasing  ,CC66,Mini Cab Hire -Soc Serv -Child,347,"1,698.00",12/18/2011,R,KINGSTON ACCESSIBILITY TRAN LT
2011 - DEC,CS -Oth Operating Inc & Expend,Trading A/c Surpluses/Deficits,Transport-Contract Hire                 ,J01374,Transport Related Expenditure ,Contract Hire and Op Leasing  ,CC67,Mini Cab Hire -Soc Serv -Adult,348,"1,122.00",12/4/2011,R,KINGSTON ACCESSIBILITY TRAN LT
2011 - DEC,CS -Oth Operating Inc & Expend,Trading A/c Surpluses/Deficits,Transport-Contract Hire                 ,J01374,Transport Related Expenditure ,Contract Hire and Op Leasing  ,CC67,Mini Cab Hire -Soc Serv -Adult,349,600,11/30/2011,R,BARCLAYS ASSET & SALES FINANCE
2011 - DEC,CS -Oth Operating Inc & Expend,Trading A/c Surpluses/Deficits,Transport-Contract Hire                 ,J01374,Transport Related Expenditure ,Contract Hire and Op Leasing  ,CC67,Mini Cab Hire -Soc Serv -Adult,350,522,11/30/2011,R,BARCLAYS ASSET & SALES FINANCE
2011 - DEC,CS -Oth Operating Inc & Expend,Trading A/c Surpluses/Deficits,Transport-Contract Hire                 ,J01374,Transport Related Expenditure ,Contract Hire and Op Leasing  ,CC67,Mini Cab Hire -Soc Serv -Adult,351,728,11/30/2011,R,BARCLAYS ASSET & SALES FINANCE
2011 - DEC,CS -Oth Operating Inc & Expend,Trading A/c Surpluses/Deficits,Transport-Contract Hire                 ,J01374,Transport Related Expenditure ,Contract Hire and Op Leasing  ,CC67,Mini Cab Hire -Soc Serv -Adult,352,"1,764.00",11/30/2011,R,BARCLAYS ASSET & SALES FINANCE
2011 - DEC,CS -Oth Operating Inc & Expend,Trading A/c Surpluses/Deficits,Transport-Contract Hire                 ,J01374,Transport Related Expenditure ,Contract Hire and Op Leasing  ,CC67,Mini Cab Hire -Soc Serv -Adult,353,"1,595.58",11/30/2011,R,BARCLAYS ASSET & SALES FINANCE
2011 - DEC,CS -Oth Operating Inc & Expend,Trading A/c Surpluses/Deficits,Transport-Contract Hire                 ,J01374,Transport Related Expenditure ,Contract Hire and Op Leasing  ,CC67,Mini Cab Hire -Soc Serv -Adult,354,696,11/30/2011,R,BARCLAYS ASSET & SALES FINANCE
2011 - DEC,CS -Oth Operating Inc & Expend,Trading A/c Surpluses/Deficits,Transport-Contract Hire                 ,J01374,Transport Related Expenditure ,Contract Hire and Op Leasing  ,CC67,Mini Cab Hire -Soc Serv -Adult,355,957.94,11/30/2011,R,BARCLAYS ASSET & SALES FINANCE
2011 - DEC,CS -Oth Operating Inc & Expend,Trading A/c Surpluses/Deficits,Transport-Contract Hire                 ,J01374,Transport Related Expenditure ,Contract Hire and Op Leasing  ,CC67,Mini Cab Hire -Soc Serv -Adult,356,"1,196.50",12/11/2011,R,KINGSTON ACCESSIBILITY TRAN LT
2011 - DEC,CS -Oth Operating Inc & Expend,Trading A/c Surpluses/Deficits,Transport-Contract Hire                 ,J01374,Transport Related Expenditure ,Contract Hire and Op Leasing  ,CC67,Mini Cab Hire -Soc Serv -Adult,357,880,11/30/2011,R,AERIAL CAR SERVICES LTD       
2011 - DEC,CS -Oth Operating Inc & Expend,Trading A/c Surpluses/Deficits,Transport-Contract Hire                 ,J01374,Transport Related Expenditure ,Contract Hire and Op Leasing  ,CC67,Mini Cab Hire -Soc Serv -Adult,358,"1,380.00",11/30/2011,R,BARCLAYS ASSET & SALES FINANCE
2011 - DEC,CS -Oth Operating Inc & Expend,Trading A/c Surpluses/Deficits,Transport-Contract Hire                 ,J01374,Transport Related Expenditure ,Contract Hire and Op Leasing  ,CC67,Mini Cab Hire -Soc Serv -Adult,359,784,11/30/2011,R,BARCLAYS ASSET & SALES FINANCE
2011 - DEC,CS -Oth Operating Inc & Expend,Trading A/c Surpluses/Deficits,Transport-Contract Hire                 ,J01374,Transport Related Expenditure ,Contract Hire and Op Leasing  ,CC67,Mini Cab Hire -Soc Serv -Adult,360,"1,248.00",11/30/2011,R,BARCLAYS ASSET & SALES FINANCE
2011 - DEC,CS -Oth Operating Inc & Expend,Trading A/c Surpluses/Deficits,Transport-Contract Hire                 ,J01374,Transport Related Expenditure ,Contract Hire and Op Leasing  ,CC67,Mini Cab Hire -Soc Serv -Adult,361,882,11/30/2011,R,CAPITAL CARS                  
2011 - DEC,CS -Oth Operating Inc & Expend,Trading A/c Surpluses/Deficits,Transport-Contract Hire                 ,J01374,Transport Related Expenditure ,Contract Hire and Op Leasing  ,CC67,Mini Cab Hire -Soc Serv -Adult,362,522,11/30/2011,R,BARCLAYS ASSET & SALES FINANCE
2011 - DEC,CS -Oth Operating Inc & Expend,Trading A/c Surpluses/Deficits,Transport-Contract Hire                 ,J01374,Transport Related Expenditure ,Contract Hire and Op Leasing  ,CC67,Mini Cab Hire -Soc Serv -Adult,363,576,11/30/2011,R,BARCLAYS ASSET & SALES FINANCE
2011 - DEC,CS -Oth Operating Inc & Expend,Trading A/c Surpluses/Deficits,Transport-Contract Hire                 ,J01374,Transport Related Expenditure ,Contract Hire and Op Leasing  ,CC67,Mini Cab Hire -Soc Serv -Adult,364,"1,056.00",11/30/2011,R,BARCLAYS ASSET & SALES FINANCE
2011 - DEC,CS -Oth Operating Inc & Expend,Trading A/c Surpluses/Deficits,Transport-Contract Hire                 ,J01374,Transport Related Expenditure ,Contract Hire and Op Leasing  ,CC67,Mini Cab Hire -Soc Serv -Adult,365,696,11/30/2011,R,BARCLAYS ASSET & SALES FINANCE
2011 - DEC,CS -Oth Operating Inc & Expend,Trading A/c Surpluses/Deficits,Transport-Contract Hire                 ,J01374,Transport Related Expenditure ,Contract Hire and Op Leasing  ,CC67,Mini Cab Hire -Soc Serv -Adult,366,"1,056.00",11/30/2011,R,BARCLAYS ASSET & SALES FINANCE
2011 - DEC,CS -Oth Operating Inc & Expend,Trading A/c Surpluses/Deficits,Transport-Contract Hire                 ,J01374,Transport Related Expenditure ,Contract Hire and Op Leasing  ,CC67,Mini Cab Hire -Soc Serv -Adult,367,924,11/30/2011,R,AERIAL CAR SERVICES LTD       
2011 - DEC,CS -Oth Operating Inc & Expend,Trading A/c Surpluses/Deficits,Transport-Contract Hire                 ,J01374,Transport Related Expenditure ,Contract Hire and Op Leasing  ,CC67,Mini Cab Hire -Soc Serv -Adult,368,560,12/23/2011,R,BARCLAYS ASSET & SALES FINANCE
2011 - DEC,CS -Oth Operating Inc & Expend,Trading A/c Surpluses/Deficits,Transport-Contract Hire                 ,J01374,Transport Related Expenditure ,Contract Hire and Op Leasing  ,CC67,Mini Cab Hire -Soc Serv -Adult,369,580,12/23/2011,R,BARCLAYS ASSET & SALES FINANCE
2011 - DEC,CS -Oth Operating Inc & Expend,Trading A/c Surpluses/Deficits,Transport-Contract Hire                 ,J01374,Transport Related Expenditure ,Contract Hire and Op Leasing  ,CC67,Mini Cab Hire -Soc Serv -Adult,370,601,12/23/2011,R,BARCLAYS ASSET & SALES FINANCE
2011 - DEC,CS -Oth Operating Inc & Expend,Trading A/c Surpluses/Deficits,Transport-Contract Hire                 ,J01374,Transport Related Expenditure ,Contract Hire and Op Leasing  ,CC67,Mini Cab Hire -Soc Serv -Adult,371,816,12/23/2011,R,BARCLAYS ASSET & SALES FINANCE
2011 - DEC,CS -Oth Operating Inc & Expend,Trading A/c Surpluses/Deficits,Transport-Contract Hire                 ,J01374,Transport Related Expenditure ,Contract Hire and Op Leasing  ,CC67,Mini Cab Hire -Soc Serv -Adult,372,908,12/23/2011,R,BARCLAYS ASSET & SALES FINANCE
2011 - DEC,CS -Oth Operating Inc & Expend,Trading A/c Surpluses/Deficits,Transport-Contract Hire                 ,J01374,Transport Related Expenditure ,Contract Hire and Op Leasing  ,CC67,Mini Cab Hire -Soc Serv -Adult,373,724,12/23/2011,R,BARCLAYS ASSET & SALES FINANCE
2011 - DEC,CS -Oth Operating Inc & Expend,Trading A/c Surpluses/Deficits,Transport-Contract Hire                 ,J01374,Transport Related Expenditure ,Contract Hire and Op Leasing  ,CC68,Vehicle Hire Special Projects,374,"1,632.00",12/4/2011,R,KINGSTON ACCESSIBILITY TRAN LT
2011 - DEC,CS -Oth Operating Inc & Expend,Trading A/c Surpluses/Deficits,Transport-Contract Hire                 ,J01374,Transport Related Expenditure ,Contract Hire and Op Leasing  ,CC68,Vehicle Hire Special Projects,375,"1,408.00",11/30/2011,R,BARCLAYS ASSET & SALES FINANCE
2011 - DEC,CS -Oth Operating Inc & Expend,Trading A/c Surpluses/Deficits,Transport-Contract Hire                 ,J01374,Transport Related Expenditure ,Contract Hire and Op Leasing  ,CC68,Vehicle Hire Special Projects,376,"1,764.00",11/30/2011,R,BARCLAYS ASSET & SALES FINANCE
2011 - DEC,CS -Oth Operating Inc & Expend,Trading A/c Surpluses/Deficits,Transport-Contract Hire                 ,J01374,Transport Related Expenditure ,Contract Hire and Op Leasing  ,CC68,Vehicle Hire Special Projects,377,"2,940.00",11/30/2011,R,BARCLAYS ASSET & SALES FINANCE
2011 - DEC,CS -Oth Operating Inc & Expend,Trading A/c Surpluses/Deficits,Transport-Contract Hire                 ,J01374,Transport Related Expenditure ,Contract Hire and Op Leasing  ,CC68,Vehicle Hire Special Projects,378,"1,071.00",11/30/2011,R,BARCLAYS ASSET & SALES FINANCE
2011 - DEC,CS -Oth Operating Inc & Expend,Trading A/c Surpluses/Deficits,Transport-Contract Hire                 ,J01374,Transport Related Expenditure ,Contract Hire and Op Leasing  ,CC68,Vehicle Hire Special Projects,379,"1,408.00",11/30/2011,R,BARCLAYS ASSET & SALES FINANCE
2011 - DEC,CS -Oth Operating Inc & Expend,Trading A/c Surpluses/Deficits,Transport-Contract Hire                 ,J01374,Transport Related Expenditure ,Contract Hire and Op Leasing  ,CC68,Vehicle Hire Special Projects,380,"1,632.00",12/11/2011,R,KINGSTON ACCESSIBILITY TRAN LT
2011 - DEC,CS -Oth Operating Inc & Expend,Trading A/c Surpluses/Deficits,Transport-Contract Hire                 ,J01374,Transport Related Expenditure ,Contract Hire and Op Leasing  ,CC68,Vehicle Hire Special Projects,381,880,11/30/2011,R,BARCLAYS ASSET & SALES FINANCE
2011 - DEC,CS -Oth Operating Inc & Expend,Trading A/c Surpluses/Deficits,Transport-Contract Hire                 ,J01374,Transport Related Expenditure ,Contract Hire and Op Leasing  ,CC68,Vehicle Hire Special Projects,382,"2,861.94",11/30/2011,R,BARCLAYS ASSET & SALES FINANCE
2011 - DEC,CS -Oth Operating Inc & Expend,Trading A/c Surpluses/Deficits,Transport-Contract Hire                 ,J01374,Transport Related Expenditure ,Contract Hire and Op Leasing  ,CC68,Vehicle Hire Special Projects,383,"2,626.36",11/30/2011,R,BARCLAYS ASSET & SALES FINANCE
2011 - DEC,CS -Oth Operating Inc & Expend,Trading A/c Surpluses/Deficits,Transport-Contract Hire                 ,J01374,Transport Related Expenditure ,Contract Hire and Op Leasing  ,CC68,Vehicle Hire Special Projects,384,676.5,11/30/2011,R,GALPINS SERVICE               
2011 - DEC,CS -Oth Operating Inc & Expend,Trading A/c Surpluses/Deficits,Transport-Contract Hire                 ,J01374,Transport Related Expenditure ,Contract Hire and Op Leasing  ,CC68,Vehicle Hire Special Projects,385,"1,080.00",11/30/2011,R,GALPINS SERVICE               
2011 - DEC,CS -Oth Operating Inc & Expend,Trading A/c Surpluses/Deficits,Transport-Contract Hire                 ,J01374,Transport Related Expenditure ,Contract Hire and Op Leasing  ,CC68,Vehicle Hire Special Projects,386,961,12/18/2011,R,KINGSTON ACCESSIBILITY TRAN LT
2011 - DEC,CS -Oth Operating Inc & Expend,Trading A/c Surpluses/Deficits,Transport-Contract Hire                 ,J01374,Transport Related Expenditure ,Contract Hire and Op Leasing  ,CC68,Vehicle Hire Special Projects,387,997.32,11/30/2011,R,SILVERBURN FINANCE (UK) LTD   
2011 - DEC,CS -Oth Operating Inc & Expend,Trading A/c Surpluses/Deficits,Transport-Contract Hire                 ,J01374,Supplies & Services           ,Equip Furniture/Materials     ,DA01,Equipment - R & M,388,530.16,11/26/2011,R,SUNLIGHT SERVICE GROUP LTD    
2011 - DEC,CS -Oth Operating Inc & Expend,Trading A/c Surpluses/Deficits,Transport-Contract Hire                 ,J01374,Supplies & Services           ,Clothing Unfrms Laundry       ,DC02,Clothing & Uniforms,389,798.43,11/7/2011,R,SAFETY MANAGEMENT             
2011 - DEC,CS -Oth Operating Inc & Expend,Trading A/c Surpluses/Deficits,Transport-Workshop                      ,J01376,Transport Related Expenditure ,Direct Transport Costs        ,CA01,Petrol Derv & Oil,390,"1,000.00",11/7/2011,R,REDACTED
2011 - DEC,CS -Oth Operating Inc & Expend,Trading A/c Surpluses/Deficits,Transport-Workshop                      ,J01376,Transport Related Expenditure ,Direct Transport Costs        ,CA02,Tyres,391,658,11/16/2011,R,MORDEN TYRE SERVICES LTD      
2011 - DEC,CS -Oth Operating Inc & Expend,Trading A/c Surpluses/Deficits,Transport-Workshop                      ,J01376,Transport Related Expenditure ,Direct Transport Costs        ,CA02,Tyres,392,"2,805.00",11/29/2011,R,MORDEN TYRE SERVICES LTD      
2011 - DEC,CS -Oth Operating Inc & Expend,Trading A/c Surpluses/Deficits,Transport-Workshop                      ,J01376,Transport Related Expenditure ,Direct Transport Costs        ,CA02,Tyres,393,"1,940.00",12/16/2011,R,MORDEN TYRE SERVICES LTD      
2011 - DEC,CS -Oth Operating Inc & Expend,Trading A/c Surpluses/Deficits,Transport-Workshop                      ,J01376,Transport Related Expenditure ,Direct Transport Costs        ,CA55,Specialist Maint. (Off Site),394,"1,782.82",11/29/2011,R,FLEETSPEED COACHWORKS LTD.    
2011 - DEC,CS -Oth Operating Inc & Expend,Trading A/c Surpluses/Deficits,Transport-Workshop                      ,J01376,Transport Related Expenditure ,Direct Transport Costs        ,CA55,Specialist Maint. (Off Site),395,"1,928.25",11/29/2011,R,FLEETSPEED COACHWORKS LTD.    
2011 - DEC,CS -Oth Operating Inc & Expend,Trading A/c Surpluses/Deficits,Transport-Workshop                      ,J01376,Transport Related Expenditure ,Direct Transport Costs        ,CA55,Specialist Maint. (Off Site),396,586.34,11/18/2011,R,TENSID UK PLC                 
2011 - DEC,CS -Oth Operating Inc & Expend,Trading A/c Surpluses/Deficits,Transport-Workshop                      ,J01376,Transport Related Expenditure ,Direct Transport Costs        ,CA55,Specialist Maint. (Off Site),397,"3,695.08",12/13/2011,R,REDACTED
2011 - DEC,CS -Oth Operating Inc & Expend,Trading A/c Surpluses/Deficits,Transport-Workshop                      ,J01376,Transport Related Expenditure ,Direct Transport Costs        ,CA56,Specialist Maint. (On Site),398,835.5,12/1/2011,R,GREEN MACHINES                
2011 - DEC,CS -Oth Operating Inc & Expend,Trading A/c Surpluses/Deficits,Transport-Workshop                      ,J01376,Transport Related Expenditure ,Direct Transport Costs        ,CA56,Specialist Maint. (On Site),399,779.74,11/30/2011,R,GEESINK NORBA                 
2011 - DEC,CS -Oth Operating Inc & Expend,Trading A/c Surpluses/Deficits,Transport-Workshop                      ,J01376,Transport Related Expenditure ,Direct Transport Costs        ,CA72,Vehicle Parts,400,752.26,11/24/2011,R,DENNIS EAGLE LIMITED          
2011 - DEC,CS -Oth Operating Inc & Expend,Trading A/c Surpluses/Deficits,Transport-Workshop                      ,J01376,Transport Related Expenditure ,Direct Transport Costs        ,CA72,Vehicle Parts,401,"1,343.00",11/15/2011,R,EMINOX LTD.                   
2011 - DEC,CS -Oth Operating Inc & Expend,Trading A/c Surpluses/Deficits,Transport-Workshop                      ,J01376,Transport Related Expenditure ,Direct Transport Costs        ,CA72,Vehicle Parts,402,974.1,11/24/2011,R,JOHNSTON SWEEPERS LIMITED     
2011 - DEC,CS -Oth Operating Inc & Expend,Trading A/c Surpluses/Deficits,Transport-Workshop                      ,J01376,Transport Related Expenditure ,Direct Transport Costs        ,CA72,Vehicle Parts,403,"1,831.12",11/17/2011,R,GRAYS TRUCK CENTRE LIMITED    
2011 - DEC,CS -Oth Operating Inc & Expend,Trading A/c Surpluses/Deficits,Transport-Workshop                      ,J01376,Transport Related Expenditure ,Direct Transport Costs        ,CA72,Vehicle Parts,404,"2,201.53",12/6/2011,R,GRAYS TRUCK CENTRE LIMITED    
2011 - DEC,CS -Oth Operating Inc & Expend,Trading A/c Surpluses/Deficits,Transport-Workshop                      ,J01376,Transport Related Expenditure ,Direct Transport Costs        ,CA72,Vehicle Parts,405,781.71,11/28/2011,R,JD ASSOCIATES                 
2011 - DEC,CS -Oth Operating Inc & Expend,Trading A/c Surpluses/Deficits,Transport-Workshop                      ,J01376,Transport Related Expenditure ,Direct Transport Costs        ,CA72,Vehicle Parts,406,"1,168.48",12/15/2011,R,GRAYS TRUCK CENTRE LIMITED    
2011 - DEC,CS -Oth Operating Inc & Expend,Trading A/c Surpluses/Deficits,Transport-Workshop                      ,J01376,Transport Related Expenditure ,Direct Transport Costs        ,CA72,Vehicle Parts,407,566.82,12/9/2011,R,JD ASSOCIATES                 
2011 - DEC,CS -Oth Operating Inc & Expend,Trading A/c Surpluses/Deficits,Transport-Workshop                      ,J01376,Transport Related Expenditure ,Contract Hire and Op Leasing  ,CC60,Vehicle Hire for LB Sutton,408,814,11/30/2011,R,CAPITAL CARS                  
2011 - DEC,CS -Oth Operating Inc & Expend,Trading A/c Surpluses/Deficits,Transport-Workshop                      ,J01376,Transport Related Expenditure ,Contract Hire and Op Leasing  ,CC60,Vehicle Hire for LB Sutton,409,960,11/29/2011,R,CALVERTON FACTORS LTD         
2011 - DEC,CS -Oth Operating Inc & Expend,Trading A/c Surpluses/Deficits,Transport-Workshop                      ,J01376,Transport Related Expenditure ,Contract Hire and Op Leasing  ,CC60,Vehicle Hire for LB Sutton,410,"1,980.00",11/29/2011,R,CALVERTON FACTORS LTD         
2011 - DEC,CS -Oth Operating Inc & Expend,Trading A/c Surpluses/Deficits,Transport-Workshop                      ,J01376,Transport Related Expenditure ,Contract Hire and Op Leasing  ,CC60,Vehicle Hire for LB Sutton,411,"1,672.00",11/29/2011,R,CALVERTON FACTORS LTD         
2011 - DEC,CS -Oth Operating Inc & Expend,Trading A/c Surpluses/Deficits,Transport-Workshop                      ,J01376,Transport Related Expenditure ,Contract Hire and Op Leasing  ,CC60,Vehicle Hire for LB Sutton,412,"2,220.00",11/29/2011,R,CALVERTON FACTORS LTD         
2011 - DEC,CS -Oth Operating Inc & Expend,Trading A/c Surpluses/Deficits,Transport-Workshop                      ,J01376,Transport Related Expenditure ,Contract Hire and Op Leasing  ,CC60,Vehicle Hire for LB Sutton,413,"2,618.00",11/30/2011,R,BRUNSWICK CARS LTD            
2011 - DEC,CS -Oth Operating Inc & Expend,Trading A/c Surpluses/Deficits,Transport-Workshop                      ,J01376,Transport Related Expenditure ,Contract Hire and Op Leasing  ,CC60,Vehicle Hire for LB Sutton,414,"3,938.00",11/30/2011,R,BRUNSWICK CARS LTD            
2011 - DEC,CS -Oth Operating Inc & Expend,Trading A/c Surpluses/Deficits,Transport-Workshop                      ,J01376,Transport Related Expenditure ,Contract Hire and Op Leasing  ,CC60,Vehicle Hire for LB Sutton,415,"3,080.00",11/30/2011,R,BRUNSWICK CARS LTD            
2011 - DEC,CS -Oth Operating Inc & Expend,Trading A/c Surpluses/Deficits,Transport-Workshop                      ,J01376,Transport Related Expenditure ,Contract Hire and Op Leasing  ,CC60,Vehicle Hire for LB Sutton,416,"2,163.00",11/30/2011,R,BRUNSWICK CARS LTD            
2011 - DEC,CS -Oth Operating Inc & Expend,Trading A/c Surpluses/Deficits,Transport-Workshop                      ,J01376,Transport Related Expenditure ,Contract Hire and Op Leasing  ,CC60,Vehicle Hire for LB Sutton,417,"1,738.00",11/30/2011,R,BARCLAYS ASSET & SALES FINANCE
2011 - DEC,CS -Oth Operating Inc & Expend,Trading A/c Surpluses/Deficits,Transport-Workshop                      ,J01376,Transport Related Expenditure ,Contract Hire and Op Leasing  ,CC60,Vehicle Hire for LB Sutton,418,"3,661.00",11/30/2011,R,BARCLAYS ASSET & SALES FINANCE
2011 - DEC,CS -Oth Operating Inc & Expend,Trading A/c Surpluses/Deficits,Transport-Workshop                      ,J01376,Transport Related Expenditure ,Contract Hire and Op Leasing  ,CC60,Vehicle Hire for LB Sutton,419,"1,170.00",11/30/2011,R,KENDALL CARS                  
2011 - DEC,CS -Oth Operating Inc & Expend,Trading A/c Surpluses/Deficits,Transport-Workshop                      ,J01376,Transport Related Expenditure ,Contract Hire and Op Leasing  ,CC60,Vehicle Hire for LB Sutton,420,600,12/23/2011,R,BARCLAYS ASSET & SALES FINANCE
2011 - DEC,CS -Oth Operating Inc & Expend,Trading A/c Surpluses/Deficits,Transport-Workshop                      ,J01376,Transport Related Expenditure ,Contract Hire and Op Leasing  ,CC60,Vehicle Hire for LB Sutton,421,"1,032.00",12/23/2011,R,BARCLAYS ASSET & SALES FINANCE
2011 - DEC,CS -Oth Operating Inc & Expend,Trading A/c Surpluses/Deficits,Transport-Workshop                      ,J01376,Transport Related Expenditure ,Contract Hire and Op Leasing  ,CC60,Vehicle Hire for LB Sutton,422,900,12/23/2011,R,BARCLAYS ASSET & SALES FINANCE
2011 - DEC,CS -Oth Operating Inc & Expend,Trading A/c Surpluses/Deficits,Transport-Workshop                      ,J01376,Transport Related Expenditure ,Contract Hire and Op Leasing  ,CC60,Vehicle Hire for LB Sutton,423,"2,548.00",12/23/2011,R,BARCLAYS ASSET & SALES FINANCE
2011 - DEC,CS -Oth Operating Inc & Expend,Trading A/c Surpluses/Deficits,Transport-Workshop                      ,J01376,Transport Related Expenditure ,Contract Hire and Op Leasing  ,CC60,Vehicle Hire for LB Sutton,424,"2,686.00",12/23/2011,R,BARCLAYS ASSET & SALES FINANCE
2011 - DEC,CS -Oth Operating Inc & Expend,Trading A/c Surpluses/Deficits,Transport-Workshop                      ,J01376,Transport Related Expenditure ,Contract Hire and Op Leasing  ,CC65,Vehicle Hire for Education,425,930,12/4/2011,R,KINGSTON ACCESSIBILITY TRAN LT
2011 - DEC,CS -Oth Operating Inc & Expend,Trading A/c Surpluses/Deficits,Transport-Workshop                      ,J01376,Transport Related Expenditure ,Contract Hire and Op Leasing  ,CC65,Vehicle Hire for Education,426,720,12/11/2011,R,KINGSTON ACCESSIBILITY TRAN LT
2011 - DEC,CS -Oth Operating Inc & Expend,Trading A/c Surpluses/Deficits,Transport-Workshop                      ,J01376,Transport Related Expenditure ,Contract Hire and Op Leasing  ,CC65,Vehicle Hire for Education,427,"1,785.00",11/30/2011,R,REDACTED
2011 - DEC,CS -Oth Operating Inc & Expend,Trading A/c Surpluses/Deficits,Transport-Workshop                      ,J01376,Transport Related Expenditure ,Contract Hire and Op Leasing  ,CC65,Vehicle Hire for Education,428,755,12/18/2011,R,KINGSTON ACCESSIBILITY TRAN LT
2011 - DEC,CS -Oth Operating Inc & Expend,Trading A/c Surpluses/Deficits,Transport-Workshop                      ,J01376,Transport Related Expenditure ,Contract Hire and Op Leasing  ,CC65,Vehicle Hire for Education,429,"1,820.00",12/23/2011,R,BARCLAYS ASSET & SALES FINANCE
2011 - DEC,CS -Oth Operating Inc & Expend,Trading A/c Surpluses/Deficits,Transport-Workshop                      ,J01376,Transport Related Expenditure ,Contract Hire and Op Leasing  ,CC65,Vehicle Hire for Education,430,"2,352.00",12/23/2011,R,BARCLAYS ASSET & SALES FINANCE
2011 - DEC,Cultural Env Reg&Plan Services,SMSS (Env),Estates Mgt                             ,J01420,Supplies & Services           ,Services                      ,DF03,Consultants,431,"1,970.00",11/15/2011,R,QUINTON SCOTT                 
2011 - DEC,CS -Oth Operating Inc & Expend,INVESTMENT PROPERTIES,Durnsford Rd Budget                     ,J01580,Premises Related Expenditure  ,RepairsAlterations&MtceOfBldgs,BA79,Security of Premises,432,962,11/30/2011,R,OM METROPOLITAN TOTAL SEC.LTD 
2011 - DEC,CS -Oth Operating Inc & Expend,INVESTMENT PROPERTIES,Pollards Hill Comm Cntre                ,J08074,Premises Related Expenditure  ,RepairsAlterations&MtceOfBldgs,BA03,DDM - Mechanical,433,636.36,11/26/2011,R,COFELY LIMITED                
2011 - DEC,Childrens & Education Services,Assuring Access To Schools,Stouthall                               ,K09082,Premises Related Expenditure  ,Rents                         ,BC01,Miscellaneous Rents,434,"4,125.00",12/2/2011,R,ROBERT MORGAN & SONS LTD      
2011 - DEC,Cultural Env Reg&Plan Services,SMSS (Cult),Greenspaces Team (General)              ,P04004,Supplies & Services           ,Services                      ,DF03,Consultants,435,"1,500.00",9/8/2011,R,REDACTED
2011 - DEC,Cultural Env Reg&Plan Services,SMSS (Cult),Leisure Developmt Manager               ,P04061,Supplies & Services           ,Expenses                      ,DH50,Special Projects,436,500,12/2/2011,R,REDACTED
2011 - DEC,Cultural Env Reg&Plan Services,SMSS (Cult),Arts  Dev  Service Support              ,P04090,Supplies & Services           ,Expenses                      ,DH50,Special Projects,437,"4,000.00",11/30/2011,R,REDACTED
2011 - DEC,Cultural Env Reg&Plan Services,Open Spaces,"Pks,Rec Grds (Unloc)                    ",P05005,Premises Related Expenditure  ,Ground Maintenance Costs      ,BL02,Maintenance of paths,438,"3,000.00",12/1/2011,R,TAYLOR BUILDING COMPANY LTD   
2011 - DEC,Cultural Env Reg&Plan Services,Open Spaces,"Pks,Rec Grds (Unloc)                    ",P05005,Premises Related Expenditure  ,Ground Maintenance Costs      ,BL02,Maintenance of paths,439,"2,412.00",12/5/2011,R,SUTTON AND EAST SURREY WATER  
2011 - DEC,Cultural Env Reg&Plan Services,Open Spaces,"Pks,Rec Grds (Unloc)                    ",P05005,Premises Related Expenditure  ,Ground Maintenance Costs      ,BL03,Maintenance of Grounds,440,"2,500.00",11/10/2011,R,WIMBLEDON TREE SURGEONS       
2011 - DEC,Cultural Env Reg&Plan Services,Open Spaces,"Pks,Rec Grds (Unloc)                    ",P05005,Premises Related Expenditure  ,Ground Maintenance Costs      ,BL03,Maintenance of Grounds,441,"3,420.00",11/28/2011,R,A.COLEBROOK ARBORICULTURE CON.
2011 - DEC,Cultural Env Reg&Plan Services,Open Spaces,"Pks,Rec Grds (Unloc)                    ",P05005,Premises Related Expenditure  ,Ground Maintenance Costs      ,BL03,Maintenance of Grounds,442,"2,023.20",12/5/2011,R,R&A SOFTWARE (SYSTEMS) LTD    
2011 - DEC,Cultural Env Reg&Plan Services,Open Spaces,"Pks,Rec Grds (Unloc)                    ",P05005,Premises Related Expenditure  ,Ground Maintenance Costs      ,BL03,Maintenance of Grounds,443,"1,700.00",10/18/2011,R,TREELINE SERVICES LTD         
2011 - DEC,Cultural Env Reg&Plan Services,Open Spaces,"Pks,Rec Grds (Unloc)                    ",P05005,Premises Related Expenditure  ,Ground Maintenance Costs      ,BL51,Playground Maintenance,444,"2,580.00",10/11/2011,R,TAYLOR BUILDING COMPANY LTD   
2011 - DEC,Cultural Env Reg&Plan Services,Open Spaces,"Pks,Rec Grds (Unloc)                    ",P05005,Premises Related Expenditure  ,Ground Maintenance Costs      ,BL51,Playground Maintenance,445,"3,100.00",11/14/2011,R,REDACTED
2011 - DEC,Cultural Env Reg&Plan Services,Open Spaces,"Pks,Rec Grds (Unloc)                    ",P05005,Premises Related Expenditure  ,Ground Maintenance Costs      ,BL51,Playground Maintenance,446,"1,753.10",11/21/2011,R,G.B.SPORT & LEISURE           
2011 - DEC,Cultural Env Reg&Plan Services,Open Spaces,"Pks,Rec Grds (Unloc)                    ",P05005,Premises Related Expenditure  ,Ground Maintenance Costs      ,BL51,Playground Maintenance,447,"1,448.00",12/7/2011,R,JUST METAL UK LTD             
2011 - DEC,Cultural Env Reg&Plan Services,Open Spaces,John Innes Rec Grd                      ,P05022,Premises Related Expenditure  ,Energy Costs                  ,BB02,Electricity,448,759.38,11/17/2011,R,EDF ENERGY 1 LIMITED          
2011 - DEC,Cultural Env Reg&Plan Services,Open Spaces,Joseph Hood Rec Grd                     ,P05023,Premises Related Expenditure  ,Energy Costs                  ,BB02,Electricity,449,742.88,8/17/2011,R,EDF ENERGY 1 LIMITED          
2011 - DEC,Cultural Env Reg&Plan Services,Open Spaces,Joseph Hood Rec Grd                     ,P05023,Premises Related Expenditure  ,Energy Costs                  ,BB02,Electricity,450,616.42,12/9/2011,R,EDF ENERGY 1 LIMITED          
2011 - DEC,Cultural Env Reg&Plan Services,Open Spaces,Raynes Pk Sports Grd                    ,P05038,Premises Related Expenditure  ,Energy Costs                  ,BB02,Electricity,451,"1,747.23",11/24/2011,R,EDF ENERGY 1 LIMITED          
2011 - DEC,Cultural Env Reg&Plan Services,Open Spaces,Raynes Pk Sports Grd                    ,P05038,Premises Related Expenditure  ,Energy Costs                  ,BB02,Electricity,452,"2,449.09",5/16/2011,R,EDF ENERGY 1 LIMITED          
2011 - DEC,Cultural Env Reg&Plan Services,Open Spaces,Raynes Pk Sports Grd                    ,P05038,Premises Related Expenditure  ,Energy Costs                  ,BB03,Gas (incl. Butane),453,509.27,12/2/2011,R,KENT COUNTY COUNCIL           
2011 - DEC,Cultural Env Reg&Plan Services,Open Spaces,Tamworth Rec Ground                     ,P05045,Premises Related Expenditure  ,Water Services                ,BE01,Use of Water (Metered),454,810.91,11/21/2011,R,THAMES WATER UTILITIES LTD    
2011 - DEC,Cultural Env Reg&Plan Services,Open Spaces,Tamworth Rec Ground                     ,P05045,Premises Related Expenditure  ,Water Services                ,BE01,Use of Water (Metered),455,836.24,7/21/2011,R,THAMES WATER UTILITIES LTD    
2011 - DEC,Cultural Env Reg&Plan Services,Open Spaces,Tamworth Rec Ground                     ,P05045,Premises Related Expenditure  ,Water Services                ,BE01,Use of Water (Metered),456,"1,505.76",5/31/2011,R,THAMES WATER UTILITIES LTD    
2011 - DEC,Cultural Env Reg&Plan Services,Open Spaces,Tamworth Rec Ground                     ,P05045,Premises Related Expenditure  ,Water Services                ,BE01,Use of Water (Metered),457,"1,054.80",8/19/2011,R,THAMES WATER UTILITIES LTD    
2011 - DEC,Cultural Env Reg&Plan Services,Open Spaces,Tamworth Rec Ground                     ,P05045,Premises Related Expenditure  ,Water Services                ,BE01,Use of Water (Metered),458,"1,116.95",6/28/2011,R,THAMES WATER UTILITIES LTD    
2011 - DEC,CS -Oth Operating Inc & Expend,INVESTMENT PROPERTIES,Wimbledon Park                          ,P05050,Premises Related Expenditure  ,Energy Costs                  ,BB03,Gas (incl. Butane),459,646.3,12/2/2011,R,KENT COUNTY COUNCIL           
2011 - DEC,CS -Oth Operating Inc & Expend,INVESTMENT PROPERTIES,Wimbledon Park                          ,P05050,Premises Related Expenditure  ,Water Services                ,BE01,Use of Water (Metered),460,894.32,12/5/2011,R,THAMES WATER UTILITIES LTD    
2011 - DEC,Cultural Env Reg&Plan Services,Open Spaces,Leis Dev - Fireworks                    ,P05063,Supplies & Services           ,Services                      ,DF09,Miscellaneous Fees,461,550,11/10/2011,R,C WILSON ENGINEERS LTD        
2011 - DEC,Cultural Env Reg&Plan Services,Open Spaces,Leis Dev - Fireworks                    ,P05063,Supplies & Services           ,Services                      ,DF09,Miscellaneous Fees,462,"2,420.00",11/10/2011,R,C WILSON ENGINEERS LTD        
2011 - DEC,Cultural Env Reg&Plan Services,Open Spaces,Leis Dev - Fireworks                    ,P05063,Supplies & Services           ,Services                      ,DF09,Miscellaneous Fees,463,547.2,11/10/2011,R,C WILSON ENGINEERS LTD        
2011 - DEC,Cultural Env Reg&Plan Services,Open Spaces,Mitcham Parks                           ,P05109,Premises Related Expenditure  ,Energy Costs                  ,BB02,Electricity,464,"1,299.04",12/7/2011,R,EDF ENERGY 1 LIMITED          
2011 - DEC,Cultural Env Reg&Plan Services,Open Spaces,Mitcham Parks                           ,P05109,Supplies & Services           ,Equip Furniture/Materials     ,DA09,Equip-Purchases,465,"2,473.44",12/9/2011,R,RIGBY TAYLOR LTD              
2011 - DEC,Cultural Env Reg&Plan Services,Open Spaces,Morden Parks                            ,P05110,Supplies & Services           ,Equip Furniture/Materials     ,DA04,Materials,466,568.6,11/11/2011,R,LTSB COMMERCIAL FINANCE LTD   
2011 - DEC,Cultural Env Reg&Plan Services,Open Spaces,Morden Parks                            ,P05110,Supplies & Services           ,Equip Furniture/Materials     ,DA53,Specialist Equipment,467,610.26,11/14/2011,R,RIGBY TAYLOR LTD              
2011 - DEC,Cultural Env Reg&Plan Services,Open Spaces,Wimbledon Parks                         ,P05111,Supplies & Services           ,Equip Furniture/Materials     ,DA09,Equip-Purchases,468,"2,371.20",10/12/2011,R,GLASDON UK LTD                
2011 - DEC,Cultural Env Reg&Plan Services,Open Spaces,Wimbledon Parks                         ,P05111,Supplies & Services           ,Equip Furniture/Materials     ,DA09,Equip-Purchases,469,847.5,12/12/2011,R,LANDSCAPE SUPPLY COMPANY      
2011 - DEC,Cultural Env Reg&Plan Services,Open Spaces,Wimbledon Parks                         ,P05111,Supplies & Services           ,Equip Furniture/Materials     ,DA53,Specialist Equipment,470,"1,080.00",11/16/2011,R,RIGBY TAYLOR LTD              
2011 - DEC,Cultural Env Reg&Plan Services,Open Spaces,Wimbledon Parks                         ,P05111,Supplies & Services           ,Equip Furniture/Materials     ,DA53,Specialist Equipment,471,"3,931.20",10/10/2011,R,RIGBY TAYLOR LTD              
2011 - DEC,Cultural Env Reg&Plan Services,Open Spaces,Wimbledon Parks                         ,P05111,Supplies & Services           ,Equip Furniture/Materials     ,DA53,Specialist Equipment,472,"5,184.00",10/19/2011,R,RIGBY TAYLOR LTD              
2011 - DEC,Cultural Env Reg&Plan Services,Open Spaces,South Park Gardens (HLF)                ,P06004,Supplies & Services           ,Services                      ,DF03,Consultants,473,"1,024.00",9/16/2011,R,REDACTED
2011 - DEC,Cultural Env Reg&Plan Services,Open Spaces,South Park Gardens (HLF)                ,P06004,Supplies & Services           ,Services                      ,DF03,Consultants,474,"1,792.00",9/16/2011,R,REDACTED
2011 - DEC,Cultural Env Reg&Plan Services,Open Spaces,Allotments (Unloc)                      ,P06090,Premises Related Expenditure  ,Ground Maintenance Costs      ,BL03,Maintenance of Grounds,475,780,11/30/2011,R,TREELINE SERVICES LTD         
2011 - DEC,Cultural Env Reg&Plan Services,Open Spaces,"Trans,Plnt WHA(Unl)                     ",P08110,Transport Related Expenditure ,Direct Transport Costs        ,CA04,R & M of Veh - General,476,800.74,11/25/2011,R,SPALDINGS (UK) LTD            
2011 - DEC,Cultural Env Reg&Plan Services,Open Spaces,"Trans,Plnt WHA(Unl)                     ",P08110,Supplies & Services           ,Equip Furniture/Materials     ,DA09,Equip-Purchases,477,"1,500.00",11/22/2011,R,RIGBY TAYLOR LTD              
2011 - DEC,Cultural Env Reg&Plan Services,Open Spaces,"Trans,Plnt WHA(Unl)                     ",P08110,Supplies & Services           ,Equip Furniture/Materials     ,DA09,Equip-Purchases,478,"1,411.65",12/2/2011,R,MOWERSURE                     
2011 - DEC,Cultural Env Reg&Plan Services,Open Spaces,"Trans,Plnt WHA(Unl)                     ",P08110,Supplies & Services           ,Equip Furniture/Materials     ,DA09,Equip-Purchases,479,"2,608.38",11/22/2011,R,RAEVAN SUPPLIES LTD           
2011 - DEC,Cultural Env Reg&Plan Services,Recreation & Sport,Wmbldn Sailing Base                     ,P09120,Supplies & Services           ,Equip Furniture/Materials     ,DA04,Materials,480,"7,720.00",11/2/2011,R,KINGSBRIDGE CONSTRUCTION (UK) 
2011 - DEC,Cultural Env Reg&Plan Services,Cemetery Cremation & Mortuary,Cemeteries (Unloc)                      ,P10125,Premises Related Expenditure  ,RepairsAlterations&MtceOfBldgs,BA06,Repairs & Maintenance General,481,"1,522.40",10/17/2011,R,WIMBLEDON BUILDERS MERCHANTS L
2011 - DEC,Cultural Env Reg&Plan Services,Recreation & Sport,Morden Assem Hall                       ,P12144,Premises Related Expenditure  ,Energy Costs                  ,BB02,Electricity,482,513.47,11/15/2011,R,EDF ENERGY 1 LIMITED          
2011 - DEC,Cultural Env Reg&Plan Services,Culture & Heritage,Arts (General Funding)                  ,P14172,Supplies & Services           ,Grants and Subscriptions      ,DJ01,Grants,483,"1,200.00",12/21/2011,R,MY RAYNES PARK                
2011 - DEC,Cultural Env Reg&Plan Services,Culture & Heritage,Arts (General Funding)                  ,P14172,Supplies & Services           ,Grants and Subscriptions      ,DJ01,Grants,484,600,12/21/2011,R,WIMBLEDON MUSIC FESTIVAL      
2011 - DEC,Cultural Env Reg&Plan Services,Culture & Heritage,Arts (General Funding)                  ,P14172,Supplies & Services           ,Grants and Subscriptions      ,DJ01,Grants,485,"1,120.00",12/21/2011,R,COLLIERS WOOD CHORUS          
2011 - DEC,Cultural Env Reg&Plan Services,Culture & Heritage,Cultural Diversity Fund                 ,P14173,Supplies & Services           ,Grants and Subscriptions      ,DJ01,Grants,486,"1,200.00",12/1/2011,R,SUNRAY ULTRA                  
2011 - DEC,Cultural Env Reg&Plan Services,Recreation & Sport,Clnt Offrs-CivicCntr                    ,P17203,Third Party Payments          ,Joint Authorities             ,EC01,Contract Payments,487,"1,200.00",11/4/2011,R,CHIMNEY MAINTENANCE LTD       
2011 - DEC,Cultural Env Reg&Plan Services,Recreation & Sport,Clnt Offrs-CivicCntr                    ,P17203,Third Party Payments          ,Joint Authorities             ,EC01,Contract Payments,488,"15,247.67",12/5/2011,R,GREENWICH LEISURE LTD         
2011 - DEC,Cultural Env Reg&Plan Services,SMSS (Cult),Tree Safety (Schools)                   ,P18320,Premises Related Expenditure  ,Ground Maintenance Costs      ,BL03,Maintenance of Grounds,489,"1,011.80",12/5/2011,R,R&A SOFTWARE (SYSTEMS) LTD    
2011 - DEC,,,Mtchm Cmmon Consvtors,W0000W,Premises Related Expenditure  ,Ground Maintenance Costs      ,BL50,Nature Conservation,490,600,12/1/2011,R,I & J BUSHELL LTD             
2011 - DEC,,,Mtchm Cmmon Consvtors,W0000W,Premises Related Expenditure  ,Ground Maintenance Costs      ,BL50,Nature Conservation,491,"1,680.00",12/16/2011,R,RED KITE CONSERVATION SERVICES
2011 - DEC,,,Mrton & Sttn Jnt Brd                    ,W0000X,Supplies & Services           ,Equip Furniture/Materials     ,DA53,Specialist Equipment,492,"11,850.00",12/8/2011,R,LEACH LEWIS PLANT LTD         
2011 - DEC,,,Mrton & Sttn Jnt Brd                    ,W0000X,Supplies & Services           ,Equip Furniture/Materials     ,DA53,Specialist Equipment,493,"4,700.00",11/30/2011,R,LEACH LEWIS PLANT LTD         
2011 - DEC,,,Mrton & Sttn Jnt Brd                    ,W0000X,Supplies & Services           ,Prntng Stnry Gen Off Exp      ,DE01,External Printing,494,535,12/16/2011,R,THE STUDIO BINDERY            
2011 - DEC,,,Mrton & Sttn Jnt Brd                    ,W0000X,Supplies & Services           ,Expenses                      ,DH17,Advances,495,"141,734.75",12/16/2011,R,J BROWNE CONSTRUCTION CO LTD  
2011 - DEC,Central Services,Fully rechargeable Overheads,Local Involvement Network               ,A01039,Third Party Payments          ,Private Contractors           ,EH10,Contract Payments,496,"8,342.91",10/27/2011,R,MERTON VOLUNTARY SERV COUNCIL 
2011 - DEC,Central Services,Fully rechargeable Overheads,Local Involvement Network               ,A01039,Third Party Payments          ,Private Contractors           ,EH10,Contract Payments,497,"8,342.91",11/30/2011,R,MERTON VOLUNTARY SERV COUNCIL 
2011 - DEC,Central Services,Fully rechargeable Overheads,NON-STATUTORY MARKETING & COMM ,A02019,Supplies & Services           ,Prntng Stnry Gen Off Exp      ,DE11,Print Room Costs,498,500,12/20/2011,R,REDACTED
2011 - DEC,Central Services,Fully rechargeable Overheads,NON-STATUTORY MARKETING & COMM ,A02019,Supplies & Services           ,Services                      ,DF02,Misc Advertising/Publicity,499,537.5,10/25/2011,R,JCDECAUX UNITED KINGDOM       
2011 - DEC,Central Services,Fully rechargeable Overheads,NON-STATUTORY MARKETING & COMM ,A02019,Supplies & Services           ,Services                      ,DF02,Misc Advertising/Publicity,500,537.5,10/25/2011,R,JCDECAUX UNITED KINGDOM       
2011 - DEC,Central Services,Fully rechargeable Overheads,NON-STATUTORY MARKETING & COMM ,A02019,Supplies & Services           ,Services                      ,DF02,Misc Advertising/Publicity,501,555,10/25/2011,R,JCDECAUX UNITED KINGDOM       
2011 - DEC,Central Services,Fully rechargeable Overheads,NON-STATUTORY MARKETING & COMM ,A02019,Supplies & Services           ,Services                      ,DF02,Misc Advertising/Publicity,502,631.35,11/26/2011,R,NEWSQUEST (LONDON)LTD         
2011 - DEC,Central Services,Fully rechargeable Overheads,Democratic Services                     ,A02023,Employees                     ,Direct Employee Expenses      ,AA17,Agency Staff & Casual Paymts,503,705,12/3/2011,R,REDACTED
2011 - DEC,Central Services,Fully rechargeable Overheads,Press and Public Relations.             ,A02026,Employees                     ,Direct Employee Expenses      ,AA17,Agency Staff & Casual Paymts,504,"6,197.00",12/5/2011,R,PUBLIC SELECT                 
2011 - DEC,Central Services,Fully rechargeable Overheads,Press and Public Relations.             ,A02026,Employees                     ,Direct Employee Expenses      ,AA17,Agency Staff & Casual Paymts,505,"4,200.00",11/17/2011,R,PUBLIC SELECT                 
2011 - DEC,Central Services,Fully rechargeable Overheads,Press and Public Relations.             ,A02026,Supplies & Services           ,Expenses                      ,DH21,Christmas Lights,506,750,11/10/2011,R,BLACHERE ILLUMINATION         
2011 - DEC,Cultural Env Reg&Plan Services,Culture & Heritage,Mitcham Carnival                        ,A02030,Supplies & Services           ,Services                      ,DF09,Miscellaneous Fees,507,705,11/25/2011,R,KNIGHTS OF THE DAMNED         
2011 - DEC,CS -Oth Operating Inc & Expend,Trading A/c Surpluses/Deficits,Prtng Jobs - Ext Agncy                  ,A03041,Supplies & Services           ,Prntng Stnry Gen Off Exp      ,DE01,External Printing,508,"1,316.00",12/5/2011,R,CLIFFE ENTERPRISE             
2011 - DEC,CS -Oth Operating Inc & Expend,Trading A/c Surpluses/Deficits,Prtng Jobs - Ext Agncy                  ,A03041,Supplies & Services           ,Prntng Stnry Gen Off Exp      ,DE01,External Printing,509,547,12/15/2011,R,CLIFFE ENTERPRISE             
2011 - DEC,CS -Oth Operating Inc & Expend,Trading A/c Surpluses/Deficits,Prtng Jobs - Ext Agncy                  ,A03041,Supplies & Services           ,Prntng Stnry Gen Off Exp      ,DE01,External Printing,510,598,12/22/2011,R,POSITIVE IMAGES DESIGN LTD    
2011 - DEC,CS -Oth Operating Inc & Expend,Trading A/c Surpluses/Deficits,Prtng Jobs - Ext Agncy                  ,A03041,Supplies & Services           ,Prntng Stnry Gen Off Exp      ,DE01,External Printing,511,598,12/22/2011,R,POSITIVE IMAGES DESIGN LTD    
2011 - DEC,CS -Oth Operating Inc & Expend,Trading A/c Surpluses/Deficits,PrintUnit-HighVolPhtcopying             ,A03042,Third Party Payments          ,Private Contractors           ,EH02,Miscellaneous Hired Services,512,"6,272.61",12/1/2011,R,XEROX(UK)LTD                  
2011 - DEC,CS -Oth Operating Inc & Expend,Trading A/c Surpluses/Deficits,PrintUnit-HighVolPhtcopying             ,A03042,Third Party Payments          ,Private Contractors           ,EH02,Miscellaneous Hired Services,513,633.73,12/1/2011,R,XEROX(UK)LTD                  
2011 - DEC,CS -Oth Operating Inc & Expend,Trading A/c Surpluses/Deficits,PrintUnit-HighVolPhtcopying             ,A03042,Third Party Payments          ,Private Contractors           ,EH02,Miscellaneous Hired Services,514,"3,555.88",10/20/2011,R,XEROX FINANCE                 
2011 - DEC,Central Services,Fully rechargeable Overheads,Merton Link                             ,A04070,Employees                     ,Indirect Employee Expenses    ,AB57,External Training Costs,515,"2,385.00",11/3/2011,R,TIC SAFETY                    
2011 - DEC,Central Services,Fully rechargeable Overheads,Merton Link                             ,A04070,Supplies & Services           ,Comms and Computing           ,DG09,Computer Purchases - Misc,516,600,12/23/2011,R,Q-MATIC UK LTD                
2011 - DEC,Central Services,Registr'n Birth/Death/Marriage,Reg of B. Deaths & Ms                   ,B06143,Supplies & Services           ,Prntng Stnry Gen Off Exp      ,DE30,General Office Expenses,517,"1,653.00",7/20/2011,R,ZIPPORAH LTD                  
2011 - DEC,Central Services,Fully rechargeable Overheads,Learning and Development                ,B06146,Employees                     ,Indirect Employee Expenses    ,AB56,Internal Training Costs,518,550,11/22/2011,R,OPTIMUM TECHNOLOGY TRANSFER   
2011 - DEC,Central Services,Fully rechargeable Overheads,Learning and Development                ,B06146,Employees                     ,Indirect Employee Expenses    ,AB56,Internal Training Costs,519,560,11/4/2011,R,SAC INTERNATIONAL             
2011 - DEC,Central Services,Fully rechargeable Overheads,Learning and Development                ,B06146,Employees                     ,Indirect Employee Expenses    ,AB56,Internal Training Costs,520,550,10/14/2011,R,OPTIMUM TECHNOLOGY TRANSFER   
2011 - DEC,Central Services,Fully rechargeable Overheads,Learning and Development                ,B06146,Employees                     ,Indirect Employee Expenses    ,AB56,Internal Training Costs,521,550,10/13/2011,R,OPTIMUM TECHNOLOGY TRANSFER   
2011 - DEC,Central Services,Fully rechargeable Overheads,Learning and Development                ,B06146,Supplies & Services           ,Expenses                      ,DH60,Members training AP creditors,522,"1,300.00",10/31/2011,R,DIVERSITY MARKETPLACE         
2011 - DEC,CS -Oth Operating Inc & Expend,Trading A/c Surpluses/Deficits,CHAS Scheme                             ,B06150,Supplies & Services           ,Services                      ,DF88,Assessor Fees,523,"2,275.00",11/26/2011,R,REDACTED
2011 - DEC,CS -Oth Operating Inc & Expend,Trading A/c Surpluses/Deficits,CHAS Scheme                             ,B06150,Supplies & Services           ,Services                      ,DF88,Assessor Fees,524,762.48,11/25/2011,R,REDACTED
2011 - DEC,CS -Oth Operating Inc & Expend,Trading A/c Surpluses/Deficits,CHAS Scheme                             ,B06150,Supplies & Services           ,Services                      ,DF88,Assessor Fees,525,540,11/23/2011,R,REDACTED
2011 - DEC,CS -Oth Operating Inc & Expend,Trading A/c Surpluses/Deficits,CHAS Scheme                             ,B06150,Supplies & Services           ,Services                      ,DF88,Assessor Fees,526,"1,985.00",11/8/2011,R,MGW SAFETY SERVICES           
2011 - DEC,CS -Oth Operating Inc & Expend,Trading A/c Surpluses/Deficits,CHAS Scheme                             ,B06150,Supplies & Services           ,Services                      ,DF88,Assessor Fees,527,"1,365.00",11/11/2011,R,REDACTED
2011 - DEC,CS -Oth Operating Inc & Expend,Trading A/c Surpluses/Deficits,CHAS Scheme                             ,B06150,Supplies & Services           ,Services                      ,DF88,Assessor Fees,528,"2,805.00",11/25/2011,R,ALIMOR SAFETY LTD             
2011 - DEC,CS -Oth Operating Inc & Expend,Trading A/c Surpluses/Deficits,CHAS Scheme                             ,B06150,Supplies & Services           ,Services                      ,DF88,Assessor Fees,529,"1,880.00",11/25/2011,R,REDACTED
2011 - DEC,CS -Oth Operating Inc & Expend,Trading A/c Surpluses/Deficits,CHAS Scheme                             ,B06150,Supplies & Services           ,Services                      ,DF88,Assessor Fees,530,675,11/30/2011,R,REDACTED
2011 - DEC,CS -Oth Operating Inc & Expend,Trading A/c Surpluses/Deficits,CHAS Scheme                             ,B06150,Supplies & Services           ,Services                      ,DF88,Assessor Fees,531,"1,250.00",11/28/2011,R,WOODS CONSULTANCY SERVICES LTD
2011 - DEC,CS -Oth Operating Inc & Expend,Trading A/c Surpluses/Deficits,CHAS Scheme                             ,B06150,Supplies & Services           ,Services                      ,DF88,Assessor Fees,532,715,11/30/2011,R,REDACTED
2011 - DEC,CS -Oth Operating Inc & Expend,Trading A/c Surpluses/Deficits,CHAS Scheme                             ,B06150,Supplies & Services           ,Services                      ,DF88,Assessor Fees,533,"1,390.00",12/1/2011,R,REDACTED
2011 - DEC,CS -Oth Operating Inc & Expend,Trading A/c Surpluses/Deficits,CHAS Scheme                             ,B06150,Supplies & Services           ,Services                      ,DF88,Assessor Fees,534,500.58,11/28/2011,R,REDACTED
2011 - DEC,CS -Oth Operating Inc & Expend,Trading A/c Surpluses/Deficits,CHAS Scheme                             ,B06150,Supplies & Services           ,Services                      ,DF88,Assessor Fees,535,745,11/30/2011,R,REDACTED
2011 - DEC,CS -Oth Operating Inc & Expend,Trading A/c Surpluses/Deficits,CHAS Scheme                             ,B06150,Supplies & Services           ,Services                      ,DF88,Assessor Fees,536,550,11/30/2011,R,REDACTED
2011 - DEC,CS -Oth Operating Inc & Expend,Trading A/c Surpluses/Deficits,CHAS Scheme                             ,B06150,Supplies & Services           ,Services                      ,DF88,Assessor Fees,537,"2,690.00",11/30/2011,R,SOUTH EAST HEALTH & SAFETY LTD
2011 - DEC,CS -Oth Operating Inc & Expend,Trading A/c Surpluses/Deficits,CHAS Scheme                             ,B06150,Supplies & Services           ,Services                      ,DF88,Assessor Fees,538,"1,900.00",11/30/2011,R,REDACTED
2011 - DEC,CS -Oth Operating Inc & Expend,Trading A/c Surpluses/Deficits,CHAS Scheme                             ,B06150,Supplies & Services           ,Services                      ,DF88,Assessor Fees,539,"3,115.00",11/30/2011,R,REDACTED
2011 - DEC,CS -Oth Operating Inc & Expend,Trading A/c Surpluses/Deficits,CHAS Scheme                             ,B06150,Supplies & Services           ,Services                      ,DF88,Assessor Fees,540,"1,990.00",11/30/2011,R,REDACTED
2011 - DEC,CS -Oth Operating Inc & Expend,Trading A/c Surpluses/Deficits,CHAS Scheme                             ,B06150,Supplies & Services           ,Services                      ,DF88,Assessor Fees,541,715,11/30/2011,R,REDACTED
2011 - DEC,CS -Oth Operating Inc & Expend,Trading A/c Surpluses/Deficits,CHAS Scheme                             ,B06150,Supplies & Services           ,Services                      ,DF88,Assessor Fees,542,"1,485.00",11/30/2011,R,REDACTED
2011 - DEC,CS -Oth Operating Inc & Expend,Trading A/c Surpluses/Deficits,CHAS Scheme                             ,B06150,Supplies & Services           ,Services                      ,DF88,Assessor Fees,543,"1,220.00",11/30/2011,R,2ND NATURE SAFETY SOLUTIONS UK
2011 - DEC,CS -Oth Operating Inc & Expend,Trading A/c Surpluses/Deficits,CHAS Scheme                             ,B06150,Supplies & Services           ,Services                      ,DF88,Assessor Fees,544,925,11/30/2011,R,REDACTED
2011 - DEC,CS -Oth Operating Inc & Expend,Trading A/c Surpluses/Deficits,CHAS Scheme                             ,B06150,Supplies & Services           ,Services                      ,DF88,Assessor Fees,545,875,11/30/2011,R,REDACTED
2011 - DEC,CS -Oth Operating Inc & Expend,Trading A/c Surpluses/Deficits,CHAS Scheme                             ,B06150,Supplies & Services           ,Services                      ,DF88,Assessor Fees,546,885,12/2/2011,R,REDACTED
2011 - DEC,CS -Oth Operating Inc & Expend,Trading A/c Surpluses/Deficits,CHAS Scheme                             ,B06150,Supplies & Services           ,Services                      ,DF88,Assessor Fees,547,915,11/30/2011,R,REDACTED
2011 - DEC,CS -Oth Operating Inc & Expend,Trading A/c Surpluses/Deficits,CHAS Scheme                             ,B06150,Supplies & Services           ,Services                      ,DF88,Assessor Fees,548,670,12/5/2011,R,REDACTED
2011 - DEC,CS -Oth Operating Inc & Expend,Trading A/c Surpluses/Deficits,CHAS Scheme                             ,B06150,Supplies & Services           ,Services                      ,DF88,Assessor Fees,549,711.23,11/30/2011,R,REDACTED
2011 - DEC,CS -Oth Operating Inc & Expend,Trading A/c Surpluses/Deficits,CHAS Scheme                             ,B06150,Supplies & Services           ,Services                      ,DF88,Assessor Fees,550,503.89,12/4/2011,R,REDACTED
2011 - DEC,CS -Oth Operating Inc & Expend,Trading A/c Surpluses/Deficits,CHAS Scheme                             ,B06150,Supplies & Services           ,Services                      ,DF88,Assessor Fees,551,605,12/11/2011,R,REDACTED
2011 - DEC,CS -Oth Operating Inc & Expend,Trading A/c Surpluses/Deficits,CHAS Scheme                             ,B06150,Supplies & Services           ,Services                      ,DF88,Assessor Fees,552,630,12/6/2011,R,REDACTED
2011 - DEC,CS -Oth Operating Inc & Expend,Trading A/c Surpluses/Deficits,CHAS Scheme                             ,B06150,Supplies & Services           ,Services                      ,DF88,Assessor Fees,553,635,12/1/2011,R,REDACTED
2011 - DEC,CS -Oth Operating Inc & Expend,Trading A/c Surpluses/Deficits,CHAS Scheme                             ,B06150,Supplies & Services           ,Services                      ,DF88,Assessor Fees,554,635,12/11/2011,R,REDACTED
2011 - DEC,CS -Oth Operating Inc & Expend,Trading A/c Surpluses/Deficits,CHAS Scheme                             ,B06150,Supplies & Services           ,Services                      ,DF88,Assessor Fees,555,500,12/10/2011,R,REDACTED
2011 - DEC,CS -Oth Operating Inc & Expend,Trading A/c Surpluses/Deficits,CHAS Scheme                             ,B06150,Supplies & Services           ,Services                      ,DF88,Assessor Fees,556,835,12/5/2011,R,REDACTED
2011 - DEC,CS -Oth Operating Inc & Expend,Trading A/c Surpluses/Deficits,CHAS Scheme                             ,B06150,Supplies & Services           ,Services                      ,DF88,Assessor Fees,557,"1,885.00",12/13/2011,R,REDACTED
2011 - DEC,CS -Oth Operating Inc & Expend,Trading A/c Surpluses/Deficits,CHAS Scheme                             ,B06150,Supplies & Services           ,Services                      ,DF88,Assessor Fees,558,"1,340.00",12/14/2011,R,REDACTED
2011 - DEC,CS -Oth Operating Inc & Expend,Trading A/c Surpluses/Deficits,CHAS Scheme                             ,B06150,Supplies & Services           ,Services                      ,DF88,Assessor Fees,559,"1,295.00",11/30/2011,R,REDACTED
2011 - DEC,CS -Oth Operating Inc & Expend,Trading A/c Surpluses/Deficits,CHAS Scheme                             ,B06150,Supplies & Services           ,Services                      ,DF88,Assessor Fees,560,"1,170.00",12/3/2011,R,REDACTED
2011 - DEC,CS -Oth Operating Inc & Expend,Trading A/c Surpluses/Deficits,CHAS Scheme                             ,B06150,Supplies & Services           ,Services                      ,DF88,Assessor Fees,561,670,12/19/2011,R,REDACTED
2011 - DEC,CS -Oth Operating Inc & Expend,Trading A/c Surpluses/Deficits,CHAS Scheme                             ,B06150,Supplies & Services           ,Services                      ,DF88,Assessor Fees,562,535,12/5/2011,R,REDACTED
2011 - DEC,CS -Oth Operating Inc & Expend,Trading A/c Surpluses/Deficits,CHAS Scheme                             ,B06150,Supplies & Services           ,Services                      ,DF88,Assessor Fees,563,835,12/9/2011,R,REDACTED
2011 - DEC,CS -Oth Operating Inc & Expend,Trading A/c Surpluses/Deficits,CHAS Scheme                             ,B06150,Supplies & Services           ,Services                      ,DF88,Assessor Fees,564,505,12/8/2011,R,REDACTED
2011 - DEC,CS -Oth Operating Inc & Expend,Trading A/c Surpluses/Deficits,CHAS Scheme                             ,B06150,Supplies & Services           ,Services                      ,DF88,Assessor Fees,565,865,12/17/2011,R,REDACTED
2011 - DEC,CS -Oth Operating Inc & Expend,Trading A/c Surpluses/Deficits,CHAS Scheme                             ,B06150,Supplies & Services           ,Services                      ,DF88,Assessor Fees,566,"1,410.00",12/10/2011,R,REDACTED
2011 - DEC,CS -Oth Operating Inc & Expend,Trading A/c Surpluses/Deficits,CHAS Scheme                             ,B06150,Supplies & Services           ,Services                      ,DF88,Assessor Fees,567,815,12/1/2011,R,2ND NATURE SAFETY SOLUTIONS UK
2011 - DEC,CS -Oth Operating Inc & Expend,Trading A/c Surpluses/Deficits,CHAS Scheme                             ,B06150,Supplies & Services           ,Services                      ,DF88,Assessor Fees,568,"1,330.00",12/15/2011,R,REDACTED
2011 - DEC,CS -Oth Operating Inc & Expend,Trading A/c Surpluses/Deficits,CHAS Scheme                             ,B06150,Supplies & Services           ,Services                      ,DF88,Assessor Fees,569,"3,190.00",12/1/2011,R,HOLLYGLADE LTD T/A BEACONRISK 
2011 - DEC,CS -Oth Operating Inc & Expend,Trading A/c Surpluses/Deficits,CHAS Scheme                             ,B06150,Supplies & Services           ,Services                      ,DF88,Assessor Fees,570,"1,215.00",12/30/2011,R,TERN ASSOCIATES LTD           
2011 - DEC,CS -Oth Operating Inc & Expend,Trading A/c Surpluses/Deficits,CHAS Scheme                             ,B06150,Supplies & Services           ,Services                      ,DF88,Assessor Fees,571,"8,170.00",11/30/2011,R,STALLARD KANE ASSOCIATES LTD  
2011 - DEC,CS -Oth Operating Inc & Expend,Trading A/c Surpluses/Deficits,CHAS Scheme                             ,B06150,Supplies & Services           ,Services                      ,DF88,Assessor Fees,572,"1,970.00",11/5/2011,R,REDACTED
2011 - DEC,CS -Oth Operating Inc & Expend,Trading A/c Surpluses/Deficits,CHAS Scheme                             ,B06150,Supplies & Services           ,Services                      ,DF88,Assessor Fees,573,"2,515.00",12/5/2011,R,REDACTED
2011 - DEC,CS -Oth Operating Inc & Expend,Trading A/c Surpluses/Deficits,CHAS Scheme                             ,B06150,Supplies & Services           ,Services                      ,DF88,Assessor Fees,574,"4,040.00",12/1/2011,R,ARC ASSOCIATES (UK)           
2011 - DEC,CS -Oth Operating Inc & Expend,Trading A/c Surpluses/Deficits,CHAS Scheme                             ,B06150,Supplies & Services           ,Services                      ,DF88,Assessor Fees,575,565,12/2/2011,R,REDACTED
2011 - DEC,CS -Oth Operating Inc & Expend,Trading A/c Surpluses/Deficits,CHAS Scheme                             ,B06150,Supplies & Services           ,Services                      ,DF88,Assessor Fees,576,"2,670.00",11/19/2011,R,WEST WALES SAFETY SERVICES    
2011 - DEC,CS -Oth Operating Inc & Expend,Trading A/c Surpluses/Deficits,CHAS Scheme                             ,B06150,Supplies & Services           ,Services                      ,DF88,Assessor Fees,577,"2,135.00",11/30/2011,R,REDACTED
2011 - DEC,CS -Oth Operating Inc & Expend,Trading A/c Surpluses/Deficits,CHAS Scheme                             ,B06150,Supplies & Services           ,Services                      ,DF88,Assessor Fees,578,"2,025.00",12/2/2011,R,MGW SAFETY SERVICES           
2011 - DEC,CS -Oth Operating Inc & Expend,Trading A/c Surpluses/Deficits,CHAS Scheme                             ,B06150,Supplies & Services           ,Services                      ,DF88,Assessor Fees,579,"1,340.00",11/30/2011,R,REDACTED
2011 - DEC,CS -Oth Operating Inc & Expend,Trading A/c Surpluses/Deficits,CHAS Scheme                             ,B06150,Supplies & Services           ,Services                      ,DF88,Assessor Fees,580,974.72,12/7/2011,R,REDACTED
2011 - DEC,CS -Oth Operating Inc & Expend,Trading A/c Surpluses/Deficits,CHAS Scheme                             ,B06150,Supplies & Services           ,Services                      ,DF88,Assessor Fees,581,"4,605.00",12/9/2011,R,REDACTED
2011 - DEC,CS -Oth Operating Inc & Expend,Trading A/c Surpluses/Deficits,CHAS Scheme                             ,B06150,Supplies & Services           ,Services                      ,DF88,Assessor Fees,582,715.92,12/27/2011,R,REDACTED
2011 - DEC,CS -Oth Operating Inc & Expend,Trading A/c Surpluses/Deficits,CHAS Scheme                             ,B06150,Supplies & Services           ,Services                      ,DF88,Assessor Fees,583,"1,820.00",12/8/2011,R,REDACTED
2011 - DEC,CS -Oth Operating Inc & Expend,Trading A/c Surpluses/Deficits,CHAS Scheme                             ,B06150,Supplies & Services           ,Comms and Computing           ,DG07,Computer Software,584,"1,733.00",11/11/2011,R,LEARNING TREE INTERNATIONAL   
2011 - DEC,CS -Oth Operating Inc & Expend,Trading A/c Surpluses/Deficits,CHAS Scheme                             ,B06150,Supplies & Services           ,Comms and Computing           ,DG07,Computer Software,585,"1,540.00",11/15/2011,R,LEARNING TREE INTERNATIONAL   
2011 - DEC,CS -Oth Operating Inc & Expend,Trading A/c Surpluses/Deficits,CHAS Scheme                             ,B06150,Supplies & Services           ,Expenses                      ,DH02,Conferences,586,"1,712.50",11/7/2011,R,UBM INFORMATION LTD           
2011 - DEC,,,CHP Equipment                           ,CEA728D,New Construction Conversion and Renovation,,2N,Capital main contractor payments,587,"168,023.48",12/14/2011,C,COFELY LIMITED                
2011 - DEC,,,Civic Centre refurbishment              ,CF001AB,New Construction Conversion and Renovation,,B4,Site Works - Contractor,588,"9,432.00",11/29/2011,C,HART DECORATORS LIMITED       
2011 - DEC,,,Civic Centre refurbishment              ,CF001AB,New Construction Conversion and Renovation,,B4,Site Works - Contractor,589,"3,225.00",11/29/2011,C,KH FLOORING LTD               
2011 - DEC,,,Civic Centre refurbishment              ,CF001AB,Vehicles Plant Equipment and Machinery,,D3,Equipment,590,"2,910.00",9/2/2011,C,ORACLE STORAGE SYSTEMS LIMITED
2011 - DEC,,,Civic Centre refurbishment              ,CF001AB,Vehicles Plant Equipment and Machinery,,D4,Specialist Furniture,591,"1,430.16",11/22/2011,C,UNIQUE OFFICE SOLUTIONS LTD   
2011 - DEC,,,Civic Centre refurbishment              ,CF001AB,Vehicles Plant Equipment and Machinery,,D4,Specialist Furniture,592,"1,568.88",11/22/2011,C,UNIQUE OFFICE SOLUTIONS LTD   
2011 - DEC,,,Civic Centre refurbishment              ,CF001AB,Vehicles Plant Equipment and Machinery,,D4,Specialist Furniture,593,"3,742.20",11/22/2011,C,UNIQUE OFFICE SOLUTIONS LTD   
2011 - DEC,,,Civic Centre refurbishment              ,CF001AB,Vehicles Plant Equipment and Machinery,,D4,Specialist Furniture,594,"1,075.00",11/30/2011,C,UNIQUE OFFICE SOLUTIONS LTD   
2011 - DEC,,,CHP Equipment                           ,CF001AE,New Construction Conversion and Renovation,,B1,Design and Supervision - Consultants Fee,595,545,8/2/2011,C,ACCON UK LTD                  
2011 - DEC,,,Asbestos Risk Assessment Work           ,CF004SB,New Construction Conversion and Renovation,,B4,Site Works - Contractor,596,627.23,11/18/2011,C,SALTASH ENTERPRISES LTD       
2011 - DEC,,,Asbestos Risk Assessment Work           ,CF004SB,New Construction Conversion and Renovation,,B4,Site Works - Contractor,597,525,5/26/2011,C,AIR SURVEYS  LIMITED          
2011 - DEC,,,Water Risk Assessment Works             ,CF004SC,New Construction Conversion and Renovation,,B4,Site Works - Contractor,598,"2,777.75",11/24/2011,C,MORTON FAIRVIEW ELEC SERVICES 
2011 - DEC,,,All Saint-Corridor Conservatry          ,CF007AB,New Construction Conversion and Renovation,,B4,Site Works - Contractor,599,"10,995.00",12/8/2011,C,JAYS CASH & CARRY GLASS       
2011 - DEC,,,Eastway- Electrical Switchgear          ,CF054AB,New Construction Conversion and Renovation,,B4,Site Works - Contractor,600,"4,500.00",11/30/2011,C,MORTON FAIRVIEW ELEC SERVICES 
2011 - DEC,,,Eastway- Electrical Switchgear          ,CF054AB,New Construction Conversion and Renovation,,B4,Site Works - Contractor,601,"3,000.00",12/20/2011,C,MORTON FAIRVIEW ELEC SERVICES 
2011 - DEC,,,South Wim Emergncy Light Systm          ,CPRM2YB,New Construction Conversion and Renovation,,2N,Capital main contractor payments,602,"1,295.00",5/27/2011,C,COFELY LIMITED                
2011 - DEC,,,Connect to N3 Netwrk NHS Spine          ,CT001EA,Other Capital Expenditure,,E3,Miscellaneous Capital Expenditure,603,"7,000.00",12/6/2011,C,NETFORT TECHNOLOGIES LTD      
2011 - DEC,,,Connect to N3 Netwrk NHS Spine          ,CT001EA,Other Capital Expenditure,,E3,Miscellaneous Capital Expenditure,604,500,12/6/2011,C,NETFORT TECHNOLOGIES LTD      
2011 - DEC,,,Connect to N3 Netwrk NHS Spine          ,CT001EA,Other Capital Expenditure,,E3,Miscellaneous Capital Expenditure,605,"2,070.00",12/6/2011,C,NETFORT TECHNOLOGIES LTD      
2011 - DEC,,,IT Equipment                            ,CT006EA,Vehicles Plant Equipment and Machinery,,D3,Equipment,606,"1,875.00",12/13/2011,C,SCALABLE COMMUNICATIONS PLC   
2011 - DEC,,,IT Equipment                            ,CT006EA,Vehicles Plant Equipment and Machinery,,D3,Equipment,607,"4,818.00",12/9/2011,C,SCALABLE COMMUNICATIONS PLC   
2011 - DEC,,,IT Equipment                            ,CT006EA,Vehicles Plant Equipment and Machinery,,D3,Equipment,608,"2,106.00",12/9/2011,C,SCALABLE COMMUNICATIONS PLC   
2011 - DEC,,,IT Equipment                            ,CT006EA,Vehicles Plant Equipment and Machinery,,D3,Equipment,609,"13,051.00",12/9/2011,C,SCALABLE COMMUNICATIONS PLC   
2011 - DEC,,,IT Equipment                            ,CT006EA,Vehicles Plant Equipment and Machinery,,D3,Equipment,610,"21,944.00",12/9/2011,C,SCALABLE COMMUNICATIONS PLC   
2011 - DEC,,,IT Equipment                            ,CT006EA,Vehicles Plant Equipment and Machinery,,D3,Equipment,611,"2,208.60",12/9/2011,C,SCALABLE COMMUNICATIONS PLC   
2011 - DEC,,,IT Equipment                            ,CT006EA,Other Capital Expenditure,,E3,Miscellaneous Capital Expenditure,612,"2,559.96",11/29/2011,C,INSIGHT DIRECT (UK) LTD       
2011 - DEC,,,IT Equipment                            ,CT006EA,Other Capital Expenditure,,E3,Miscellaneous Capital Expenditure,613,"2,865.00",12/12/2011,C,FORDWAY LTD                   
2011 - DEC,,,IT Equipment                            ,CT006EA,Other Capital Expenditure,,E3,Miscellaneous Capital Expenditure,614,894,12/12/2011,C,FORDWAY LTD                   
2011 - DEC,,,PABX                                    ,CT009EA,Other Capital Expenditure,,E3,Miscellaneous Capital Expenditure,615,"6,244.70",11/28/2011,C,NEC (UK) LTD                  
2011 - DEC,,,Transformation (IT)                     ,CT012EA,Vehicles Plant Equipment and Machinery,,D3,Equipment,616,"1,035.00",11/30/2011,C,HORNBILL SERVICE MGMENT LTD   
2011 - DEC,,,Capital Reporting Project               ,CT012EC,Vehicles Plant Equipment and Machinery,,D5,Software,617,"8,635.00",11/3/2011,C,UNISERVE CONSULTING LIMITED   
2011 - DEC,,,Capital Reporting Project               ,CT012EC,Vehicles Plant Equipment and Machinery,,D5,Software,618,"6,280.00",12/5/2011,C,UNISERVE CONSULTING LIMITED   
2011 - DEC,Central Services,Local Tax Collection,Local Taxation Services                 ,E02100,Supplies & Services           ,Prntng Stnry Gen Off Exp      ,DE03,Stationery,619,"1,100.00",11/16/2011,R,OVENDEN PAPERS LTD            
2011 - DEC,Central Services,Local Tax Collection,Local Taxation Services                 ,E02100,Third Party Payments          ,Private Contractors           ,EH01,Miscellaneous Agency Services,620,609.24,11/24/2011,R,PS&P                          
2011 - DEC,Housing Services,Housing Benefit Administration,Benefits Administration                 ,E02120,Employees                     ,Direct Employee Expenses      ,AA17,Agency Staff & Casual Paymts,621,520.26,11/23/2011,R,THE SYNERGY GROUP LIMITED     
2011 - DEC,Housing Services,Housing Benefit Administration,Benefits Administration                 ,E02120,Employees                     ,Direct Employee Expenses      ,AA17,Agency Staff & Casual Paymts,622,816.27,11/30/2011,R,THE SYNERGY GROUP LIMITED     
2011 - DEC,Housing Services,Housing Benefit Administration,Benefits Administration                 ,E02120,Employees                     ,Direct Employee Expenses      ,AA17,Agency Staff & Casual Paymts,623,708.63,12/7/2011,R,THE SYNERGY GROUP LIMITED     
2011 - DEC,Housing Services,Housing Benefit Administration,Benefits Administration                 ,E02120,Employees                     ,Direct Employee Expenses      ,AA17,Agency Staff & Casual Paymts,624,663.78,12/14/2011,R,THE SYNERGY GROUP LIMITED     
2011 - DEC,Housing Services,Housing Benefit Administration,Benefits Administration                 ,E02120,Supplies & Services           ,Prntng Stnry Gen Off Exp      ,DE03,Stationery,625,"1,100.00",11/16/2011,R,OVENDEN PAPERS LTD            
2011 - DEC,Central Services,Fully rechargeable Overheads,Payroll                                 ,E02140,Employees                     ,Indirect Employee Expenses    ,AB56,Internal Training Costs,626,500,11/21/2011,R,MANCHESTER OPEN LEARNING (MOL)
2011 - DEC,Central Services,Fully rechargeable Overheads,Payroll                                 ,E02140,Supplies & Services           ,Services                      ,DF03,Consultants,627,"1,443.75",11/11/2011,R,LINDEN ALLIANCE LIMITED       
2011 - DEC,Central Services,Fully rechargeable Overheads,Payroll                                 ,E02140,Supplies & Services           ,Services                      ,DF03,Consultants,628,"1,443.75",11/18/2011,R,LINDEN ALLIANCE LIMITED       
2011 - DEC,Central Services,Fully rechargeable Overheads,Payroll                                 ,E02140,Supplies & Services           ,Services                      ,DF03,Consultants,629,"1,443.75",12/2/2011,R,LINDEN ALLIANCE LIMITED       
2011 - DEC,Central Services,Fully rechargeable Overheads,Payroll                                 ,E02140,Supplies & Services           ,Services                      ,DF03,Consultants,630,721.88,12/8/2011,R,LINDEN ALLIANCE LIMITED       
2011 - DEC,Central Services,Fully rechargeable Overheads,Payroll                                 ,E02140,Supplies & Services           ,Services                      ,DF03,Consultants,631,"1,443.75",10/7/2011,R,LINDEN ALLIANCE LIMITED       
2011 - DEC,Central Services,Fully rechargeable Overheads,Payroll                                 ,E02140,Supplies & Services           ,Services                      ,DF03,Consultants,632,721.87,12/8/2011,R,LINDEN ALLIANCE LIMITED       
2011 - DEC,Central Services,Fully rechargeable Overheads,Payroll                                 ,E02140,Supplies & Services           ,Services                      ,DF03,Consultants,633,"1,650.00",8/26/2011,R,LINDEN ALLIANCE LIMITED       
2011 - DEC,Central Services,Fully rechargeable Overheads,Payroll                                 ,E02140,Supplies & Services           ,Comms and Computing           ,DG02,Software Licences,634,650,11/30/2011,R,TMP WORLDWIDE LTD             
2011 - DEC,Central Services,Fully rechargeable Overheads,Trinity Project                         ,E02141,Supplies & Services           ,Expenses                      ,DH50,Special Projects,635,"94,185.63",9/26/2011,R,LONDON BOROUGH OF SUTTON      
2011 - DEC,Central Services,Fully rechargeable Overheads,AD Customer Services                    ,E02180,Supplies & Services           ,Grants and Subscriptions      ,DJ04,Subscriptions,636,525,12/1/2011,R,THE CONSULTATION INSTITUTE    
2011 - DEC,Central Services,Fully rechargeable Overheads,Post Room                               ,E02220,Supplies & Services           ,Prntng Stnry Gen Off Exp      ,DE30,General Office Expenses,637,720,11/23/2011,R,TRAVELCARE                    
2011 - DEC,Central Services,Fully rechargeable Overheads,Post Room                               ,E02220,Third Party Payments          ,Private Contractors           ,EH02,Miscellaneous Hired Services,638,600,11/23/2011,R,TRAVELCARE                    
2011 - DEC,Central Services,Fully rechargeable Overheads,Civic Centre                            ,E02222,Premises Related Expenditure  ,RepairsAlterations&MtceOfBldgs,BA06,Repairs & Maintenance General,639,"2,945.00",12/9/2011,R,CHUBB FIRE MECHANICAL         
2011 - DEC,Central Services,Fully rechargeable Overheads,Civic Centre                            ,E02222,Premises Related Expenditure  ,Cleaning and Domestic Supplies,BH01,Cleaning Materials,640,"1,410.50",11/18/2011,R,MINATOL LTD                   
2011 - DEC,Central Services,Fully rechargeable Overheads,Civic Centre                            ,E02222,Premises Related Expenditure  ,Cleaning and Domestic Supplies,BH03,Cleaning Services,641,"8,574.12",11/14/2011,R,DYNAMIQ CLEANING LIMITED      
2011 - DEC,Central Services,Fully rechargeable Overheads,Gifford House                           ,E02223,Premises Related Expenditure  ,Cleaning and Domestic Supplies,BH03,Cleaning Services,642,799.59,11/14/2011,R,DYNAMIQ CLEANING LIMITED      
2011 - DEC,Central Services,Fully rechargeable Overheads,Gifford House                           ,E02223,Premises Related Expenditure  ,Cleaning and Domestic Supplies,BH03,Cleaning Services,643,788.92,10/17/2011,R,DYNAMIQ CLEANING LIMITED      
2011 - DEC,Central Services,Fully rechargeable Overheads,Ist  Floor Athena House                 ,E02233,Premises Related Expenditure  ,Rents                         ,BC01,Miscellaneous Rents,644,"1,476.50",11/23/2011,R,PEER SECURITIES LTD           
2011 - DEC,Central Services,Fully rechargeable Overheads,Ist  Floor Athena House                 ,E02233,Premises Related Expenditure  ,Rents                         ,BC01,Miscellaneous Rents,645,"10,437.50",11/23/2011,R,PEER SECURITIES LTD           
2011 - DEC,Central Services,Fully rechargeable Overheads,Ist  Floor Athena House                 ,E02233,Premises Related Expenditure  ,Rents                         ,BC01,Miscellaneous Rents,646,"3,077.00",11/23/2011,R,PEER SECURITIES LTD           
2011 - DEC,Central Services,Fully rechargeable Overheads,FM External Fees                        ,E02239,Premises Related Expenditure  ,RepairsAlterations&MtceOfBldgs,BA01,DDM - General Building,647,500,11/24/2011,R,KC DRAINS LTD                 
2011 - DEC,Central Services,Fully rechargeable Overheads,FM External Fees                        ,E02239,Premises Related Expenditure  ,RepairsAlterations&MtceOfBldgs,BA29,Build Maint Mgt Fees,648,"1,000.00",11/25/2011,R,3DR ARCHITECTS LIMITED        
2011 - DEC,Central Services,Fully rechargeable Overheads,FM External Fees                        ,E02239,Premises Related Expenditure  ,RepairsAlterations&MtceOfBldgs,BA29,Build Maint Mgt Fees,649,"12,960.00",10/7/2011,R,CIPFA BUSINESS LIMITED        
2011 - DEC,Central Services,Fully rechargeable Overheads,FM External Fees                        ,E02239,Premises Related Expenditure  ,RepairsAlterations&MtceOfBldgs,BA29,Build Maint Mgt Fees,650,"3,000.00",10/7/2011,R,CIPFA BUSINESS LIMITED        
2011 - DEC,Central Services,Fully rechargeable Overheads,Corporate Services Buildings            ,E02240,Premises Related Expenditure  ,RepairsAlterations&MtceOfBldgs,BA01,DDM - General Building,651,"1,715.00",11/29/2011,R,HART DECORATORS LIMITED       
2011 - DEC,Central Services,Fully rechargeable Overheads,Corporate Services Buildings            ,E02240,Premises Related Expenditure  ,RepairsAlterations&MtceOfBldgs,BA03,DDM - Mechanical,652,"13,406.00",12/22/2011,R,ENER-G COMBINED POWER LIMITED 
2011 - DEC,Central Services,Fully rechargeable Overheads,Corporate Services Buildings            ,E02240,Premises Related Expenditure  ,RepairsAlterations&MtceOfBldgs,BA05,DDM - Electrical,653,"3,567.22",11/26/2011,R,COFELY LIMITED                
2011 - DEC,Central Services,Fully rechargeable Overheads,Corporate Services Buildings            ,E02240,Premises Related Expenditure  ,RepairsAlterations&MtceOfBldgs,BA05,DDM - Electrical,654,832,3/30/2011,R,AXIS ELEVATORS LTD            
2011 - DEC,Central Services,Fully rechargeable Overheads,Corporate Services Buildings            ,E02240,Premises Related Expenditure  ,RepairsAlterations&MtceOfBldgs,BA05,DDM - Electrical,655,"1,949.00",11/29/2011,R,SUSCRAFT LTD(T/A OAKMEAD ELEC)
2011 - DEC,Central Services,Fully rechargeable Overheads,Corporate Services Buildings            ,E02240,Premises Related Expenditure  ,Energy Costs                  ,BB02,Electricity,656,"1,194.61",11/4/2011,R,EDF ENERGY                    
2011 - DEC,Central Services,Fully rechargeable Overheads,Corporate Services Buildings            ,E02240,Premises Related Expenditure  ,Energy Costs                  ,BB03,Gas (incl. Butane),657,"1,516.55",12/9/2011,R,KENT COUNTY COUNCIL           
2011 - DEC,Central Services,Fully rechargeable Overheads,Corporate Services Buildings            ,E02240,Premises Related Expenditure  ,Water Services                ,BE01,Use of Water (Metered),658,940.99,11/25/2011,R,SUTTON AND EAST SURREY WATER  
2011 - DEC,Childrens & Education Services,Service Strategy,CSF Buildings                           ,E02256,Premises Related Expenditure  ,RepairsAlterations&MtceOfBldgs,BA01,DDM - General Building,659,520.45,12/15/2011,R,SALTASH ENTERPRISES LTD       
2011 - DEC,Adult Social Care,Adult u65 Phys/Sensory Impair,C & H Buildings                         ,E02345,Premises Related Expenditure  ,RepairsAlterations&MtceOfBldgs,BA01,DDM - General Building,660,842.8,11/11/2011,R,COFELY LIMITED                
2011 - DEC,Adult Social Care,Adult u65 Phys/Sensory Impair,C & H Buildings                         ,E02345,Premises Related Expenditure  ,RepairsAlterations&MtceOfBldgs,BA01,DDM - General Building,661,648.14,12/15/2011,R,SALTASH ENTERPRISES LTD       
2011 - DEC,Adult Social Care,Adult u65 Phys/Sensory Impair,C & H Buildings                         ,E02345,Premises Related Expenditure  ,RepairsAlterations&MtceOfBldgs,BA05,DDM - Electrical,662,525.75,10/28/2011,R,COFELY LIMITED                
2011 - DEC,Adult Social Care,Adult u65 Phys/Sensory Impair,C & H Buildings                         ,E02345,Premises Related Expenditure  ,RepairsAlterations&MtceOfBldgs,BA05,DDM - Electrical,663,525.75,11/26/2011,R,COFELY LIMITED                
2011 - DEC,Adult Social Care,Adult u65 Phys/Sensory Impair,C & H Buildings                         ,E02345,Premises Related Expenditure  ,RepairsAlterations&MtceOfBldgs,BA05,DDM - Electrical,664,525.75,10/11/2011,R,COFELY LIMITED                
2011 - DEC,Adult Social Care,Adult u65 Phys/Sensory Impair,C & H Buildings                         ,E02345,Premises Related Expenditure  ,RepairsAlterations&MtceOfBldgs,BA05,DDM - Electrical,665,525.75,10/11/2011,R,COFELY LIMITED                
2011 - DEC,Cultural Env Reg&Plan Services,Open Spaces,Leisure Buildings                       ,E02350,Premises Related Expenditure  ,RepairsAlterations&MtceOfBldgs,BA01,DDM - General Building,666,725.68,12/15/2011,R,SALTASH ENTERPRISES LTD       
2011 - DEC,Cultural Env Reg&Plan Services,Open Spaces,Leisure Buildings                       ,E02350,Premises Related Expenditure  ,RepairsAlterations&MtceOfBldgs,BA05,DDM - Electrical,667,500,10/17/2011,R,COFELY LIMITED                
2011 - DEC,Central Services,Democ' Representation & Mgt,Corporately Funded Items                ,E04065,Employees                     ,Direct Employee Expenses      ,AA17,Agency Staff & Casual Paymts,668,"15,750.00",12/10/2011,R,REDACTED
2011 - DEC,Central Services,Democ' Representation & Mgt,Corporately Funded Items                ,E04065,Supplies & Services           ,Grants and Subscriptions      ,DJ01,Grants,669,"30,000.00",10/24/2011,R,THE HIGH STREET FUND          
2011 - DEC,Central Services,Fully rechargeable Overheads,Efficiency Review Project               ,E04068,Employees                     ,Indirect Employee Expenses    ,AB57,External Training Costs,670,"1,500.00",11/25/2011,R,AD ESSE CONSULTING LTD        
2011 - DEC,Central Services,Fully rechargeable Overheads,Internal Audit&Service Review           ,E05101,Supplies & Services           ,Comms and Computing           ,DG02,Software Licences,671,"1,958.00",11/7/2011,R,MAGIQUE GALILEO SOFTWARE LTD  
2011 - DEC,Central Services,Fully rechargeable Overheads,Internal Audit&Service Review           ,E05101,Supplies & Services           ,Comms and Computing           ,DG09,Computer Purchases - Misc,672,"1,422.00",11/7/2011,R,AUDITWARE SYSTEMS LTD         
2011 - DEC,Central Services,Fully rechargeable Overheads,Corporate Accountancy                   ,E06209,Supplies & Services           ,Prntng Stnry Gen Off Exp      ,DE02,General Publications,673,500,12/6/2011,R,CIPFA                         
2011 - DEC,Central Services,Fully rechargeable Overheads,Corporate Accountancy                   ,E06209,Supplies & Services           ,Services                      ,DF09,Miscellaneous Fees,674,"1,705.00",12/2/2011,R,EURAPLAN LIMITED              
2011 - DEC,Central Services,Fully rechargeable Overheads,Corporate Accountancy                   ,E06209,Supplies & Services           ,Services                      ,DF09,Miscellaneous Fees,675,"2,691.00",12/8/2011,R,EURAPLAN LIMITED              
2011 - DEC,Central Services,Fully rechargeable Overheads,Corporate Accountancy                   ,E06209,Supplies & Services           ,Services                      ,DF58,Audit Fee,676,"2,684.00",11/4/2011,R,AUDIT COMMISSION              
2011 - DEC,Central Services,Fully rechargeable Overheads,School Cash Collection Contrct          ,E06211,Third Party Payments          ,Private Contractors           ,EH02,Miscellaneous Hired Services,677,"1,595.93",11/30/2011,R,BANKING AUTOMATION LTD        
2011 - DEC,Central Services,Fully rechargeable Overheads,Treasury & Insurance                    ,E06222,Employees                     ,Direct Employee Expenses      ,AA17,Agency Staff & Casual Paymts,678,"2,250.00",11/23/2011,R,RANDSTAD FIN & PROF LTD.      
2011 - DEC,Central Services,Fully rechargeable Overheads,Treasury & Insurance                    ,E06222,Employees                     ,Direct Employee Expenses      ,AA17,Agency Staff & Casual Paymts,679,"1,050.00",11/23/2011,R,RANDSTAD FIN & PROF LTD.      
2011 - DEC,Central Services,Fully rechargeable Overheads,Treasury & Insurance                    ,E06222,Employees                     ,Direct Employee Expenses      ,AA17,Agency Staff & Casual Paymts,680,"4,500.00",12/6/2011,R,RANDSTAD FIN & PROF LTD.      
2011 - DEC,Central Services,Fully rechargeable Overheads,Treasury & Insurance                    ,E06222,Employees                     ,Direct Employee Expenses      ,AA17,Agency Staff & Casual Paymts,681,"1,050.00",11/28/2011,R,RANDSTAD FIN & PROF LTD.      
2011 - DEC,Central Services,Fully rechargeable Overheads,Parking Cash Collect'n Contrct          ,E06225,Third Party Payments          ,Private Contractors           ,EH02,Miscellaneous Hired Services,682,655.85,11/30/2011,R,LOOMIS UK LTD                 
2011 - DEC,Central Services,Fully rechargeable Overheads,Parking Cash Collect'n Contrct          ,E06225,Third Party Payments          ,Private Contractors           ,EH02,Miscellaneous Hired Services,683,"10,011.20",11/30/2011,R,BANKING AUTOMATION LTD        
2011 - DEC,Central Services,Fully rechargeable Overheads,Establishments' Cash Collect'n          ,E06226,Third Party Payments          ,Private Contractors           ,EH02,Miscellaneous Hired Services,684,"3,229.53",11/15/2011,R,LOOMIS UK LTD                 
2011 - DEC,Central Services,Fully rechargeable Overheads,Establishments' Cash Collect'n          ,E06226,Third Party Payments          ,Private Contractors           ,EH02,Miscellaneous Hired Services,685,"2,172.42",11/30/2011,R,BANKING AUTOMATION LTD        
2011 - DEC,Central Services,Fully rechargeable Overheads,Service Accountancy                     ,E06227,Employees                     ,Direct Employee Expenses      ,AA17,Agency Staff & Casual Paymts,686,"1,500.00",11/28/2011,R,RANDSTAD FIN & PROF LTD.      
2011 - DEC,Central Services,Fully rechargeable Overheads,Service Accountancy                     ,E06227,Employees                     ,Direct Employee Expenses      ,AA17,Agency Staff & Casual Paymts,687,"2,070.00",11/23/2011,R,RANDSTAD FIN & PROF LTD.      
2011 - DEC,Central Services,Fully rechargeable Overheads,Service Accountancy                     ,E06227,Employees                     ,Direct Employee Expenses      ,AA17,Agency Staff & Casual Paymts,688,"2,300.00",12/1/2011,R,RANDSTAD FIN & PROF LTD.      
2011 - DEC,Central Services,Fully rechargeable Overheads,Service Accountancy                     ,E06227,Employees                     ,Direct Employee Expenses      ,AA17,Agency Staff & Casual Paymts,689,"1,500.00",12/6/2011,R,RANDSTAD FIN & PROF LTD.      
2011 - DEC,Central Services,Fully rechargeable Overheads,Legal Shared Services                   ,E10278,Supplies & Services           ,Services                      ,DF03,Consultants,690,"2,719.65",11/16/2011,R,LEXIS NEXIS                   
2011 - DEC,Central Services,Fully rechargeable Overheads,Legal Shared Services                   ,E10278,Supplies & Services           ,Services                      ,DF03,Consultants,691,"15,650.99",10/26/2011,R,LEXIS NEXIS                   
2011 - DEC,Central Services,Fully rechargeable Overheads,Legal Shared Services                   ,E10278,Supplies & Services           ,Services                      ,DF03,Consultants,692,"17,795.15",11/8/2011,R,LEXIS NEXIS                   
2011 - DEC,Central Services,Fully rechargeable Overheads,AD CORPORATE GOVERNANCE               ,E10279,Employees                     ,Indirect Employee Expenses    ,AB57,External Training Costs,693,670,12/1/2011,R,AEA (BOOKINGS)                
2011 - DEC,Central Services,Fully rechargeable Overheads,AD CORPORATE GOVERNANCE               ,E10279,Supplies & Services           ,Equip Furniture/Materials     ,DA09,Equip-Purchases,694,"1,355.00",11/17/2011,R,RG JONES SOUND ENGINEERING LTD
2011 - DEC,Central Services,Fully rechargeable Overheads,AD CORPORATE GOVERNANCE               ,E10279,Supplies & Services           ,Services                      ,DF03,Consultants,695,809.5,10/21/2011,R,REDACTED
2011 - DEC,Central Services,Fully rechargeable Overheads,AD CORPORATE GOVERNANCE               ,E10279,Supplies & Services           ,Services                      ,DF03,Consultants,696,"9,210.50",10/21/2011,R,REDACTED
2011 - DEC,Central Services,Fully rechargeable Overheads,Legal Services                          ,E10282,Supplies & Services           ,Services                      ,DF11,Counsel's fees,697,"1,125.00",9/22/2011,R,REDACTED
2011 - DEC,Central Services,Fully rechargeable Overheads,Legal Services                          ,E10282,Supplies & Services           ,Services                      ,DF11,Counsel's fees,698,"2,525.00",12/9/2011,R,REDACTED
2011 - DEC,Central Services,Elections,Electoral Registration                  ,E10285,Supplies & Services           ,Comms and Computing           ,DG04,Postage - General,699,"1,084.88",12/5/2011,R,ROYAL MAIL GROUP LTD          
2011 - DEC,Central Services,Fully rechargeable Overheads,Shared Legal Service                    ,E10288,Supplies & Services           ,Equip Furniture/Materials     ,DA80,Books,700,580,12/9/2011,R,THOMSON REUTERS               
2011 - DEC,Central Services,Fully rechargeable Overheads,Shared Legal Service                    ,E10288,Supplies & Services           ,Services                      ,DF28,Court Fees,701,"2,925.00",12/20/2011,R,REDACTED
2011 - DEC,Central Services,Fully rechargeable Overheads,Shared Legal Service                    ,E10288,Supplies & Services           ,Services                      ,DF28,Court Fees,702,"2,225.00",12/8/2011,R,REDACTED
2011 - DEC,Central Services,Fully rechargeable Overheads,AD Business Improvement                 ,E14358,Employees                     ,Direct Employee Expenses      ,AA17,Agency Staff & Casual Paymts,703,"4,500.00",11/18/2011,R,PENNA PLC                     
2011 - DEC,Central Services,Fully rechargeable Overheads,AD Business Improvement                 ,E14358,Employees                     ,Direct Employee Expenses      ,AA17,Agency Staff & Casual Paymts,704,"7,500.00",11/24/2011,R,JW MANAGEMENT                 
2011 - DEC,Central Services,Fully rechargeable Overheads,AD Business Improvement                 ,E14358,Employees                     ,Direct Employee Expenses      ,AA17,Agency Staff & Casual Paymts,705,"4,500.00",11/30/2011,R,PENNA PLC                     
2011 - DEC,Central Services,Fully rechargeable Overheads,Corp Saving-Print Strategy              ,E14359,Supplies & Services           ,Equip Furniture/Materials     ,DA77,Photocopier Rental,706,"47,608.38",11/28/2011,R,ALTODIGITAL NETWORKS LTD      
2011 - DEC,Central Services,Fully rechargeable Overheads,Corp Saving-Print Strategy              ,E14359,Supplies & Services           ,Prntng Stnry Gen Off Exp      ,DE06,Internal Printing,707,"40,382.60",11/28/2011,R,ALTODIGITAL NETWORKS LTD      
2011 - DEC,Central Services,Fully rechargeable Overheads,BI IT Projects                          ,E14360,Supplies & Services           ,Services                      ,DF03,Consultants,708,"6,500.00",11/30/2011,R,REDACTED
2011 - DEC,Central Services,Fully rechargeable Overheads,AD I&T                                  ,E14363,Supplies & Services           ,Comms and Computing           ,DG57,Licences Microsoft Select,709,"1,970.76",12/7/2011,R,CIVICA SERVICES LTD           
2011 - DEC,Central Services,Fully rechargeable Overheads,AD I&T                                  ,E14363,Supplies & Services           ,Comms and Computing           ,DG57,Licences Microsoft Select,710,679.14,12/7/2011,R,CIVICA SERVICES LTD           
2011 - DEC,Central Services,Fully rechargeable Overheads,Operations & Telecomms                  ,E14367,Premises Related Expenditure  ,RepairsAlterations&MtceOfBldgs,BA05,DDM - Electrical,711,"2,700.00",12/14/2011,R,JCS NETWORKS LTD              
2011 - DEC,Central Services,Fully rechargeable Overheads,Operations & Telecomms                  ,E14367,Supplies & Services           ,Equip Furniture/Materials     ,DA09,Equip-Purchases,712,"4,998.00",11/30/2011,R,NEOPOST LIMITED               
2011 - DEC,Central Services,Fully rechargeable Overheads,Operations & Telecomms                  ,E14367,Supplies & Services           ,Services                      ,DF04,Miscellaneous Expenses,713,"1,267.80",11/21/2011,R,CONDUSIV TECHNOLOGIES         
2011 - DEC,Central Services,Fully rechargeable Overheads,Operations & Telecomms                  ,E14367,Supplies & Services           ,Comms and Computing           ,DG54,Corporate Telephones,714,"2,173.07",12/2/2011,R,COLT TELECOMMUNICATIONS       
2011 - DEC,Central Services,Fully rechargeable Overheads,Operations & Telecomms                  ,E14367,Supplies & Services           ,Comms and Computing           ,DG54,Corporate Telephones,715,"23,179.55",11/27/2011,R,BRITISH TELECOMMUNICATIONS PLC
2011 - DEC,Central Services,Fully rechargeable Overheads,Distributed Services                    ,E14368,Supplies & Services           ,Equip Furniture/Materials     ,DA64,Software Licenses - Distrib,716,"2,500.00",12/1/2011,R,NU NETWORK PRODUCTS LTD       
2011 - DEC,Central Services,Fully rechargeable Overheads,Distributed Services                    ,E14368,Supplies & Services           ,Comms and Computing           ,DG63,Software Licences - Data,717,"12,000.00",12/14/2011,R,DUE NORTH LTD                 
2011 - DEC,Central Services,Fully rechargeable Overheads,Distributed Services                    ,E14368,Supplies & Services           ,Comms and Computing           ,DG63,Software Licences - Data,718,"42,294.00",11/25/2011,R,PROACTIS GROUP LTD            
2011 - DEC,Central Services,Fully rechargeable Overheads,Distributed Services                    ,E14368,Supplies & Services           ,Comms and Computing           ,DG63,Software Licences - Data,719,"1,260.00",12/19/2011,R,PROCESSFLOWS UK LTD           
2011 - DEC,Central Services,Fully rechargeable Overheads,Distributed Services                    ,E14368,Supplies & Services           ,Comms and Computing           ,DG63,Software Licences - Data,720,"10,225.00",12/14/2011,R,ME LEARNING                   
2011 - DEC,Central Services,Fully rechargeable Overheads,Distributed Services                    ,E14368,Supplies & Services           ,Comms and Computing           ,DG65,Application Licences,721,"6,433.54",11/17/2011,R,CIVICA UK LIMITED             
2011 - DEC,Central Services,Fully rechargeable Overheads,Distributed Services                    ,E14368,Supplies & Services           ,Comms and Computing           ,DG65,Application Licences,722,881.16,11/17/2011,R,CIVICA UK LIMITED             
2011 - DEC,,,Aragon expansion                        ,CS008AA,New Construction Conversion and Renovation,,B1,Design and Supervision - Consultants Fee,723,"9,890.35",11/30/2011,C,EC HARRIS LLP                 
2011 - DEC,,,St Mary's expansion                     ,CS008RA,New Construction Conversion and Renovation,,B1,Design and Supervision - Consultants Fee,724,"9,625.22",11/24/2011,C,ATKINS LTD                    
2011 - DEC,,,All Saints/ South Wim YCC exp           ,CS008SB,New Construction Conversion and Renovation,,B1,Design and Supervision - Consultants Fee,725,"18,667.30",11/24/2011,C,ATKINS LTD                    
2011 - DEC,,,All Saints/ South Wim YCC exp           ,CS008SB,New Construction Conversion and Renovation,,B1,Design and Supervision - Consultants Fee,726,"22,177.29",11/24/2011,C,ATKINS LTD                    
2011 - DEC,,,Benedict expansion                      ,CS009AA,New Construction Conversion and Renovation,,B4,Site Works - Contractor,727,"87,059.32",11/28/2011,C,R DURTNELL & SONS LTD         
2011 - DEC,,,Joseph Hood Permanent Expansn           ,CS012AA,New Construction Conversion and Renovation,,B4,Site Works - Contractor,728,"94,000.00",12/21/2011,C,GEE CONSTRUCTION LTD          
2011 - DEC,,,Garden PCP                              ,CS013AA,New Construction Conversion and Renovation,,B4,Site Works - Contractor,729,"44,550.32",12/14/2011,C,R DURTNELL & SONS LTD         
2011 - DEC,,,Garden PCP                              ,CS013AA,Vehicles Plant Equipment and Machinery,,D3,Equipment,730,"3,719.00",12/9/2011,C,ATOMWIDE LTD                  
2011 - DEC,,,Links PCP                               ,CS014AA,New Construction Conversion and Renovation,,B1,Design and Supervision - Consultants Fee,731,"6,028.46",11/30/2011,C,EC HARRIS LLP                 
2011 - DEC,,,SS Peter & Paul PCP                     ,CS014RA,New Construction Conversion and Renovation,,B1,Design and Supervision - Consultants Fee,732,"17,827.99",12/1/2011,C,ATKINS LTD                    
2011 - DEC,,,SS Peter & Paul PCP                     ,CS014RA,New Construction Conversion and Renovation,,B1,Design and Supervision - Consultants Fee,733,"16,474.72",12/1/2011,C,ATKINS LTD                    
2011 - DEC,,,SS Peter & Paul PCP                     ,CS014RA,New Construction Conversion and Renovation,,B4,Site Works - Contractor,734,"149,403.07",12/1/2011,C,GEE CONSTRUCTION LTD          
2011 - DEC,,,SS Peter & Paul PCP                     ,CS014RA,New Construction Conversion and Renovation,,B4,Site Works - Contractor,735,"45,049.57",11/30/2011,C,GEE CONSTRUCTION LTD          
2011 - DEC,,,William Morris PCP                      ,CS016AA,New Construction Conversion and Renovation,,B1,Design and Supervision - Consultants Fee,736,"5,603.17",12/9/2011,C,ATKINS LIMITED                
2011 - DEC,,,Bond - Imprvmnts to corridors           ,CS017AB,New Construction Conversion and Renovation,,B2,Design and Supervision - Site Surveys,737,525,11/30/2011,C,REDACTED
2011 - DEC,,,Gorringe Park expansion                 ,CS018AB,New Construction Conversion and Renovation,,B6,Site Works - Other Costs,738,790,12/19/2011,C,EDE'S (U.K.) LTD              
2011 - DEC,,,Hillcross -  task works                 ,CS020AB,New Construction Conversion and Renovation,,B2,Design and Supervision - Site Surveys,739,665,11/30/2011,C,REDACTED
2011 - DEC,,,Merton Abbey Temp Accomodation          ,CS022AC,New Construction Conversion and Renovation,,B1,Design and Supervision - Consultants Fee,740,"4,260.73",11/24/2011,C,ATKINS LIMITED                
2011 - DEC,,,Merton Abbey Temp Accomodation          ,CS022AC,New Construction Conversion and Renovation,,B4,Site Works - Contractor,741,"1,115.10",11/25/2011,C,H G HIGGINSON LTD             
2011 - DEC,,,Merton Abbey Temp Accomodation          ,CS022AC,Vehicles Plant Equipment and Machinery,,D3,Equipment,742,"1,574.00",12/9/2011,C,ATOMWIDE LTD                  
2011 - DEC,,,Stanford roofing & tarmac               ,CS024AA,New Construction Conversion and Renovation,,B4,Site Works - Contractor,743,"1,452.61",12/6/2011,C,ACCLAIM CONTRACTS LTD         
2011 - DEC,,,Melrose pitched roof renewal            ,CS027AA,New Construction Conversion and Renovation,,B4,Site Works - Contractor,744,791.67,11/30/2011,C,DURABLE CONTRACTS LTD         
2011 - DEC,,,Cricket Green Site                      ,CS027AE,New Construction Conversion and Renovation,,B4,Site Works - Contractor,745,615.63,11/30/2011,C,DURABLE CONTRACTS LTD         
2011 - DEC,,,Dundonald expansion                     ,CS031AC,New Construction Conversion and Renovation,,B1,Design and Supervision - Consultants Fee,746,"6,300.00",11/29/2011,C,AREA LANDSCAPE ARCHITECTS     
2011 - DEC,,,Dundonald expansion                     ,CS031AC,New Construction Conversion and Renovation,,B1,Design and Supervision - Consultants Fee,747,"1,600.00",11/30/2011,C,SYNERGY CPC LLP               
2011 - DEC,,,Dundonald expansion                     ,CS031AC,New Construction Conversion and Renovation,,B2,Design and Supervision - Site Surveys,748,"1,377.00",12/20/2011,C,MOUCHEL LTD                   
2011 - DEC,,,St Anns - Primary                       ,CS032AB,New Construction Conversion and Renovation,,B2,Design and Supervision - Site Surveys,749,675,11/30/2011,C,REDACTED
2011 - DEC,,,St Anns - Primary                       ,CS032AB,New Construction Conversion and Renovation,,B4,Site Works - Contractor,750,680.34,12/1/2011,C,PORTAKABIN LIMITED            
2011 - DEC,,,Poplar                                  ,CS034AA,New Construction Conversion and Renovation,,B1,Design and Supervision - Consultants Fee,751,"3,466.11",11/25/2011,C,EC HARRIS LLP                 
2011 - DEC,,,Adventure Playground                    ,CS038AB,New Construction Conversion and Renovation,,B4,Site Works - Contractor,752,"5,727.36",10/18/2011,C,THEORIES LANDSCAPES           
2011 - DEC,,,Holy Trinity Expansion                  ,CS044RA,New Construction Conversion and Renovation,,B1,Design and Supervision - Consultants Fee,753,"5,237.28",12/8/2011,C,CURL LA TOURELLE ARCHITECTS   
2011 - DEC,,,Wimbledon Park expansion                ,CS050AA,New Construction Conversion and Renovation,,B1,Design and Supervision - Consultants Fee,754,"2,400.00",11/30/2011,C,SYNERGY CPC LLP               
2011 - DEC,,,Wimbledon Park expansion                ,CS050AA,New Construction Conversion and Renovation,,B2,Design and Supervision - Site Surveys,755,"2,587.50",11/28/2011,C,GO DRAINAGE SERVICES LTD      
2011 - DEC,,,Wimbledon Park expansion                ,CS050AA,New Construction Conversion and Renovation,,B4,Site Works - Contractor,756,"3,116.10",12/14/2011,C,PORTAKABIN LIMITED            
2011 - DEC,,,Wimbledon Park expansion                ,CS050AA,Vehicles Plant Equipment and Machinery,,D3,Equipment,757,"5,368.92",9/13/2011,C,MM-ICT LIMITED                
2011 - DEC,,,Childrens Centres                       ,CS068SA,New Construction Conversion and Renovation,,B4,Site Works - Contractor,758,"4,957.50",12/5/2011,C,EXTRASPACE (NI) LTD           
2011 - DEC,,,Primary Capital Programme               ,CS070SA,New Construction Conversion and Renovation,,B1,Design and Supervision - Consultants Fee,759,"3,494.58",11/29/2011,C,EC HARRIS LLP                 
2011 - DEC,Childrens & Education Services,Schools Strategic Management,Senior Mngt & Support Services          ,K01005,Supplies & Services           ,Services                      ,DF11,Counsel's fees,760,745,9/5/2011,R,REDACTED
2011 - DEC,Childrens & Education Services,Schools Strategic Management,Senior Mngt & Support Services          ,K01005,Supplies & Services           ,Services                      ,DF11,Counsel's fees,761,520,10/7/2011,R,REDACTED
2011 - DEC,Childrens & Education Services,Schools Strategic Management,Senior Mngt & Support Services          ,K01005,Supplies & Services           ,Services                      ,DF11,Counsel's fees,762,675,9/5/2011,R,REDACTED
2011 - DEC,Childrens & Education Services,Schools Strategic Management,Senior Mngt & Support Services          ,K01005,Supplies & Services           ,Services                      ,DF11,Counsel's fees,763,600,11/16/2011,R,REDACTED
2011 - DEC,Childrens & Education Services,Schools Strategic Management,Senior Mngt & Support Services          ,K01005,Supplies & Services           ,Services                      ,DF11,Counsel's fees,764,"1,425.00",9/7/2011,R,REDACTED
2011 - DEC,Childrens & Education Services,Schools Strategic Management,Senior Mngt & Support Services          ,K01005,Supplies & Services           ,Services                      ,DF11,Counsel's fees,765,790,9/28/2011,R,REDACTED
2011 - DEC,Childrens & Education Services,Schools Strategic Management,Senior Mngt & Support Services          ,K01005,Supplies & Services           ,Services                      ,DF11,Counsel's fees,766,840,10/19/2011,R,REDACTED
2011 - DEC,Childrens & Education Services,Schools Strategic Management,Senior Mngt & Support Services          ,K01005,Supplies & Services           ,Services                      ,DF11,Counsel's fees,767,"3,185.00",9/20/2011,R,REDACTED
2011 - DEC,Childrens & Education Services,Schools Strategic Management,Parentng Strategy Supprt Grant          ,K03004,Employees                     ,Indirect Employee Expenses    ,AB57,External Training Costs,768,975,11/3/2011,R,RACE EQUALITY FOUNDATION      
2011 - DEC,Childrens & Education Services,Schools Strategic Management,Business Systems(Sch.Support)           ,K03017,Supplies & Services           ,Comms and Computing           ,DG50,Other IT Expenditure,769,675.07,11/11/2011,R,LONDON GRID FOR LEARNING TRUST
2011 - DEC,Childrens & Education Services,Assuring Access To Schools,PFI Unitary Charges                     ,K03023,Supplies & Services           ,Grants and Subscriptions      ,DJ03,External legal expenses,770,"1,352.50",10/24/2011,R,NABARRO                       
2011 - DEC,Childrens & Education Services,Assuring Access To Schools,PFI Unitary Charges                     ,K03023,Third Party Payments          ,Private Contractors           ,EH02,Miscellaneous Hired Services,771,"4,668.54",10/24/2011,R,NEWSCHOOLS (MERTON) LIMITED   
2011 - DEC,Childrens & Education Services,Assuring Access To Schools,PFI Unitary Charges                     ,K03023,Third Party Payments          ,Private Contractors           ,EH02,Miscellaneous Hired Services,772,666,10/31/2011,R,NEWSCHOOLS (MERTON) LIMITED   
2011 - DEC,Childrens & Education Services,Assuring Access To Schools,PFI Unitary Charges                     ,K03023,Third Party Payments          ,Private Contractors           ,EH02,Miscellaneous Hired Services,773,"24,706.07",11/28/2011,R,NEWSCHOOLS (MERTON) LIMITED   
2011 - DEC,Childrens & Education Services,Assuring Access To Schools,PFI Unitary Charges                     ,K03023,Third Party Payments          ,Private Contractors           ,EH02,Miscellaneous Hired Services,774,"839,055.25",12/1/2011,R,NEWSCHOOLS (MERTON) LIMITED   
2011 - DEC,Childrens & Education Services,Supporting SEN,Education Psychology.                   ,K04018,Employees                     ,Direct Employee Expenses      ,AA17,Agency Staff & Casual Paymts,775,"2,437.50",10/27/2011,R,FACE YOUTH                    
2011 - DEC,Childrens & Education Services,Supporting SEN,Education Psychology.                   ,K04018,Employees                     ,Direct Employee Expenses      ,AA17,Agency Staff & Casual Paymts,776,"4,125.00",11/26/2011,R,REDACTED
2011 - DEC,Childrens & Education Services,Pre-School Ed (inc Nursery),Childrens Info To Parents               ,K05079,Supplies & Services           ,Grants and Subscriptions      ,DJ01,Grants,777,675,12/5/2011,R,SACRED HEART FUN CLUB         
2011 - DEC,Childrens & Education Services,Supporting SEN,Expanded Pupil Referral Unit            ,K05099,Third Party Payments          ,Private Contractors           ,EH01,Miscellaneous Agency Services,778,"5,366.13",11/29/2011,R,SW LONDON ST GEORGES NHS TRUST
2011 - DEC,Childrens & Education Services,Pre-School Ed (inc Nursery),GSSG Workforce Development              ,K05111,Employees                     ,Direct Employee Expenses      ,AA04,Shared Services Salaries,779,"11,169.54",11/25/2011,R,LONDON BOROUGH OF SUTTON      
2011 - DEC,Childrens & Education Services,Pre-School Ed (inc Nursery),GSSG Workforce Development              ,K05111,Supplies & Services           ,Services                      ,DF03,Consultants,780,"3,200.00",11/30/2011,R,REDACTED
2011 - DEC,Childrens & Education Services,Pre-School Ed (inc Nursery),GSSG Central Administration             ,K05400,Supplies & Services           ,Grants and Subscriptions      ,DJ01,Grants,781,"3,000.00",12/22/2011,R,WILLOWS PRE-SCHOOL            
2011 - DEC,Childrens & Education Services,Pre-School Ed (inc Nursery),GSSG Central Administration             ,K05400,Supplies & Services           ,Grants and Subscriptions      ,DJ01,Grants,782,"3,000.00",12/23/2011,R,COLLIERS WOOD VILLAGE DAY NUR.
2011 - DEC,Childrens & Education Services,Pre-School Ed (inc Nursery),Home Grown Graduate Incentive           ,K05402,Supplies & Services           ,Grants and Subscriptions      ,DJ01,Grants,783,"3,000.00",12/20/2011,R,WILLOWS PRE-SCHOOL            
2011 - DEC,Childrens & Education Services,Pre-School Ed (inc Nursery),Home Grown Graduate Incentive           ,K05402,Supplies & Services           ,Grants and Subscriptions      ,DJ01,Grants,784,"5,000.00",12/20/2011,R,WILLOWS PRE-SCHOOL            
2011 - DEC,Childrens & Education Services,Pre-School Ed (inc Nursery),Lavender Children's Centre              ,K05410,Premises Related Expenditure  ,Cleaning and Domestic Supplies,BH03,Cleaning Services,785,962.44,11/5/2011,R,RE MCS CLEANING SERVICES LTD  
2011 - DEC,Childrens & Education Services,Pre-School Ed (inc Nursery),E.Years-Intergenerational Cntr          ,K05416,Premises Related Expenditure  ,Cleaning and Domestic Supplies,BH03,Cleaning Services,786,844.69,11/25/2011,R,JULIUS RUTHERFOORD & CO LTD   
2011 - DEC,Childrens & Education Services,Youth Service,Youth Service                           ,K06053,Supplies & Services           ,Comms and Computing           ,DG07,Computer Software,787,850,11/21/2011,R,QUALITY EDUCATION SOLUTIONS LT
2011 - DEC,Childrens & Education Services,Youth Service,Youth Service                           ,K06053,Supplies & Services           ,Comms and Computing           ,DG07,Computer Software,788,750,11/30/2011,R,QUALITY EDUCATION SOLUTIONS LT
2011 - DEC,Childrens & Education Services,Youth Service,Youth Service                           ,K06053,Supplies & Services           ,Expenses                      ,DH12,Young Peoples Expenses,789,800,8/24/2011,R,SUTTON & DISTRICT TRAINING LTD
2011 - DEC,Childrens & Education Services,Youth Service,Youth Service                           ,K06053,Supplies & Services           ,Expenses                      ,DH12,Young Peoples Expenses,790,"3,320.00",11/23/2011,R,THE AWARD SCHEME LTD          
2011 - DEC,Childrens & Education Services,Youth Service,Youth Service                           ,K06053,Supplies & Services           ,Expenses                      ,DH12,Young Peoples Expenses,791,600,10/1/2011,R,REDACTED
2011 - DEC,Childrens & Education Services,Youth Service,South W'don Yth Ctre                    ,K06056,Supplies & Services           ,Expenses                      ,DH12,Young Peoples Expenses,792,555,11/1/2011,R,REDACTED
2011 - DEC,Childrens & Education Services,Youth Service,Pollards Hll Yth Ctre                   ,K06065,Premises Related Expenditure  ,Cleaning and Domestic Supplies,BH03,Cleaning Services,793,501.33,11/25/2011,R,JULIUS RUTHERFOORD & CO LTD   
2011 - DEC,Childrens & Education Services,Youth Service,YAP PA (Conx)                           ,K06071,Third Party Payments          ,Private Contractors           ,EH01,Miscellaneous Agency Services,794,"22,000.00",12/21/2011,R,CATCH 22                      
2011 - DEC,Childrens & Education Services,Youth Service,Youth Office Premises Cost              ,K06073,Premises Related Expenditure  ,RepairsAlterations&MtceOfBldgs,BA03,DDM - Mechanical,795,"1,298.15",11/17/2011,R,COFELY LIMITED                
2011 - DEC,Childrens & Education Services,Youth Service,Youth Office Premises Cost              ,K06073,Premises Related Expenditure  ,RepairsAlterations&MtceOfBldgs,BA06,Repairs & Maintenance General,796,"3,756.00",11/30/2011,R,PJ HARVEY & CO LTD            
2011 - DEC,Childrens & Education Services,Youth Service,PAYP Moving Forward in Life             ,K06092,Premises Related Expenditure  ,Rents                         ,BC01,Miscellaneous Rents,797,"6,000.00",12/6/2011,R,GOLDPLAZA (MITCHAM) LIMITED   
2011 - DEC,Childrens & Education Services,Assuring Access To Schools,Careers Educ IAG Contracts              ,K06097,Third Party Payments          ,Private Contractors           ,EH01,Miscellaneous Agency Services,798,"1,500.00",11/18/2011,R,ATOMWIDE LTD                  
2011 - DEC,Childrens & Education Services,Assuring Access To Schools,Young Person Substance Misuse           ,K06114,Third Party Payments          ,Private Contractors           ,EH01,Miscellaneous Agency Services,799,"53,293.50",11/17/2011,R,CATCH 22                      
2011 - DEC,Childrens & Education Services,Assuring Access To Schools,Children & Yth Participation            ,K06115,Third Party Payments          ,Private Contractors           ,EH01,Miscellaneous Agency Services,800,"1,272.94",11/18/2011,R,BRITISH COUNCIL               
2011 - DEC,Childrens & Education Services,Assuring Access To Schools,Children & Yth Participation            ,K06115,Third Party Payments          ,Private Contractors           ,EH01,Miscellaneous Agency Services,801,"1,580.00",11/24/2011,R,VICTOR FILMS LTD              
2011 - DEC,Childrens & Education Services,Assuring Access To Schools,S106 Bid                                ,K08077,Premises Related Expenditure  ,Ground Maintenance Costs      ,BL03,Maintenance of Grounds,802,945,11/28/2011,R,SITECHNICS LTD                
2011 - DEC,Childrens & Education Services,Assuring Access To Schools,S106 Bid                                ,K08077,Premises Related Expenditure  ,Ground Maintenance Costs      ,BL03,Maintenance of Grounds,803,"1,605.82",11/29/2011,R,EC HARRIS LLP                 
2011 - DEC,Childrens & Education Services,Facilitating Sch Improvement,SSQ                                     ,K09077,Supplies & Services           ,Services                      ,DF03,Consultants,804,825,11/30/2011,R,REDACTED
2011 - DEC,Childrens & Education Services,Facilitating Sch Improvement,SSQ                                     ,K09077,Supplies & Services           ,Services                      ,DF03,Consultants,805,700,11/25/2011,R,REDACTED
2011 - DEC,Childrens & Education Services,Facilitating Sch Improvement,SSQ                                     ,K09077,Supplies & Services           ,Services                      ,DF03,Consultants,806,500,12/6/2011,R,WOODCOTE PRIMARY SCHOOL       
2011 - DEC,Childrens & Education Services,Schools Strategic Management,Profess Develop Cntre                   ,K09084,Premises Related Expenditure  ,Cleaning and Domestic Supplies,BH03,Cleaning Services,807,"2,568.85",11/25/2011,R,JULIUS RUTHERFOORD & CO LTD   
2011 - DEC,Childrens & Education Services,Assuring Access To Schools,Free School Meals                       ,K90002,Premises Related Expenditure  ,RepairsAlterations&MtceOfBldgs,BA01,DDM - General Building,808,605.52,11/17/2011,R,CATERCRAFT SUPPLIES LTD       
2011 - DEC,Childrens & Education Services,Assuring Access To Schools,Alt Education - Pupil Budget            ,K90010,Supplies & Services           ,Services                      ,DF07,Bought in Teaching Services,809,656,11/10/2011,R,HA TUTORS LTD                 
2011 - DEC,Childrens & Education Services,Assuring Access To Schools,Alt Education - Pupil Budget            ,K90010,Supplies & Services           ,Services                      ,DF07,Bought in Teaching Services,810,"6,360.00",11/22/2011,R,BLESSED LTD                   
2011 - DEC,Childrens & Education Services,Assuring Access To Schools,Alt Education - Pupil Budget            ,K90010,Supplies & Services           ,Services                      ,DF07,Bought in Teaching Services,811,"5,517.00",12/1/2011,R,IMMANUEL HOUSE-COMM TRAINING  
2011 - DEC,Childrens & Education Services,Assuring Access To Schools,Alt Education - Pupil Budget            ,K90010,Supplies & Services           ,Services                      ,DF07,Bought in Teaching Services,812,615,11/10/2011,R,HA TUTORS LTD                 
2011 - DEC,Childrens & Education Services,Assuring Access To Schools,Alt Education - Pupil Budget            ,K90010,Supplies & Services           ,Services                      ,DF07,Bought in Teaching Services,813,"2,200.00",12/2/2011,R,SUTTON & DISTRICT TRAINING LTD
2011 - DEC,Childrens & Education Services,Assuring Access To Schools,Alt Education - Pupil Budget            ,K90010,Supplies & Services           ,Services                      ,DF07,Bought in Teaching Services,814,780,12/2/2011,R,SUTTON & DISTRICT TRAINING LTD
2011 - DEC,Childrens & Education Services,Facilitating Sch Improvement,Virtual Schools - PEA's                 ,K90016,Supplies & Services           ,Expenses                      ,DH12,Young Peoples Expenses,815,500,11/30/2011,R,REDACTED
2011 - DEC,Childrens & Education Services,Facilitating Sch Improvement,Virtual Schools - PEA's                 ,K90016,Supplies & Services           ,Expenses                      ,DH12,Young Peoples Expenses,816,648.63,12/1/2011,R,BOOK TRUST                    
2011 - DEC,Childrens & Education Services,Supporting SEN,Smart Centre (Pupil Refer Unit          ,K90019,Employees                     ,Direct Employee Expenses      ,AA17,Agency Staff & Casual Paymts,817,"1,525.00",11/13/2011,R,TRADEWIND RECRUITMENT         
2011 - DEC,Childrens & Education Services,Supporting SEN,Smart Centre (Pupil Refer Unit          ,K90019,Employees                     ,Direct Employee Expenses      ,AA17,Agency Staff & Casual Paymts,818,"2,515.00",12/4/2011,R,TRADEWIND RECRUITMENT         
2011 - DEC,Childrens & Education Services,Supporting SEN,Smart Centre (Pupil Refer Unit          ,K90019,Employees                     ,Direct Employee Expenses      ,AA17,Agency Staff & Casual Paymts,819,"2,625.00",11/27/2011,R,TRADEWIND RECRUITMENT         
2011 - DEC,Childrens & Education Services,Supporting SEN,Smart Centre (Pupil Refer Unit          ,K90019,Premises Related Expenditure  ,Energy Costs                  ,BB02,Electricity,820,"2,823.19",11/10/2011,R,EDF ENERGY                    
2011 - DEC,Childrens & Education Services,Supporting SEN,Smart Centre (Pupil Refer Unit          ,K90019,Premises Related Expenditure  ,Cleaning and Domestic Supplies,BH03,Cleaning Services,821,"1,456.50",11/25/2011,R,JULIUS RUTHERFOORD & CO LTD   
2011 - DEC,Childrens & Education Services,Supporting SEN,Smart Centre (Pupil Refer Unit          ,K90019,Supplies & Services           ,Equip Furniture/Materials     ,DA09,Equip-Purchases,822,639.8,11/22/2011,R,GLS EDUCATIONAL SUPPLIES LTD  
2011 - DEC,Childrens & Education Services,Supporting SEN,Smart Centre (Pupil Refer Unit          ,K90019,Third Party Payments          ,Other Local Authorities       ,EB55,Placements,823,"1,024.00",11/1/2011,R,YMCA TRAINING                 
2011 - DEC,Childrens & Education Services,Supporting SEN,Smart Centre (Pupil Refer Unit          ,K90019,Third Party Payments          ,Other Local Authorities       ,EB55,Placements,824,960,11/1/2011,R,YMCA TRAINING                 
2011 - DEC,Childrens & Education Services,Supporting SEN,Smart Centre (Pupil Refer Unit          ,K90019,Third Party Payments          ,Other Local Authorities       ,EB55,Placements,825,"1,024.00",11/1/2011,R,YMCA TRAINING                 
